Workbook

Sheet Список
A1: Чемпионат | B1: Дата/Время | C1: Дома | D1: Гости | E1: Match_ID | F1: Country_ID | G1: home_ID | H1: away_ID | I1: Загрузить | J1: Рез-т | K1: 1 Тайм | L1: П1 текущий | M1: Х текущий | N1: П2 текущий | O1: П1 старт | P1: Х старт | Q1: П2 старт | R1: П1 прогруз | S1: Х прогруз | T1: П2 прогруз
A2: БОЛИВИЯ: Дивизион Професиональ - Клаусура | B2: 2019.12.22 23:00 | C2: Боливар | D2: Насьональ Потоси | E2: GddUbnxa | F2: 36 | I2: АНАЛИЗ | J2: 2 : 1 | K2: 1 : 0 | L2: 1.2 | M2: 6 | N2: 9 | O2: 1.25 | P2: 5.5 | Q2: 7.5 | R2: =IF(L2="","",L2-O2) -> -0.05 | S2: =IF(M2="","",M2-P2) -> 0.5 | T2: =IF(N2="","",N2-Q2) -> 1.5 | U2: OUBDsPNd | W2: GMT +0 | X2: 4 | Y2: =TODAY()-7 -> 2019-12-16 | Z2: 8 | AA2: soccerstand.com | AB2: 1
A3: ИСПАНИЯ: Примера | B3: 2019.12.22 23:00 | C3: Реал Мадрид | D3: Атлетик | E3: nwCM9r0h | F3: 176 | G3: W8mj7MDD | H3: IP5zl0cJ | I3: АНАЛИЗ | J3: 0 : 0 | K3: 0 : 0 | L3: 1.33 | M3: 5.25 | N3: 9 | O3: 1.36 | P3: 5 | Q3: 7.5 | R3: =IF(L3="","",L3-O3) -> -0.03 | S3: =IF(M3="","",M3-P3) -> 0.25 | T3: =IF(N3="","",N3-Q3) -> 1.5 | U3: MNGIgau5 | W3: GMT +1 | Y3: =TODAY()-6 -> 2019-12-17 | AA3: myscore.ru
A4: ИТАЛИЯ: Серия В | B4: 2019.12.22 23:00 | C4: Порденоне | D4: Асколи | E4: nuPG26jT | F4: 98 | G4: dnZqF13f | H4: hd6UOqvB | I4: АНАЛИЗ | J4: 2 : 1 | K4: 2 : 0 | L4: 1.95 | M4: 3.4 | N4: 4 | O4: 2 | P4: 3.3 | Q4: 3.8 | R4: =IF(L4="","",L4-O4) -> -0.05 | S4: =IF(M4="","",M4-P4) -> 0.1 | T4: =IF(N4="","",N4-Q4) -> 0.2 | U4: 6HTxk4UT | W4: GMT +2 | Y4: =TODAY()-5 -> 2019-12-18 | AA4: scoreboard.com
A5: ЯМАЙКА: Премьер-лига | B5: 2019.12.22 23:00 | C5: Портмор | D5: Vere United | E5: niTVAhGd | F5: 99 | I5: АНАЛИЗ | J5: 3 : 1 | K5: 2 : 0 | L5: 1.51 | M5: 3.4 | N5: 6.35 | O5: 1.55 | P5: 3.4 | Q5: 5.85 | R5: =IF(L5="","",L5-O5) -> -0.04 | S5: =IF(M5="","",M5-P5) -> 0 | T5: =IF(N5="","",N5-Q5) -> 0.5 | U5: YJorpqvL | W5: GMT +3 | Y5: =TODAY()-4 -> 2019-12-19 | AA5: myscore.com.ua
A6: ЯМАЙКА: Премьер-лига | B6: 2019.12.22 23:00 | C6: Тиволи | D6: УВИ | E6: 80URBY0j | F6: 99 | I6: АНАЛИЗ | J6: 2 : 2 | K6: 0 : 1 | L6: 2.06 | M6: 3.08 | N6: 3.54 | O6: 2.22 | P6: 2.88 | Q6: 3.18 | R6: =IF(L6="","",L6-O6) -> -0.16 | S6: =IF(M6="","",M6-P6) -> 0.2 | T6: =IF(N6="","",N6-Q6) -> 0.36 | U6: YJorpqvL | W6: GMT +4 | Y6: =TODAY()-3 -> 2019-12-20
A7: ПОРТУГАЛИЯ: Третья лига | B7: 2019.12.22 23:15 | C7: Мариненше | D7: Лейрия | E7: rHsjsJAl | F7: 155 | I7: АНАЛИЗ | J7: 1 : 2 | K7: 1 : 2 | L7: 1.97 | M7: 3.26 | N7: 3.58 | O7: 2.52 | P7: 3 | Q7: 2.63 | R7: =IF(L7="","",L7-O7) -> -0.55 | S7: =IF(M7="","",M7-P7) -> 0.26 | T7: =IF(N7="","",N7-Q7) -> 0.95 | U7: QXMeCeIq | W7: GMT +5 | Y7: =TODAY() -2 -> 2019-12-21
A8: САЛЬВАДОР: Премьер-лига - Апертура - плей-офф | B8: 2019.12.23 00:00 | C8: Альянса | D8: ФАС | E8: fNDR73Ne | F8: 70 | I8: АНАЛИЗ | J8: 1 : 0 | K8: 0 : 0 | R8: =IF(L8="","",L8-O8) ->  | S8: =IF(M8="","",M8-P8) ->  | T8: =IF(N8="","",N8-Q8) ->  | U8: 65LWrXZq | W8: GMT +6 | Y8: Вчера
A9: БОЛИВИЯ: Дивизион Професиональ - Клаусура | B9: 2019.12.23 00:15 | C9: Хорхе Вильстерманн | D9: Спортс Бойс | E9: Ua0Yc6i5 | F9: 36 | I9: АНАЛИЗ | J9: 3 : 2 | K9: 1 : 0 | L9: 1.11 | M9: 7.5 | N9: 13 | O9: 1.2 | P9: 6 | Q9: 9 | R9: =IF(L9="","",L9-O9) -> -0.09 | S9: =IF(M9="","",M9-P9) -> 1.5 | T9: =IF(N9="","",N9-Q9) -> 4 | U9: OUBDsPNd | W9: GMT +7 | Y9: Сегодня
A10: ЯМАЙКА: Премьер-лига | B10: 2019.12.23 01:00 | C10: Хамбл Лайонс | D10: Харбор Вью | E10: QyaCJpKd | F10: 99 | I10: АНАЛИЗ | J10: 1 : 0 | K10: 1 : 0 | L10: 2.28 | M10: 2.82 | N10: 3.36 | O10: 2.27 | P10: 2.88 | Q10: 3.09 | R10: =IF(L10="","",L10-O10) -> 0.01 | S10: =IF(M10="","",M10-P10) -> -0.06 | T10: =IF(N10="","",N10-Q10) -> 0.27 | U10: YJorpqvL | W10: GMT +8 | Y10: Завтра
A11: БОЛИВИЯ: Дивизион Професиональ - Клаусура | B11: 2019.12.23 02:30 | C11: Блуминг | D11: Гуабира | E11: p8Mk6UqP | F11: 36 | I11: АНАЛИЗ | J11: 1 : 1 | K11: 0 : 1 | L11: 1.4 | M11: 4.75 | N11: 6 | O11: 1.5 | P11: 4 | Q11: 5 | R11: =IF(L11="","",L11-O11) -> -0.1 | S11: =IF(M11="","",M11-P11) -> 0.75 | T11: =IF(N11="","",N11-Q11) -> 1 | U11: OUBDsPNd | W11: GMT +9 | Y11: =TODAY()+2 -> 2019-12-25
A12: ЯМАЙКА: Премьер-лига | B12: 2019.12.23 03:00 | C12: Mount Pleasant | D12: Кавальер | E12: 4ScGI4Z2 | F12: 99 | I12: АНАЛИЗ | J12: 0 : 1 | K12: 0 : 0 | L12: 1.67 | M12: 3.7 | N12: 4.5 | O12: 1.69 | P12: 3.24 | Q12: 4.66 | R12: =IF(L12="","",L12-O12) -> -0.02 | S12: =IF(M12="","",M12-P12) -> 0.46 | T12: =IF(N12="","",N12-Q12) -> -0.16 | U12: YJorpqvL | W12: GMT +10 | Y12: =TODAY()+3 -> 2019-12-26
A13: ЯМАЙКА: Премьер-лига | B13: 2019.12.23 04:00 | C13: Арнетт Гарденс | D13: Dunbeholden | E13: dzGNGr4F | F13: 99 | I13: АНАЛИЗ | J13: 0 : 3 | K13: 0 : 3 | L13: 1.89 | M13: 3.17 | N13: 4.08 | O13: 1.93 | P13: 3 | Q13: 3.86 | R13: =IF(L13="","",L13-O13) -> -0.04 | S13: =IF(M13="","",M13-P13) -> 0.17 | T13: =IF(N13="","",N13-Q13) -> 0.22 | U13: YJorpqvL | W13: GMT +11 | Y13: =TODAY()+4 -> 2019-12-27
A14: МИР: Клубные товарищеские матчи | B14: 2019.12.23 11:00 | C14: Нам Дин | D14: Дананг | E14: bg5flTWn | F14: 8 | I14: АНАЛИЗ | J14: 2 : 3 | K14: 0 : 2 | L14: 3.8 | M14: 4 | N14: 1.66 | O14: 3.8 | P14: 4 | Q14: 1.66 | R14: =IF(L14="","",L14-O14) -> 0 | S14: =IF(M14="","",M14-P14) -> 0 | T14: =IF(N14="","",N14-Q14) -> 0 | U14: MwJAV8ij | W14: GMT +12 | Y14: =TODAY()+5 -> 2019-12-28
A15: МИР: Клубные товарищеские матчи | B15: 2019.12.23 13:30 | C15: Куангнинь | D15: Hong Linh Ha Tinh | E15: GnHxsRsA | F15: 8 | I15: АНАЛИЗ | L15: 1.55 | M15: 3.8 | N15: 4.75 | O15: 1.5 | P15: 4 | Q15: 5 | R15: =IF(L15="","",L15-O15) -> 0.05 | S15: =IF(M15="","",M15-P15) -> -0.2 | T15: =IF(N15="","",N15-Q15) -> -0.25 | U15: MwJAV8ij | W15: GMT +13 | Y15: =TODAY()+6 -> 2019-12-29
A16: АЛБАНИЯ: Суперлига | B16: 2019.12.23 14:00 | C16: Флямуртари | D16: Теута | E16: fT4kiOAg | F16: 17 | G16: GSOlR98g | H16: lQvENR7I | I16: АНАЛИЗ | L16: 3.74 | M16: 2.83 | N16: 2.06 | O16: 3.28 | P16: 3 | Q16: 2.12 | R16: =IF(L16="","",L16-O16) -> 0.46 | S16: =IF(M16="","",M16-P16) -> -0.17 | T16: =IF(N16="","",N16-Q16) -> -0.06 | U16: vsfEMnXl | Y16: =TODAY()+7 -> 2019-12-30
A17: ИРАН: Кубок Ирана | B17: 2019.12.23 14:30 | C17: Shahrdari Mahshahr | D17: Персеполис | E17: z5y27pce | F17: 94 | I17: АНАЛИЗ | L17: 9.3 | M17: 4.68 | N17: 1.34 | O17: 7.8 | P17: 4.2 | Q17: 1.34 | R17: =IF(L17="","",L17-O17) -> 1.5 | S17: =IF(M17="","",M17-P17) -> 0.48 | T17: =IF(N17="","",N17-Q17) -> 0 | U17: 2yJQYcwH
A18: ИРАН: Кубок Ирана | B18: 2019.12.23 14:30 | C18: Трактор-Сази | D18: Mes Kerman | E18: ITQ664C1 | F18: 94 | I18: АНАЛИЗ | R18: =IF(L18="","",L18-O18) ->  | S18: =IF(M18="","",M18-P18) ->  | T18: =IF(N18="","",N18-Q18) ->  | U18: 2yJQYcwH
A19: СИРИЯ: Первый дивизион | B19: 2019.12.23 15:00 | C19: Аль-Карамах | D19: Аль-Джазира | E19: I1OadVn1 | F19: 183 | G19: OAyhonEt | H19: pQFVFM5K | I19: АНАЛИЗ | L19: 1.1 | M19: 9 | N19: 11.5 | O19: 1.82 | P19: 3.24 | Q19: 3.96 | R19: =IF(L19="","",L19-O19) -> -0.72 | S19: =IF(M19="","",M19-P19) -> 5.76 | T19: =IF(N19="","",N19-Q19) -> 7.54 | U19: vLx7lrI3
A20: САУДОВСКАЯ АРАВИЯ: Кубок Короля | B20: 2019.12.23 15:40 | C20: Abha | D20: Аль-Таавон | E20: 4fMSmrB3 | F20: 165 | I20: АНАЛИЗ | L20: 3.2 | M20: 3.25 | N20: 2.1 | O20: 2.3 | P20: 3.9 | Q20: 2.37 | R20: =IF(L20="","",L20-O20) -> 0.9 | S20: =IF(M20="","",M20-P20) -> -0.65 | T20: =IF(N20="","",N20-Q20) -> -0.27 | U20: SnMbBWda
A21: ИРАН: Кубок Ирана | B21: 2019.12.23 15:45 | C21: Эстеглал Тегеран | D21: Сепахан | E21: pzJhU748 | F21: 94 | I21: АНАЛИЗ | L21: 2.27 | M21: 2.8 | N21: 3.19 | O21: 2.27 | P21: 2.8 | Q21: 3.19 | R21: =IF(L21="","",L21-O21) -> 0 | S21: =IF(M21="","",M21-P21) -> 0 | T21: =IF(N21="","",N21-Q21) -> 0 | U21: 2yJQYcwH
A22: ОАЭ: Кубок президента | B22: 2019.12.23 15:50 | C22: Банияс | D22: Эль-Фуджайра | E22: vkfMbVOD | F22: 196 | I22: АНАЛИЗ | L22: 1.53 | M22: 4.2 | N22: 4.75 | O22: 1.57 | P22: 4 | Q22: 4.4 | R22: =IF(L22="","",L22-O22) -> -0.04 | S22: =IF(M22="","",M22-P22) -> 0.2 | T22: =IF(N22="","",N22-Q22) -> 0.35 | U22: jBK3n0Rs
A23: ОАЭ: Кубок президента | B23: 2019.12.23 15:50 | C23: Дибба | D23: Аль-Аин | E23: IugQckvK | F23: 196 | I23: АНАЛИЗ | L23: 5.25 | M23: 4.75 | N23: 1.4 | O23: 5 | P23: 4.5 | Q23: 1.44 | R23: =IF(L23="","",L23-O23) -> 0.25 | S23: =IF(M23="","",M23-P23) -> 0.25 | T23: =IF(N23="","",N23-Q23) -> -0.04 | U23: jBK3n0Rs
A24: АНГЛИЯ: Лига профессионального развития | B24: 2019.12.23 16:00 | C24: Бристоль Сити U23 | D24: КПР U23 | E24: WjgejBhl | F24: 198 | I24: АНАЛИЗ | L24: 2.08 | M24: 3.78 | N24: 2.89 | O24: 2.12 | P24: 4 | Q24: 2.59 | R24: =IF(L24="","",L24-O24) -> -0.04 | S24: =IF(M24="","",M24-P24) -> -0.22 | T24: =IF(N24="","",N24-Q24) -> 0.3 | U24: QZww0Hl9
A25: ИРАН: Кубок Ирана | B25: 2019.12.23 16:15 | C25: Нафт Мешхед | D25: Шахин Бушехр | E25: WWUA5OR7 | F25: 94 | I25: АНАЛИЗ | L25: 1.55 | M25: 3.7 | N25: 6.45 | O25: 1.41 | P25: 3.6 | Q25: 7.9 | R25: =IF(L25="","",L25-O25) -> 0.14 | S25: =IF(M25="","",M25-P25) -> 0.1 | T25: =IF(N25="","",N25-Q25) -> -1.45 | U25: 2yJQYcwH
A26: МАРОККО: Ботола Про | B26: 2019.12.23 17:00 | C26: Раджа Бени Меллаль | D26: Мулудиа Оуджа | E26: Glvfbo9s | F26: 134 | I26: АНАЛИЗ | L26: 3.4 | M26: 2.9 | N26: 2.1 | O26: 3.3 | P26: 2.9 | Q26: 2.15 | R26: =IF(L26="","",L26-O26) -> 0.1 | S26: =IF(M26="","",M26-P26) -> 0 | T26: =IF(N26="","",N26-Q26) -> -0.05 | U26: UoFOMiam
A27: НИГЕРИЯ: NNL | B27: 2019.12.23 17:00 | C27: Квара | D27: Yobe Stars | E27: GO0gG4aK | F27: 143 | I27: АНАЛИЗ | R27: =IF(L27="","",L27-O27) ->  | S27: =IF(M27="","",M27-P27) ->  | T27: =IF(N27="","",N27-Q27) ->  | U27: Spg45qar
A28: КАТАР: QSL | B28: 2019.12.23 17:10 | C28: Аль-Шахания | D28: Аль-Хор | E28: nchboLVe | F28: 156 | I28: АНАЛИЗ | L28: 2.8 | M28: 3.5 | N28: 2.2 | O28: 2.62 | P28: 3.6 | Q28: 2.2 | R28: =IF(L28="","",L28-O28) -> 0.18 | S28: =IF(M28="","",M28-P28) -> -0.1 | T28: =IF(N28="","",N28-Q28) -> 0 | U28: U7byC5yo
A29: БАХРЕЙН: Премьер-лига | B29: 2019.12.23 17:30 | C29: Аль-Рифаа | D29: Аль-Шаббаб | E29: d2j9DuoF | F29: 28 | I29: АНАЛИЗ | L29: 1.44 | M29: 4 | N29: 6.5 | O29: 1.57 | P29: 3.6 | Q29: 5 | R29: =IF(L29="","",L29-O29) -> -0.13 | S29: =IF(M29="","",M29-P29) -> 0.4 | T29: =IF(N29="","",N29-Q29) -> 1.5 | U29: I3sIvUSr
A30: БАХРЕЙН: Премьер-лига | B30: 2019.12.23 18:00 | C30: Манама Клуб | D30: Аль-Хадд | E30: Ew14ELV8 | F30: 28 | I30: АНАЛИЗ | L30: 2.87 | M30: 3.3 | N30: 2.25 | O30: 2.5 | P30: 3.4 | Q30: 2.4 | R30: =IF(L30="","",L30-O30) -> 0.37 | S30: =IF(M30="","",M30-P30) -> -0.1 | T30: =IF(N30="","",N30-Q30) -> -0.15 | U30: I3sIvUSr
A31: ГРЕЦИЯ: Суперлига 2 | B31: 2019.12.23 18:00 | C31: Эрготелис | D31: PAE Chania | E31: I3gpLVKk | F31: 83 | I31: АНАЛИЗ | L31: 2.4 | M31: 3.2 | N31: 2.77 | O31: 2.52 | P31: 3 | Q31: 2.85 | R31: =IF(L31="","",L31-O31) -> -0.12 | S31: =IF(M31="","",M31-P31) -> 0.2 | T31: =IF(N31="","",N31-Q31) -> -0.08 | U31: nDSREIRF
A32: ЕГИПЕТ: Премьер-лига | B32: 2019.12.23 18:00 | C32: Араб Контракторс | D32: Исмаили | E32: YyiAFXj8 | F32: 69 | I32: АНАЛИЗ | L32: 3.5 | M32: 2.87 | N32: 2.15 | O32: 2.4 | P32: 2.87 | Q32: 2.87 | R32: =IF(L32="","",L32-O32) -> 1.1 | S32: =IF(M32="","",M32-P32) -> 0 | T32: =IF(N32="","",N32-Q32) -> -0.72 | U32: jFtlAxPf
A33: ОАЭ: Кубок президента | B33: 2019.12.23 18:50 | C33: Аджман | D33: Аль-Дафра | E33: 04rVd9gQ | F33: 196 | I33: АНАЛИЗ | L33: 2.6 | M33: 3.5 | N33: 2.25 | O33: 2.6 | P33: 3.5 | Q33: 2.25 | R33: =IF(L33="","",L33-O33) -> 0 | S33: =IF(M33="","",M33-P33) -> 0 | T33: =IF(N33="","",N33-Q33) -> 0 | U33: jBK3n0Rs
A34: ОАЭ: Кубок президента | B34: 2019.12.23 18:50 | C34: Аль-Шаржа | D34: Hatta | E34: Cr6vznnD | F34: 196 | I34: АНАЛИЗ | L34: 1.33 | M34: 4.5 | N34: 7 | O34: 1.4 | P34: 4.33 | Q34: 6 | R34: =IF(L34="","",L34-O34) -> -0.07 | S34: =IF(M34="","",M34-P34) -> 0.17 | T34: =IF(N34="","",N34-Q34) -> 1 | U34: jBK3n0Rs
A35: ГРЕЦИЯ: Суперлига | B35: 2019.12.23 19:00 | C35: ПАОК | D35: Атромитос | E35: 63GuBhJg | F35: 83 | I35: АНАЛИЗ | L35: 1.16 | M35: 7 | N35: 15 | O35: 1.25 | P35: 5 | Q35: 10 | R35: =IF(L35="","",L35-O35) -> -0.09 | S35: =IF(M35="","",M35-P35) -> 2 | T35: =IF(N35="","",N35-Q35) -> 5 | U35: lr6YRvfm
A36: МИР: Arab Club Champions Cup | B36: 2019.12.23 19:00 | C36: Аль-Шабаб | D36: Аль-Шорта | E36: IPUNBLxD | F36: 8 | I36: АНАЛИЗ | R36: =IF(L36="","",L36-O36) ->  | S36: =IF(M36="","",M36-P36) ->  | T36: =IF(N36="","",N36-Q36) ->  | U36: K47bv50K
A37: ТУРЦИЯ: 1. Lig | B37: 2019.12.23 19:00 | C37: Гиресунспор | D37: Алтынорду | E37: ze8PP9g9 | F37: 191 | I37: АНАЛИЗ | L37: 1.95 | M37: 3.4 | N37: 3.8 | O37: 1.8 | P37: 3.4 | Q37: 3.8 | R37: =IF(L37="","",L37-O37) -> 0.15 | S37: =IF(M37="","",M37-P37) -> 0 | T37: =IF(N37="","",N37-Q37) -> 0 | U37: 2BVscssI
A38: КАТАР: QSL | B38: 2019.12.23 19:20 | C38: Аль-Ахли Доха | D38: Al-Duhail | E38: bXe2puo2 | F38: 156 | I38: АНАЛИЗ | L38: 4.5 | M38: 4.5 | N38: 1.53 | O38: 5 | P38: 5 | Q38: 1.4 | R38: =IF(L38="","",L38-O38) -> -0.5 | S38: =IF(M38="","",M38-P38) -> -0.5 | T38: =IF(N38="","",N38-Q38) -> 0.13 | U38: U7byC5yo
A39: КАТАР: QSL | B39: 2019.12.23 19:20 | C39: Аль-Гарафа | D39: Аль-Садд | E39: Czpp9ON2 | F39: 156 | I39: АНАЛИЗ | L39: 3.4 | M39: 3.8 | N39: 1.8 | O39: 3.8 | P39: 4 | Q39: 1.66 | R39: =IF(L39="","",L39-O39) -> -0.4 | S39: =IF(M39="","",M39-P39) -> -0.2 | T39: =IF(N39="","",N39-Q39) -> 0.14 | U39: U7byC5yo
A40: ГАМБИЯ: Лига | B40: 2019.12.23 19:30 | C40: Fortune | D40: Marimoo | E40: ED70OJQl | F40: 79 | I40: АНАЛИЗ | R40: =IF(L40="","",L40-O40) ->  | S40: =IF(M40="","",M40-P40) ->  | T40: =IF(N40="","",N40-Q40) ->  | U40: WSAax136
A41: МАВРИТАНИЯ: Лига 1 | B41: 2019.12.23 19:30 | C41: Нуадибу | D41: Medine | E41: fPGoo6R5 | F41: 126 | I41: АНАЛИЗ | L41: 1.66 | M41: 3.7 | N41: 4.16 | O41: 1.63 | P41: 3.6 | Q41: 4.52 | R41: =IF(L41="","",L41-O41) -> 0.03 | S41: =IF(M41="","",M41-P41) -> 0.1 | T41: =IF(N41="","",N41-Q41) -> -0.36 | U41: 2qJGtIBH
A42: БАХРЕЙН: Премьер-лига | B42: 2019.12.23 20:00 | C42: Ист Риффа | D42: Аль-Мухаррак | E42: lA8GBJFR | F42: 28 | I42: АНАЛИЗ | L42: 3.5 | M42: 3.75 | N42: 1.83 | O42: 2.8 | P42: 3.5 | Q42: 2.1 | R42: =IF(L42="","",L42-O42) -> 0.7 | S42: =IF(M42="","",M42-P42) -> 0.25 | T42: =IF(N42="","",N42-Q42) -> -0.27 | U42: I3sIvUSr
A43: МИР: Клубные товарищеские матчи | B43: 2019.12.23 20:00 | C43: Гвадалахара | D43: Тампико Мадеро | E43: xp4bmmng | F43: 8 | I43: АНАЛИЗ | R43: =IF(L43="","",L43-O43) ->  | S43: =IF(M43="","",M43-P43) ->  | T43: =IF(N43="","",N43-Q43) ->  | U43: MwJAV8ij
A44: ТУРЦИЯ: Суперлига | B44: 2019.12.23 20:00 | C44: Денизлиспор | D44: Аланияспор | E44: lYOqbgVD | F44: 191 | I44: АНАЛИЗ | L44: 3.8 | M44: 3.6 | N44: 1.9 | O44: 2.87 | P44: 3.3 | Q44: 2.4 | R44: =IF(L44="","",L44-O44) -> 0.93 | S44: =IF(M44="","",M44-P44) -> 0.3 | T44: =IF(N44="","",N44-Q44) -> -0.5 | U44: A146aXLs
A45: ТУРЦИЯ: Суперлига | B45: 2019.12.23 20:00 | C45: Коньяспор | D45: Трабзонспор | E45: OUuMrEVQ | F45: 191 | I45: АНАЛИЗ | L45: 3.5 | M45: 3.5 | N45: 2.05 | O45: 3.25 | P45: 3.3 | Q45: 2.2 | R45: =IF(L45="","",L45-O45) -> 0.25 | S45: =IF(M45="","",M45-P45) -> 0.2 | T45: =IF(N45="","",N45-Q45) -> -0.15 | U45: A146aXLs
A46: ЕГИПЕТ: Премьер-лига | B46: 2019.12.23 20:30 | C46: Аль-Ахли | D46: Аль-Иттихад | E46: KY2SjlE7 | F46: 69 | I46: АНАЛИЗ | L46: 1.4 | M46: 3.8 | N46: 7.5 | O46: 1.61 | P46: 3.4 | Q46: 5 | R46: =IF(L46="","",L46-O46) -> -0.21 | S46: =IF(M46="","",M46-P46) -> 0.4 | T46: =IF(N46="","",N46-Q46) -> 2.5 | U46: jFtlAxPf
A47: ИЗРАИЛЬ: Первая лига | B47: 2019.12.23 20:40 | C47: Хапоэль Петах-Тиква | D47: Хапоэль Афула | E47: WfecgIhA | F47: 97 | I47: АНАЛИЗ | L47: 2 | M47: 3.1 | N47: 3.8 | O47: 1.72 | P47: 3.2 | Q47: 4.5 | R47: =IF(L47="","",L47-O47) -> 0.28 | S47: =IF(M47="","",M47-P47) -> -0.1 | T47: =IF(N47="","",N47-Q47) -> -0.7 | U47: KORgCTxD
A48: МАВРИТАНИЯ: Лига 1 | B48: 2019.12.23 21:30 | C48: АСАК Конкорд | D48: Полис | E48: xlMtnnCa | F48: 126 | I48: АНАЛИЗ | L48: 1.67 | M48: 3.3 | N48: 4.6 | O48: 1.69 | P48: 3.3 | Q48: 4.64 | R48: =IF(L48="","",L48-O48) -> -0.02 | S48: =IF(M48="","",M48-P48) -> 0 | T48: =IF(N48="","",N48-Q48) -> -0.04 | U48: 2qJGtIBH
A49: АНГЛИЯ: Чемпионшип | B49: 2019.12.23 22:45 | C49: Блэкберн | D49: Уиган | E49: pvTYblHd | F49: 198 | I49: АНАЛИЗ | L49: 1.72 | M49: 3.6 | N49: 4.75 | O49: 1.85 | P49: 3.6 | Q49: 4 | R49: =IF(L49="","",L49-O49) -> -0.13 | S49: =IF(M49="","",M49-P49) -> 0 | T49: =IF(N49="","",N49-Q49) -> 0.75 | U49: 2i9E8WOB
R50: =IF(L50="","",L50-O50) ->  | S50: =IF(M50="","",M50-P50) ->  | T50: =IF(N50="","",N50-Q50) -> 
R51: =IF(L51="","",L51-O51) ->  | S51: =IF(M51="","",M51-P51) ->  | T51: =IF(N51="","",N51-Q51) -> 
R52: =IF(L52="","",L52-O52) ->  | S52: =IF(M52="","",M52-P52) ->  | T52: =IF(N52="","",N52-Q52) -> 
R53: =IF(L53="","",L53-O53) ->  | S53: =IF(M53="","",M53-P53) ->  | T53: =IF(N53="","",N53-Q53) -> 
R54: =IF(L54="","",L54-O54) ->  | S54: =IF(M54="","",M54-P54) ->  | T54: =IF(N54="","",N54-Q54) -> 
R55: =IF(L55="","",L55-O55) ->  | S55: =IF(M55="","",M55-P55) ->  | T55: =IF(N55="","",N55-Q55) -> 
R56: =IF(L56="","",L56-O56) ->  | S56: =IF(M56="","",M56-P56) ->  | T56: =IF(N56="","",N56-Q56) -> 
R57: =IF(L57="","",L57-O57) ->  | S57: =IF(M57="","",M57-P57) ->  | T57: =IF(N57="","",N57-Q57) -> 
R58: =IF(L58="","",L58-O58) ->  | S58: =IF(M58="","",M58-P58) ->  | T58: =IF(N58="","",N58-Q58) -> 
R59: =IF(L59="","",L59-O59) ->  | S59: =IF(M59="","",M59-P59) ->  | T59: =IF(N59="","",N59-Q59) -> 
R60: =IF(L60="","",L60-O60) ->  | S60: =IF(M60="","",M60-P60) ->  | T60: =IF(N60="","",N60-Q60) -> 
R61: =IF(L61="","",L61-O61) ->  | S61: =IF(M61="","",M61-P61) ->  | T61: =IF(N61="","",N61-Q61) -> 
R62: =IF(L62="","",L62-O62) ->  | S62: =IF(M62="","",M62-P62) ->  | T62: =IF(N62="","",N62-Q62) -> 
R63: =IF(L63="","",L63-O63) ->  | S63: =IF(M63="","",M63-P63) ->  | T63: =IF(N63="","",N63-Q63) -> 
R64: =IF(L64="","",L64-O64) ->  | S64: =IF(M64="","",M64-P64) ->  | T64: =IF(N64="","",N64-Q64) -> 
R65: =IF(L65="","",L65-O65) ->  | S65: =IF(M65="","",M65-P65) ->  | T65: =IF(N65="","",N65-Q65) -> 
R66: =IF(L66="","",L66-O66) ->  | S66: =IF(M66="","",M66-P66) ->  | T66: =IF(N66="","",N66-Q66) -> 
R67: =IF(L67="","",L67-O67) ->  | S67: =IF(M67="","",M67-P67) ->  | T67: =IF(N67="","",N67-Q67) -> 
R68: =IF(L68="","",L68-O68) ->  | S68: =IF(M68="","",M68-P68) ->  | T68: =IF(N68="","",N68-Q68) -> 
R69: =IF(L69="","",L69-O69) ->  | S69: =IF(M69="","",M69-P69) ->  | T69: =IF(N69="","",N69-Q69) -> 
R70: =IF(L70="","",L70-O70) ->  | S70: =IF(M70="","",M70-P70) ->  | T70: =IF(N70="","",N70-Q70) -> 
R71: =IF(L71="","",L71-O71) ->  | S71: =IF(M71="","",M71-P71) ->  | T71: =IF(N71="","",N71-Q71) -> 
R72: =IF(L72="","",L72-O72) ->  | S72: =IF(M72="","",M72-P72) ->  | T72: =IF(N72="","",N72-Q72) -> 
R73: =IF(L73="","",L73-O73) ->  | S73: =IF(M73="","",M73-P73) ->  | T73: =IF(N73="","",N73-Q73) -> 
R74: =IF(L74="","",L74-O74) ->  | S74: =IF(M74="","",M74-P74) ->  | T74: =IF(N74="","",N74-Q74) -> 
R75: =IF(L75="","",L75-O75) ->  | S75: =IF(M75="","",M75-P75) ->  | T75: =IF(N75="","",N75-Q75) -> 
R76: =IF(L76="","",L76-O76) ->  | S76: =IF(M76="","",M76-P76) ->  | T76: =IF(N76="","",N76-Q76) -> 
R77: =IF(L77="","",L77-O77) ->  | S77: =IF(M77="","",M77-P77) ->  | T77: =IF(N77="","",N77-Q77) -> 
R78: =IF(L78="","",L78-O78) ->  | S78: =IF(M78="","",M78-P78) ->  | T78: =IF(N78="","",N78-Q78) -> 
R79: =IF(L79="","",L79-O79) ->  | S79: =IF(M79="","",M79-P79) ->  | T79: =IF(N79="","",N79-Q79) -> 
R80: =IF(L80="","",L80-O80) ->  | S80: =IF(M80="","",M80-P80) ->  | T80: =IF(N80="","",N80-Q80) -> 
R81: =IF(L81="","",L81-O81) ->  | S81: =IF(M81="","",M81-P81) ->  | T81: =IF(N81="","",N81-Q81) -> 
R82: =IF(L82="","",L82-O82) ->  | S82: =IF(M82="","",M82-P82) ->  | T82: =IF(N82="","",N82-Q82) -> 
R83: =IF(L83="","",L83-O83) ->  | S83: =IF(M83="","",M83-P83) ->  | T83: =IF(N83="","",N83-Q83) -> 
R84: =IF(L84="","",L84-O84) ->  | S84: =IF(M84="","",M84-P84) ->  | T84: =IF(N84="","",N84-Q84) -> 
R85: =IF(L85="","",L85-O85) ->  | S85: =IF(M85="","",M85-P85) ->  | T85: =IF(N85="","",N85-Q85) -> 
R86: =IF(L86="","",L86-O86) ->  | S86: =IF(M86="","",M86-P86) ->  | T86: =IF(N86="","",N86-Q86) -> 
R87: =IF(L87="","",L87-O87) ->  | S87: =IF(M87="","",M87-P87) ->  | T87: =IF(N87="","",N87-Q87) -> 
R88: =IF(L88="","",L88-O88) ->  | S88: =IF(M88="","",M88-P88) ->  | T88: =IF(N88="","",N88-Q88) -> 
R89: =IF(L89="","",L89-O89) ->  | S89: =IF(M89="","",M89-P89) ->  | T89: =IF(N89="","",N89-Q89) -> 
R90: =IF(L90="","",L90-O90) ->  | S90: =IF(M90="","",M90-P90) ->  | T90: =IF(N90="","",N90-Q90) -> 
R91: =IF(L91="","",L91-O91) ->  | S91: =IF(M91="","",M91-P91) ->  | T91: =IF(N91="","",N91-Q91) -> 
R92: =IF(L92="","",L92-O92) ->  | S92: =IF(M92="","",M92-P92) ->  | T92: =IF(N92="","",N92-Q92) -> 
R93: =IF(L93="","",L93-O93) ->  | S93: =IF(M93="","",M93-P93) ->  | T93: =IF(N93="","",N93-Q93) -> 
R94: =IF(L94="","",L94-O94) ->  | S94: =IF(M94="","",M94-P94) ->  | T94: =IF(N94="","",N94-Q94) -> 
R95: =IF(L95="","",L95-O95) ->  | S95: =IF(M95="","",M95-P95) ->  | T95: =IF(N95="","",N95-Q95) -> 
R96: =IF(L96="","",L96-O96) ->  | S96: =IF(M96="","",M96-P96) ->  | T96: =IF(N96="","",N96-Q96) -> 
R97: =IF(L97="","",L97-O97) ->  | S97: =IF(M97="","",M97-P97) ->  | T97: =IF(N97="","",N97-Q97) -> 
R98: =IF(L98="","",L98-O98) ->  | S98: =IF(M98="","",M98-P98) ->  | T98: =IF(N98="","",N98-Q98) -> 
R99: =IF(L99="","",L99-O99) ->  | S99: =IF(M99="","",M99-P99) ->  | T99: =IF(N99="","",N99-Q99) -> 
R100: =IF(L100="","",L100-O100) ->  | S100: =IF(M100="","",M100-P100) ->  | T100: =IF(N100="","",N100-Q100) -> 
R101: =IF(L101="","",L101-O101) ->  | S101: =IF(M101="","",M101-P101) ->  | T101: =IF(N101="","",N101-Q101) -> 
R102: =IF(L102="","",L102-O102) ->  | S102: =IF(M102="","",M102-P102) ->  | T102: =IF(N102="","",N102-Q102) -> 
R103: =IF(L103="","",L103-O103) ->  | S103: =IF(M103="","",M103-P103) ->  | T103: =IF(N103="","",N103-Q103) -> 
R104: =IF(L104="","",L104-O104) ->  | S104: =IF(M104="","",M104-P104) ->  | T104: =IF(N104="","",N104-Q104) -> 
R105: =IF(L105="","",L105-O105) ->  | S105: =IF(M105="","",M105-P105) ->  | T105: =IF(N105="","",N105-Q105) -> 
R106: =IF(L106="","",L106-O106) ->  | S106: =IF(M106="","",M106-P106) ->  | T106: =IF(N106="","",N106-Q106) -> 
R107: =IF(L107="","",L107-O107) ->  | S107: =IF(M107="","",M107-P107) ->  | T107: =IF(N107="","",N107-Q107) -> 
R108: =IF(L108="","",L108-O108) ->  | S108: =IF(M108="","",M108-P108) ->  | T108: =IF(N108="","",N108-Q108) -> 
R109: =IF(L109="","",L109-O109) ->  | S109: =IF(M109="","",M109-P109) ->  | T109: =IF(N109="","",N109-Q109) -> 
R110: =IF(L110="","",L110-O110) ->  | S110: =IF(M110="","",M110-P110) ->  | T110: =IF(N110="","",N110-Q110) -> 
R111: =IF(L111="","",L111-O111) ->  | S111: =IF(M111="","",M111-P111) ->  | T111: =IF(N111="","",N111-Q111) -> 
R112: =IF(L112="","",L112-O112) ->  | S112: =IF(M112="","",M112-P112) ->  | T112: =IF(N112="","",N112-Q112) -> 
R113: =IF(L113="","",L113-O113) ->  | S113: =IF(M113="","",M113-P113) ->  | T113: =IF(N113="","",N113-Q113) -> 
R114: =IF(L114="","",L114-O114) ->  | S114: =IF(M114="","",M114-P114) ->  | T114: =IF(N114="","",N114-Q114) -> 
R115: =IF(L115="","",L115-O115) ->  | S115: =IF(M115="","",M115-P115) ->  | T115: =IF(N115="","",N115-Q115) -> 
R116: =IF(L116="","",L116-O116) ->  | S116: =IF(M116="","",M116-P116) ->  | T116: =IF(N116="","",N116-Q116) -> 
R117: =IF(L117="","",L117-O117) ->  | S117: =IF(M117="","",M117-P117) ->  | T117: =IF(N117="","",N117-Q117) -> 
R118: =IF(L118="","",L118-O118) ->  | S118: =IF(M118="","",M118-P118) ->  | T118: =IF(N118="","",N118-Q118) -> 
R119: =IF(L119="","",L119-O119) ->  | S119: =IF(M119="","",M119-P119) ->  | T119: =IF(N119="","",N119-Q119) -> 
R120: =IF(L120="","",L120-O120) ->  | S120: =IF(M120="","",M120-P120) ->  | T120: =IF(N120="","",N120-Q120) -> 
R121: =IF(L121="","",L121-O121) ->  | S121: =IF(M121="","",M121-P121) ->  | T121: =IF(N121="","",N121-Q121) -> 
R122: =IF(L122="","",L122-O122) ->  | S122: =IF(M122="","",M122-P122) ->  | T122: =IF(N122="","",N122-Q122) -> 
R123: =IF(L123="","",L123-O123) ->  | S123: =IF(M123="","",M123-P123) ->  | T123: =IF(N123="","",N123-Q123) -> 
R124: =IF(L124="","",L124-O124) ->  | S124: =IF(M124="","",M124-P124) ->  | T124: =IF(N124="","",N124-Q124) -> 
R125: =IF(L125="","",L125-O125) ->  | S125: =IF(M125="","",M125-P125) ->  | T125: =IF(N125="","",N125-Q125) -> 
R126: =IF(L126="","",L126-O126) ->  | S126: =IF(M126="","",M126-P126) ->  | T126: =IF(N126="","",N126-Q126) -> 
R127: =IF(L127="","",L127-O127) ->  | S127: =IF(M127="","",M127-P127) ->  | T127: =IF(N127="","",N127-Q127) -> 
R128: =IF(L128="","",L128-O128) ->  | S128: =IF(M128="","",M128-P128) ->  | T128: =IF(N128="","",N128-Q128) -> 
R129: =IF(L129="","",L129-O129) ->  | S129: =IF(M129="","",M129-P129) ->  | T129: =IF(N129="","",N129-Q129) -> 
R130: =IF(L130="","",L130-O130) ->  | S130: =IF(M130="","",M130-P130) ->  | T130: =IF(N130="","",N130-Q130) -> 
R131: =IF(L131="","",L131-O131) ->  | S131: =IF(M131="","",M131-P131) ->  | T131: =IF(N131="","",N131-Q131) -> 
R132: =IF(L132="","",L132-O132) ->  | S132: =IF(M132="","",M132-P132) ->  | T132: =IF(N132="","",N132-Q132) -> 
R133: =IF(L133="","",L133-O133) ->  | S133: =IF(M133="","",M133-P133) ->  | T133: =IF(N133="","",N133-Q133) -> 
R134: =IF(L134="","",L134-O134) ->  | S134: =IF(M134="","",M134-P134) ->  | T134: =IF(N134="","",N134-Q134) -> 
R135: =IF(L135="","",L135-O135) ->  | S135: =IF(M135="","",M135-P135) ->  | T135: =IF(N135="","",N135-Q135) -> 
R136: =IF(L136="","",L136-O136) ->  | S136: =IF(M136="","",M136-P136) ->  | T136: =IF(N136="","",N136-Q136) -> 
R137: =IF(L137="","",L137-O137) ->  | S137: =IF(M137="","",M137-P137) ->  | T137: =IF(N137="","",N137-Q137) -> 
R138: =IF(L138="","",L138-O138) ->  | S138: =IF(M138="","",M138-P138) ->  | T138: =IF(N138="","",N138-Q138) -> 
R139: =IF(L139="","",L139-O139) ->  | S139: =IF(M139="","",M139-P139) ->  | T139: =IF(N139="","",N139-Q139) -> 
R140: =IF(L140="","",L140-O140) ->  | S140: =IF(M140="","",M140-P140) ->  | T140: =IF(N140="","",N140-Q140) -> 
R141: =IF(L141="","",L141-O141) ->  | S141: =IF(M141="","",M141-P141) ->  | T141: =IF(N141="","",N141-Q141) -> 
R142: =IF(L142="","",L142-O142) ->  | S142: =IF(M142="","",M142-P142) ->  | T142: =IF(N142="","",N142-Q142) -> 
R143: =IF(L143="","",L143-O143) ->  | S143: =IF(M143="","",M143-P143) ->  | T143: =IF(N143="","",N143-Q143) -> 
R144: =IF(L144="","",L144-O144) ->  | S144: =IF(M144="","",M144-P144) ->  | T144: =IF(N144="","",N144-Q144) -> 
R145: =IF(L145="","",L145-O145) ->  | S145: =IF(M145="","",M145-P145) ->  | T145: =IF(N145="","",N145-Q145) -> 
R146: =IF(L146="","",L146-O146) ->  | S146: =IF(M146="","",M146-P146) ->  | T146: =IF(N146="","",N146-Q146) -> 
R147: =IF(L147="","",L147-O147) ->  | S147: =IF(M147="","",M147-P147) ->  | T147: =IF(N147="","",N147-Q147) -> 
R148: =IF(L148="","",L148-O148) ->  | S148: =IF(M148="","",M148-P148) ->  | T148: =IF(N148="","",N148-Q148) -> 
R149: =IF(L149="","",L149-O149) ->  | S149: =IF(M149="","",M149-P149) ->  | T149: =IF(N149="","",N149-Q149) -> 
R150: =IF(L150="","",L150-O150) ->  | S150: =IF(M150="","",M150-P150) ->  | T150: =IF(N150="","",N150-Q150) -> 
R151: =IF(L151="","",L151-O151) ->  | S151: =IF(M151="","",M151-P151) ->  | T151: =IF(N151="","",N151-Q151) -> 
R152: =IF(L152="","",L152-O152) ->  | S152: =IF(M152="","",M152-P152) ->  | T152: =IF(N152="","",N152-Q152) -> 
R153: =IF(L153="","",L153-O153) ->  | S153: =IF(M153="","",M153-P153) ->  | T153: =IF(N153="","",N153-Q153) -> 
R154: =IF(L154="","",L154-O154) ->  | S154: =IF(M154="","",M154-P154) ->  | T154: =IF(N154="","",N154-Q154) -> 
R155: =IF(L155="","",L155-O155) ->  | S155: =IF(M155="","",M155-P155) ->  | T155: =IF(N155="","",N155-Q155) -> 
R156: =IF(L156="","",L156-O156) ->  | S156: =IF(M156="","",M156-P156) ->  | T156: =IF(N156="","",N156-Q156) -> 
R157: =IF(L157="","",L157-O157) ->  | S157: =IF(M157="","",M157-P157) ->  | T157: =IF(N157="","",N157-Q157) -> 
R158: =IF(L158="","",L158-O158) ->  | S158: =IF(M158="","",M158-P158) ->  | T158: =IF(N158="","",N158-Q158) -> 
R159: =IF(L159="","",L159-O159) ->  | S159: =IF(M159="","",M159-P159) ->  | T159: =IF(N159="","",N159-Q159) -> 
R160: =IF(L160="","",L160-O160) ->  | S160: =IF(M160="","",M160-P160) ->  | T160: =IF(N160="","",N160-Q160) -> 
R161: =IF(L161="","",L161-O161) ->  | S161: =IF(M161="","",M161-P161) ->  | T161: =IF(N161="","",N161-Q161) -> 
R162: =IF(L162="","",L162-O162) ->  | S162: =IF(M162="","",M162-P162) ->  | T162: =IF(N162="","",N162-Q162) -> 
R163: =IF(L163="","",L163-O163) ->  | S163: =IF(M163="","",M163-P163) ->  | T163: =IF(N163="","",N163-Q163) -> 
R164: =IF(L164="","",L164-O164) ->  | S164: =IF(M164="","",M164-P164) ->  | T164: =IF(N164="","",N164-Q164) -> 
R165: =IF(L165="","",L165-O165) ->  | S165: =IF(M165="","",M165-P165) ->  | T165: =IF(N165="","",N165-Q165) -> 
R166: =IF(L166="","",L166-O166) ->  | S166: =IF(M166="","",M166-P166) ->  | T166: =IF(N166="","",N166-Q166) -> 
R167: =IF(L167="","",L167-O167) ->  | S167: =IF(M167="","",M167-P167) ->  | T167: =IF(N167="","",N167-Q167) -> 
R168: =IF(L168="","",L168-O168) ->  | S168: =IF(M168="","",M168-P168) ->  | T168: =IF(N168="","",N168-Q168) -> 
R169: =IF(L169="","",L169-O169) ->  | S169: =IF(M169="","",M169-P169) ->  | T169: =IF(N169="","",N169-Q169) -> 
R170: =IF(L170="","",L170-O170) ->  | S170: =IF(M170="","",M170-P170) ->  | T170: =IF(N170="","",N170-Q170) -> 
R171: =IF(L171="","",L171-O171) ->  | S171: =IF(M171="","",M171-P171) ->  | T171: =IF(N171="","",N171-Q171) -> 
R172: =IF(L172="","",L172-O172) ->  | S172: =IF(M172="","",M172-P172) ->  | T172: =IF(N172="","",N172-Q172) -> 
R173: =IF(L173="","",L173-O173) ->  | S173: =IF(M173="","",M173-P173) ->  | T173: =IF(N173="","",N173-Q173) -> 
R174: =IF(L174="","",L174-O174) ->  | S174: =IF(M174="","",M174-P174) ->  | T174: =IF(N174="","",N174-Q174) -> 
R175: =IF(L175="","",L175-O175) ->  | S175: =IF(M175="","",M175-P175) ->  | T175: =IF(N175="","",N175-Q175) -> 
R176: =IF(L176="","",L176-O176) ->  | S176: =IF(M176="","",M176-P176) ->  | T176: =IF(N176="","",N176-Q176) -> 
R177: =IF(L177="","",L177-O177) ->  | S177: =IF(M177="","",M177-P177) ->  | T177: =IF(N177="","",N177-Q177) -> 
R178: =IF(L178="","",L178-O178) ->  | S178: =IF(M178="","",M178-P178) ->  | T178: =IF(N178="","",N178-Q178) -> 
R179: =IF(L179="","",L179-O179) ->  | S179: =IF(M179="","",M179-P179) ->  | T179: =IF(N179="","",N179-Q179) -> 
R180: =IF(L180="","",L180-O180) ->  | S180: =IF(M180="","",M180-P180) ->  | T180: =IF(N180="","",N180-Q180) -> 
R181: =IF(L181="","",L181-O181) ->  | S181: =IF(M181="","",M181-P181) ->  | T181: =IF(N181="","",N181-Q181) -> 
R182: =IF(L182="","",L182-O182) ->  | S182: =IF(M182="","",M182-P182) ->  | T182: =IF(N182="","",N182-Q182) -> 
R183: =IF(L183="","",L183-O183) ->  | S183: =IF(M183="","",M183-P183) ->  | T183: =IF(N183="","",N183-Q183) -> 
R184: =IF(L184="","",L184-O184) ->  | S184: =IF(M184="","",M184-P184) ->  | T184: =IF(N184="","",N184-Q184) -> 
R185: =IF(L185="","",L185-O185) ->  | S185: =IF(M185="","",M185-P185) ->  | T185: =IF(N185="","",N185-Q185) -> 
R186: =IF(L186="","",L186-O186) ->  | S186: =IF(M186="","",M186-P186) ->  | T186: =IF(N186="","",N186-Q186) -> 
R187: =IF(L187="","",L187-O187) ->  | S187: =IF(M187="","",M187-P187) ->  | T187: =IF(N187="","",N187-Q187) -> 
R188: =IF(L188="","",L188-O188) ->  | S188: =IF(M188="","",M188-P188) ->  | T188: =IF(N188="","",N188-Q188) -> 
R189: =IF(L189="","",L189-O189) ->  | S189: =IF(M189="","",M189-P189) ->  | T189: =IF(N189="","",N189-Q189) -> 
R190: =IF(L190="","",L190-O190) ->  | S190: =IF(M190="","",M190-P190) ->  | T190: =IF(N190="","",N190-Q190) -> 
R191: =IF(L191="","",L191-O191) ->  | S191: =IF(M191="","",M191-P191) ->  | T191: =IF(N191="","",N191-Q191) -> 
R192: =IF(L192="","",L192-O192) ->  | S192: =IF(M192="","",M192-P192) ->  | T192: =IF(N192="","",N192-Q192) -> 
R193: =IF(L193="","",L193-O193) ->  | S193: =IF(M193="","",M193-P193) ->  | T193: =IF(N193="","",N193-Q193) -> 
R194: =IF(L194="","",L194-O194) ->  | S194: =IF(M194="","",M194-P194) ->  | T194: =IF(N194="","",N194-Q194) -> 
R195: =IF(L195="","",L195-O195) ->  | S195: =IF(M195="","",M195-P195) ->  | T195: =IF(N195="","",N195-Q195) -> 
R196: =IF(L196="","",L196-O196) ->  | S196: =IF(M196="","",M196-P196) ->  | T196: =IF(N196="","",N196-Q196) -> 
R197: =IF(L197="","",L197-O197) ->  | S197: =IF(M197="","",M197-P197) ->  | T197: =IF(N197="","",N197-Q197) -> 
R198: =IF(L198="","",L198-O198) ->  | S198: =IF(M198="","",M198-P198) ->  | T198: =IF(N198="","",N198-Q198) -> 
R199: =IF(L199="","",L199-O199) ->  | S199: =IF(M199="","",M199-P199) ->  | T199: =IF(N199="","",N199-Q199) -> 
R200: =IF(L200="","",L200-O200) ->  | S200: =IF(M200="","",M200-P200) ->  | T200: =IF(N200="","",N200-Q200) -> 
... 1556 more rows

Sheet Mill(Итог)
K10: =INDEX(Список!A1:D1000,SUMPRODUCT(ROW(Список!A1:D1000)*(Список!A1:D1000=N12)),SUMPRODUCT(COLUMN(Список!A1:D1000)*(Список!A1:D1000=N12))-3) -> АЛБАНИЯ: Суперлига
K11: =INDEX(Список!A1:D1000,SUMPRODUCT(ROW(Список!A1:D1000)*(Список!A1:D1000=N12)),SUMPRODUCT(COLUMN(Список!A1:D1000)*(Список!A1:D1000=N12))-2) -> 2019.12.23 14:00
I12: =Mill!P24 -> Флямуртари | N12: =Mill!P36 -> Теута
F13: Синдикат | K13: Mill total | Q13: Пояснение
F15: Тест №1 | G15: =Mill!M2 -> Команда 2 | K15: ТМ2,5 | M15: =Mill!W42 -> 65.6010929 | N15: ТБ2,5 | P15: =Mill!Y42 -> 34.3989071 | Q15: Тест №1 | R15: Анализ 10 последних игр дома и 10 игр в гостях
F17: Тест №2 | G17: =Mill!C39 -> Лучше взять фору 1 (+1) | K17: Mill Исход | Q17: Тест №2 | R17: Аналих 3 очных встреч
F19: Тест №3 | G19: =Mill!J49 -> Победа 1 | K19: П1 | L19: =Mill!W37 -> 22.85714286 | M19: Х | N19: =Mill!X39 -> 65.71428571 | O19: П2 | P19: =Mill!Y37 -> 11.42857143 | Q19: Тест №3 | R19: Анализ 5 последних игр 5 домашних(гостевых) и 3 очных
F21: Тест №4 | G21: =Mill!I55 -> Победа 1 | K21: MILL+(Исход) | Q21: Тест №4 | R21: Анализ по тоталам
K23: =Mill!C75 -> Наиболее веротяен исход : ФОРА 1(+1)
K25: Фут17
J27: =Mill!G90 -> ОЗ-Нет | L27: =Mill!J91 -> 1 тайм Х / Матч П 2 | P27: =Mill!H90 -> 2,5 ТМ
L29: =Mill!K89 -> 0 - 0 | N29: =Mill!K90 -> 0 - 1
L31: =Mill!I89 -> 1й забьет
L33: =Mill!I90 -> Теута

Sheet Дома (hidden)
A1: Чемпионат | B1: Дата/Время | C1: Дома | D1: Гости | E1: К1 в 1Т | F1: К2 в 1Т | G1: К1 во 2Т | H1: К2 во 2Т | I1: Где играли | J1: К1 Голов | K1: К2 Голов | L1: Забито | M1: Пропущено | N1: Результат | O1: Всего Игр | P1: Всего выиграно | Q1: Всего ничьих | R1: Всего проиграно | S1: Всего забито | T1: Всего пропущено | U1: Всего очков | V1: Дома игр | W1: Дома выиграно | X1: Дома ничьих | Y1: Дома проиграно | Z1: Дома забито | AA1: Дома пропущено | AB1: Дома очков | AC1: Гости игр | AD1: Гости выиграно | AE1: Гости ничьих | AF1: Гости проиграно | AG1: Гости забито | AH1: Гости пропущено | AI1: Гости очков | AJ1: Тотал | AL1: счёт | AO1: В | AP1: Н | AQ1: П | AR1: 2.5 + | AS1: 2.5 - | AT1: GG | AU1: NG | AY1: # | AZ1: В | BA1: Н | BB1: П | BC1: 2.5 + | BD1: 2.5 - | BE1: GG | BF1: NG
A2: АЛБАНИЯ: Суперлига | B2: 2019.12.18 18:00 | C2: Тирана | D2: Флямуртари | E2: 0 | F2: 0 | G2: 2 | H2: 0 | I2: Гости | J2: =IF(I2="","",E2+G2) -> 2 | K2: =IF(I2="","",F2+H2) -> 0 | L2: =IF(I2="","",IF(I2="Дома",J2,K2)) -> 0 | M2: =IF(I2="","",IF(I2="Дома",K2,J2)) -> 2 | N2: =IF(I2="","",IF(I2="Дома",IF(J2>K2,"В",IF(J2=K2,"Н","П")),IF(J2<K2,"В",IF(J2=K2,"Н","П")))) -> П | O2: =IF(I2="","",1) -> 1 | P2: =IF(I2="","",IF(N2="В",1,0)) -> 0 | Q2: =IF(I2="","",IF(N2="Н",1,0)) -> 0 | R2: =IF(I2="","",IF(N2="П",1,0)) -> 1 | S2: =IF(I2="","",L2) -> 0 | T2: =IF(I2="","",M2) -> 2 | U2: =IF(I2="","",P2*3+Q2) -> 0 | V2: =IF(I2="","",IF(I2="Дома",1,0)) -> 0 | W2: =IF(I2="","",IF(I2="Дома",IF(N2="В",1,0),0)) -> 0 | X2: =IF(I2="","",IF(I2="Дома",IF(N2="Н",1,0),0)) -> 0 | Y2: =IF(I2="","",IF(I2="Дома",IF(N2="П",1,0),0)) -> 0 | Z2: =IF(I2="","",IF(I2="Дома",L2,0)) -> 0 | AA2: =IF(I2="","",IF(I2="Дома",M2,0)) -> 0 | AB2: =IF(I2="","",IF(I2="Дома",W2*3+X2,0)) -> 0 | AC2: =IF(I2="","",IF(I2="Гости",1,0)) -> 1 | AD2: =IF(I2="","",IF(I2="Гости",IF(N2="В",1,0),0)) -> 0 | AE2: =IF(I2="","",IF(I2="Гости",IF(N2="Н",1,0),0)) -> 0 | AF2: =IF(I2="","",IF(I2="Гости",IF(N2="П",1,0),0)) -> 1 | AG2: =IF(I2="","",IF(I2="Гости",L2,0)) -> 0 | AH2: =IF(I2="","",IF(I2="Гости",M2,0)) -> 2 | AI2: =IF(I2="","",IF(I2="Гости",AD2*3+AE2,0)) -> 0 | AJ2: =IF(C2=D2,C2,IF(C2=D3,C2,IF(C2=C3,C2,D2))) -> Флямуртари | AL2: =CONCATENATE(J2," - ",K2) -> 2 - 0 | AO2: =COUNTIF($N$2:$N$26,AO1) -> 3 | AP2: =COUNTIF($N$2:$N$26,AP1) -> 7 | AQ2: =COUNTIF($N$2:$N$26,AQ1) -> 15 | AR2: =COUNTIF(AO4:AO18,AR1) -> 9 | AS2: =COUNTIF(AO4:AO18,AS1) -> 6 | AT2: =COUNTIF(AP4:AP18,AT1) -> 9 | AU2: =COUNTIF(AP4:AP18,AU1) -> 6 | AW2: =IF(J2+K2>2.5,"2.5 +","2.5 -") -> 2.5 - | AX2: =IF((IF(J2>=1,1,0)+IF(K2>=1,1,0))=2,"GG","NG") -> NG | AY2: =AZ2+BA2+BB2 -> 10 | AZ2: =COUNTIF($N$2:$N$11,AZ1) -> 0 | BA2: =COUNTIF($N$2:$N$11,BA1) -> 5 | BB2: =COUNTIF($N$2:$N$11,BB1) -> 5 | BC2: =COUNTIF(AW2:AW11,BC1) -> 4 | BD2: =COUNTIF(AW2:AW11,BD1) -> 6 | BE2: =COUNTIF(AX2:AX11,BE1) -> 6 | BF2: =COUNTIF(AX2:AX11,BF1) -> 4 | BG2: =N2 -> П
A3: АЛБАНИЯ: Суперлига | B3: 2019.12.14 15:00 | C3: Флямуртари | D3: Билис | E3: 1 | F3: 1 | G3: 1 | H3: 1 | I3: Дома | J3: =IF(I3="","",E3+G3) -> 2 | K3: =IF(I3="","",F3+H3) -> 2 | L3: =IF(I3="","",IF(I3="Дома",J3,K3)) -> 2 | M3: =IF(I3="","",IF(I3="Дома",K3,J3)) -> 2 | N3: =IF(I3="","",IF(I3="Дома",IF(J3>K3,"В",IF(J3=K3,"Н","П")),IF(J3<K3,"В",IF(J3=K3,"Н","П")))) -> Н | O3: =IF(I3="","",O2+1) -> 2 | P3: =IF(I3="","",IF(N3="В",P2+1,P2)) -> 0 | Q3: =IF(I3="","",IF(N3="Н",Q2+1,Q2)) -> 1 | R3: =IF(I3="","",IF(N3="П",R2+1,R2)) -> 1 | S3: =IF(I3="","",S2+L3) -> 2 | T3: =IF(I3="","",T2+M3) -> 4 | U3: =IF(I3="","",P3*3+Q3) -> 1 | V3: =IF(I3="","",IF(I3="Дома",V2+1,V2+0)) -> 1 | W3: =IF(I3="","",IF(I3="Дома",IF(N3="В",W2+1,W2),W2)) -> 0 | X3: =IF(I3="","",IF(I3="Дома",IF(N3="Н",X2+1,X2),X2)) -> 1 | Y3: =IF(I3="","",IF(I3="Дома",IF(N3="П",Y2+1,Y2),Y2)) -> 0 | Z3: =IF(I3="","",IF(I3="Дома",L3+Z2,Z2)) -> 2 | AA3: =IF(I3="","",IF(I3="Дома",M3+AA2,AA2)) -> 2 | AB3: =IF(I3="","",IF(I3="Дома",W3*3+X3,AB2)) -> 1 | AC3: =IF(I3="","",IF(I3="Гости",AC2+1,AC2+0)) -> 1 | AD3: =IF(I3="","",IF(I3="Гости",IF(N3="В",AD2+1,AD2),AD2)) -> 0 | AE3: =IF(I3="","",IF(I3="Гости",IF(N3="Н",AE2+1,AE2),AE2)) -> 0 | AF3: =IF(I3="","",IF(I3="Гости",IF(N3="П",AF2+1,AF2),AF2)) -> 1 | AG3: =IF(I3="","",IF(I3="Гости",L3+AG2,AG2)) -> 0 | AH3: =IF(I3="","",IF(I3="Гости",M3+AH2,AH2)) -> 2 | AI3: =IF(I3="","",IF(I3="Гости",AD3*3+AE3,AI2)) -> 0 | AJ3: =IF(I3="Дома",L3+M3,"") -> 4 | AL3: =CONCATENATE(J3," - ",K3) -> 2 - 2 | AW3: 2.5 + | AX3: GG | AZ3: =AZ2/$AY$2 -> 0 | BA3: 0.5 | BB3: 0.5 | BC3: 0.4 | BD3: 0.6 | BE3: 0.6 | BF3: 0.4 | BG3: =N3 -> Н
A4: АЛБАНИЯ: Суперлига | B4: 2019.12.08 15:30 | C4: Лячи | D4: Флямуртари | E4: 0 | F4: 0 | G4: 3 | H4: 0 | I4: Гости | J4: 3 | K4: 0 | L4: 0 | M4: 3 | N4: П | O4: 3 | P4: =IF(I4="","",IF(N4="В",P3+1,P3)) -> 0 | Q4: =IF(I4="","",IF(N4="Н",Q3+1,Q3)) -> 1 | R4: =IF(I4="","",IF(N4="П",R3+1,R3)) -> 2 | S4: =IF(I4="","",S3+L4) -> 2 | T4: =IF(I4="","",T3+M4) -> 7 | U4: 1 | V4: =IF(I4="","",IF(I4="Дома",V3+1,V3+0)) -> 1 | W4: =IF(I4="","",IF(I4="Дома",IF(N4="В",W3+1,W3),W3)) -> 0 | X4: =IF(I4="","",IF(I4="Дома",IF(N4="Н",X3+1,X3),X3)) -> 1 | Y4: =IF(I4="","",IF(I4="Дома",IF(N4="П",Y3+1,Y3),Y3)) -> 0 | Z4: =IF(I4="","",IF(I4="Дома",L4+Z3,Z3)) -> 2 | AA4: =IF(I4="","",IF(I4="Дома",M4+AA3,AA3)) -> 2 | AB4: =IF(I4="","",IF(I4="Дома",W4*3+X4,AB3)) -> 1 | AC4: =IF(I4="","",IF(I4="Гости",AC3+1,AC3+0)) -> 2 | AD4: =IF(I4="","",IF(I4="Гости",IF(N4="В",AD3+1,AD3),AD3)) -> 0 | AE4: =IF(I4="","",IF(I4="Гости",IF(N4="Н",AE3+1,AE3),AE3)) -> 0 | AF4: =IF(I4="","",IF(I4="Гости",IF(N4="П",AF3+1,AF3),AF3)) -> 2 | AG4: =IF(I4="","",IF(I4="Гости",L4+AG3,AG3)) -> 0 | AH4: =IF(I4="","",IF(I4="Гости",M4+AH3,AH3)) -> 5 | AI4: =IF(I4="","",IF(I4="Гости",AD4*3+AE4,AI3)) -> 0 | AL4: 3 - 0 | AO4: =IF(J2+K2>2.5,"2.5 +","2.5 -") -> 2.5 - | AP4: =IF((IF(J2>=1,1,0)+IF(K2>=1,1,0))=2,"GG","NG") -> NG | AW4: 2.5 + | AX4: NG | BG4: П
A5: АЛБАНИЯ: Суперлига | B5: 2019.11.23 15:30 | C5: Флямуртари | D5: Люфтетари Гирокастра | E5: 0 | F5: 0 | G5: 1 | H5: 1 | I5: Дома | J5: 1 | K5: 1 | L5: 1 | M5: 1 | N5: Н | O5: 4 | P5: 0 | Q5: 2 | R5: 2 | S5: 3 | T5: 8 | U5: 2 | V5: 2 | W5: 0 | X5: 2 | Y5: 0 | Z5: 3 | AA5: 3 | AB5: 2 | AC5: 2 | AD5: 0 | AE5: 0 | AF5: 2 | AG5: 0 | AH5: 5 | AI5: 0 | AJ5: 2 | AL5: 1 - 1 | AO5: =IF(J3+K3>2.5,"2.5 +","2.5 -") -> 2.5 + | AP5: =IF((IF(J3>=1,1,0)+IF(K3>=1,1,0))=2,"GG","NG") -> GG | AW5: 2.5 - | AX5: GG | BG5: Н
A6: АЛБАНИЯ: Суперлига | B6: 2019.11.10 18:30 | C6: Флямуртари | D6: Партизани | E6: 0 | F6: 0 | G6: 1 | H6: 1 | I6: Дома | J6: 1 | K6: 1 | L6: 1 | M6: 1 | N6: Н | O6: 5 | P6: 0 | Q6: 3 | R6: 2 | S6: 4 | T6: 9 | U6: 3 | V6: 3 | W6: 0 | X6: 3 | Y6: 0 | Z6: 4 | AA6: 4 | AB6: 3 | AC6: 2 | AD6: 0 | AE6: 0 | AF6: 2 | AG6: 0 | AH6: 5 | AI6: 0 | AJ6: 2 | AL6: 1 - 1 | AO6: 2.5 + | AP6: NG | AW6: 2.5 - | AX6: GG | BG6: Н
A7: АЛБАНИЯ: Суперлига | B7: 2019.11.03 16:00 | C7: Кукеси | D7: Флямуртари | E7: 0 | F7: 0 | G7: 1 | H7: 0 | I7: Гости | J7: 1 | K7: 0 | L7: 0 | M7: 1 | N7: П | O7: 6 | P7: 0 | Q7: 3 | R7: 3 | S7: 4 | T7: 10 | U7: 3 | V7: 3 | W7: 0 | X7: 3 | Y7: 0 | Z7: 4 | AA7: 4 | AB7: 3 | AC7: 3 | AD7: 0 | AE7: 0 | AF7: 3 | AG7: 0 | AH7: 6 | AI7: 0 | AL7: 1 - 0 | AO7: 2.5 - | AP7: GG | AW7: 2.5 - | AX7: NG | BG7: П
A8: АЛБАНИЯ: Суперлига | B8: 2019.10.28 20:00 | C8: Флямуртари | D8: Скендербеу | E8: 1 | F8: 1 | G8: 0 | H8: 0 | I8: Дома | J8: 1 | K8: 1 | L8: 1 | M8: 1 | N8: Н | O8: 7 | P8: 0 | Q8: 4 | R8: 3 | S8: 5 | T8: 11 | U8: 4 | V8: 4 | W8: 0 | X8: 4 | Y8: 0 | Z8: 5 | AA8: 5 | AB8: 4 | AC8: 3 | AD8: 0 | AE8: 0 | AF8: 3 | AG8: 0 | AH8: 6 | AI8: 0 | AJ8: 2 | AL8: 1 - 1 | AO8: 2.5 - | AP8: GG | AW8: 2.5 - | AX8: GG
A9: АЛБАНИЯ: Суперлига | B9: 2019.10.23 17:00 | C9: Флямуртари | D9: Влазния | E9: 1 | F9: 1 | G9: 0 | H9: 2 | I9: Дома | J9: 1 | K9: 3 | L9: 1 | M9: 3 | N9: =IF(I9="","",IF(I9="Дома",IF(J9>K9,"В",IF(J9=K9,"Н","П")),IF(J9<K9,"В",IF(J9=K9,"Н","П")))) -> П | O9: 8 | P9: 0 | Q9: 4 | R9: 4 | S9: 6 | T9: 14 | U9: 4 | V9: 5 | W9: 0 | X9: 4 | Y9: 1 | Z9: 6 | AA9: 8 | AB9: 4 | AC9: 3 | AD9: 0 | AE9: 0 | AF9: 3 | AG9: 0 | AH9: 6 | AI9: 0 | AJ9: 4 | AL9: 1 - 3 | AO9: 2.5 - | AP9: NG | AW9: 2.5 + | AX9: GG
A10: АЛБАНИЯ: Суперлига | B10: 2019.10.18 19:00 | C10: Теута | D10: Флямуртари | E10: 0 | F10: 0 | G10: 1 | H10: 0 | I10: Гости | J10: 1 | K10: 0 | L10: 0 | M10: 1 | N10: =IF(I10="","",IF(I10="Дома",IF(J10>K10,"В",IF(J10=K10,"Н","П")),IF(J10<K10,"В",IF(J10=K10,"Н","П")))) -> П | O10: 9 | P10: 0 | Q10: 4 | R10: 5 | S10: 6 | T10: 15 | U10: 4 | V10: 5 | W10: 0 | X10: 4 | Y10: 1 | Z10: 6 | AA10: 8 | AB10: 4 | AC10: 4 | AD10: 0 | AE10: 0 | AF10: 4 | AG10: 0 | AH10: 7 | AI10: 0 | AL10: 1 - 0 | AO10: 2.5 - | AP10: GG | AW10: 2.5 - | AX10: NG
A11: АЛБАНИЯ: Суперлига | B11: 2019.10.05 18:00 | C11: Флямуртари | D11: Тирана | E11: 1 | F11: 2 | G11: 1 | H11: 0 | I11: Дома | J11: 2 | K11: 2 | L11: 2 | M11: 2 | N11: Н | O11: 10 | P11: 0 | Q11: 5 | R11: 5 | S11: 8 | T11: 17 | U11: 5 | V11: 6 | W11: 0 | X11: 5 | Y11: 1 | Z11: 8 | AA11: 10 | AB11: 5 | AC11: 4 | AD11: 0 | AE11: 0 | AF11: 4 | AG11: 0 | AH11: 7 | AI11: 0 | AJ11: 4 | AL11: 2 - 2 | AO11: 2.5 + | AP11: GG | AW11: 2.5 + | AX11: GG
A12: АЛБАНИЯ: Кубок Албании | B12: 2019.10.02 15:00 | C12: Флямуртари | D12: Коплик | E12: 0 | F12: 0 | G12: 5 | H12: 0 | I12: Дома | J12: 5 | K12: 0 | L12: 5 | M12: 0 | N12: В | O12: 11 | P12: 1 | Q12: 5 | R12: 5 | S12: 13 | T12: 17 | U12: =IF(I12="","",P12*3+Q12) -> 8 | V12: 7 | W12: 1 | X12: 5 | Y12: 1 | Z12: 13 | AA12: 10 | AB12: 8 | AC12: 4 | AD12: 0 | AE12: 0 | AF12: 4 | AG12: 0 | AH12: 7 | AI12: 0 | AJ12: 5 | AL12: 5 - 0 | AO12: 2.5 - | AP12: NG
A13: АЛБАНИЯ: Суперлига | B13: 2019.09.28 17:00 | C13: Билис | D13: Флямуртари | E13: 3 | F13: 0 | G13: 2 | H13: 0 | I13: Гости | J13: 5 | K13: 0 | L13: 0 | M13: 5 | N13: П | O13: 12 | P13: 1 | Q13: 5 | R13: 6 | S13: 13 | T13: 22 | U13: 8 | V13: 7 | W13: 1 | X13: 5 | Y13: 1 | Z13: 13 | AA13: 10 | AB13: 8 | AC13: 5 | AD13: 0 | AE13: 0 | AF13: 5 | AG13: 0 | AH13: 12 | AI13: 0 | AL13: 5 - 0 | AO13: 2.5 + | AP13: GG
A14: АЛБАНИЯ: Суперлига | B14: 2019.09.22 17:00 | C14: Флямуртари | D14: Лячи | E14: 2 | F14: 1 | G14: 1 | H14: 2 | I14: Дома | J14: 3 | K14: 3 | L14: 3 | M14: 3 | N14: Н | O14: 13 | P14: 1 | Q14: 6 | R14: 6 | S14: 16 | T14: 25 | U14: 9 | V14: 8 | W14: 1 | X14: 6 | Y14: 1 | Z14: 16 | AA14: 13 | AB14: 9 | AC14: 5 | AD14: 0 | AE14: 0 | AF14: 5 | AG14: 0 | AH14: 12 | AI14: 0 | AJ14: 6 | AL14: 3 - 3 | AO14: 2.5 + | AP14: NG
A15: АЛБАНИЯ: Кубок Албании | B15: 2019.09.18 17:00 | C15: Коплик | D15: Флямуртари | E15: 1 | F15: 2 | G15: 2 | H15: 0 | I15: Гости | J15: 3 | K15: 2 | L15: 2 | M15: 3 | N15: П | O15: 14 | P15: 1 | Q15: 6 | R15: 7 | S15: 18 | T15: 28 | U15: 9 | V15: 8 | W15: 1 | X15: 6 | Y15: 1 | Z15: 16 | AA15: 13 | AB15: 9 | AC15: 6 | AD15: 0 | AE15: 0 | AF15: 6 | AG15: 2 | AH15: 15 | AI15: 0 | AL15: 3 - 2 | AO15: 2.5 + | AP15: NG
A16: АЛБАНИЯ: Суперлига | B16: 2019.09.14 17:00 | C16: Люфтетари Гирокастра | D16: Флямуртари | E16: 0 | F16: 0 | G16: 2 | H16: 1 | I16: Гости | J16: 2 | K16: 1 | L16: 1 | M16: 2 | N16: П | O16: 15 | P16: 1 | Q16: 6 | R16: 8 | S16: 19 | T16: 30 | U16: 9 | V16: 8 | W16: 1 | X16: 6 | Y16: 1 | Z16: 16 | AA16: 13 | AB16: 9 | AC16: 7 | AD16: 0 | AE16: 0 | AF16: 7 | AG16: 3 | AH16: 17 | AI16: 0 | AL16: 2 - 1 | AO16: 2.5 + | AP16: GG
A17: АЛБАНИЯ: Суперлига | B17: 2019.09.01 20:00 | C17: Партизани | D17: Флямуртари | E17: 1 | F17: 0 | G17: 0 | H17: 0 | I17: Гости | J17: 1 | K17: 0 | L17: 0 | M17: 1 | N17: П | O17: 16 | P17: 1 | Q17: 6 | R17: 9 | S17: 19 | T17: 31 | U17: 9 | V17: 8 | W17: 1 | X17: 6 | Y17: 1 | Z17: 16 | AA17: 13 | AB17: 9 | AC17: 8 | AD17: 0 | AE17: 0 | AF17: 8 | AG17: 3 | AH17: 18 | AI17: 0 | AO17: 2.5 + | AP17: GG
A18: АЛБАНИЯ: Суперлига | B18: 2019.08.28 20:00 | C18: Флямуртари | D18: Кукеси | E18: 0 | F18: 1 | G18: 0 | H18: 2 | I18: Дома | J18: 0 | K18: 3 | L18: 0 | M18: 3 | N18: П | O18: 17 | P18: 1 | Q18: 6 | R18: 10 | S18: 19 | T18: 34 | U18: 9 | V18: 9 | W18: 1 | X18: 6 | Y18: 2 | Z18: 16 | AA18: 16 | AB18: 9 | AC18: 8 | AD18: 0 | AE18: 0 | AF18: 8 | AG18: 3 | AH18: 18 | AI18: 0 | AJ18: 3 | AO18: 2.5 + | AP18: GG
A19: АЛБАНИЯ: Суперлига | B19: 2019.08.24 20:00 | C19: Скендербеу | D19: Флямуртари | E19: 0 | F19: 0 | G19: 1 | H19: 0 | I19: Гости | J19: 1 | K19: 0 | L19: 0 | M19: 1 | N19: П | O19: 18 | P19: 1 | Q19: 6 | R19: 11 | S19: 19 | T19: 35 | U19: 9 | V19: 9 | W19: 1 | X19: 6 | Y19: 2 | Z19: 16 | AA19: 16 | AB19: 9 | AC19: 9 | AD19: 0 | AE19: 0 | AF19: 9 | AG19: 3 | AH19: 19 | AI19: 0 | AR19: 2.5 + | AS19: 2.5 - | AT19: GG | AU19: NG
A20: АЛБАНИЯ: Суперлига | B20: 2019.05.30 17:00 | C20: Тирана | D20: Флямуртари | E20: 0 | F20: 0 | G20: 3 | H20: 0 | I20: Гости | J20: 3 | K20: 0 | L20: 0 | M20: 3 | N20: П | O20: 19 | P20: 1 | Q20: 6 | R20: 12 | S20: 19 | T20: 38 | U20: 9 | V20: 9 | W20: 1 | X20: 6 | Y20: 2 | Z20: 16 | AA20: 16 | AB20: 9 | AC20: 10 | AD20: 0 | AE20: 0 | AF20: 10 | AG20: 3 | AH20: 22 | AI20: 0 | AR20: =COUNTIF(AO4:AO8,AR19) -> 2 | AS20: =COUNTIF(AO4:AO8,AS19) -> 3 | AT20: =COUNTIF(AP4:AP8,AT19) -> 3 | AU20: =COUNTIF(AP4:AP8,AU19) -> 2
A21: АЛБАНИЯ: Суперлига | B21: 2019.05.25 18:00 | C21: Флямуртари | D21: Камза | E21: 0 | F21: 0 | G21: 3 | H21: 0 | I21: Дома | J21: 3 | K21: 0 | L21: 3 | M21: 0 | N21: В | O21: 20 | P21: 2 | Q21: 6 | R21: 12 | S21: 22 | T21: 38 | U21: 12 | V21: 10 | W21: 2 | X21: 6 | Y21: 2 | Z21: 19 | AA21: 16 | AB21: 12 | AC21: 10 | AD21: 0 | AE21: 0 | AF21: 10 | AG21: 3 | AH21: 22 | AI21: 0 | AJ21: 3
A22: АЛБАНИЯ: Суперлига | B22: 2019.05.18 17:30 | C22: Флямуртари | D22: Лячи | E22: 1 | F22: 0 | G22: 0 | H22: 0 | I22: Дома | J22: 1 | K22: 0 | L22: 1 | M22: 0 | N22: В | O22: 21 | P22: 3 | Q22: 6 | R22: 12 | S22: 23 | T22: 38 | U22: 15 | V22: 11 | W22: 3 | X22: 6 | Y22: 2 | Z22: 20 | AA22: 16 | AB22: 15 | AC22: 10 | AD22: 0 | AE22: 0 | AF22: 10 | AG22: 3 | AH22: 22 | AI22: 0 | AJ22: 1
A23: АЛБАНИЯ: Суперлига | B23: 2019.05.12 17:30 | C23: Кастриоти | D23: Флямуртари | E23: 1 | F23: 0 | G23: 1 | H23: 0 | I23: Гости | J23: 2 | K23: 0 | L23: 0 | M23: 2 | N23: П | O23: 22 | P23: 3 | Q23: 6 | R23: 13 | S23: 23 | T23: 40 | U23: 15 | V23: 11 | W23: 3 | X23: 6 | Y23: 2 | Z23: 20 | AA23: 16 | AB23: 15 | AC23: 11 | AD23: 0 | AE23: 0 | AF23: 11 | AG23: 3 | AH23: 24 | AI23: 0
A24: АЛБАНИЯ: Суперлига | B24: 2019.05.04 16:00 | C24: Флямуртари | D24: Партизани | E24: 0 | F24: 1 | G24: 0 | H24: 2 | I24: Дома | J24: 0 | K24: 3 | L24: 0 | M24: 3 | N24: П | O24: 23 | P24: 3 | Q24: 6 | R24: 14 | S24: 23 | T24: 43 | U24: 15 | V24: 12 | W24: 3 | X24: 6 | Y24: 3 | Z24: 20 | AA24: 19 | AB24: 15 | AC24: 11 | AD24: 0 | AE24: 0 | AF24: 11 | AG24: 3 | AH24: 24 | AI24: 0 | AJ24: 3
A25: АЛБАНИЯ: Суперлига | B25: 2019.04.28 20:00 | C25: Скендербеу | D25: Флямуртари | E25: 1 | F25: 0 | G25: 1 | H25: 0 | I25: Гости | J25: 2 | K25: 0 | L25: 0 | M25: 2 | N25: П | O25: 24 | P25: 3 | Q25: 6 | R25: 15 | S25: 23 | T25: 45 | U25: 15 | V25: 12 | W25: 3 | X25: 6 | Y25: 3 | Z25: 20 | AA25: 19 | AB25: 15 | AC25: 12 | AD25: 0 | AE25: 0 | AF25: 12 | AG25: 3 | AH25: 26 | AI25: 0
A26: АЛБАНИЯ: Суперлига | B26: 2019.04.20 20:00 | C26: Флямуртари | D26: Люфтетари Гирокастра | E26: 0 | F26: 0 | G26: 1 | H26: 1 | I26: Дома | J26: 1 | K26: 1 | L26: 1 | M26: 1 | N26: Н | O26: 25 | P26: 3 | Q26: 7 | R26: 15 | S26: 24 | T26: 46 | U26: 16 | V26: 13 | W26: 3 | X26: 7 | Y26: 3 | Z26: 21 | AA26: 20 | AB26: 16 | AC26: 12 | AD26: 0 | AE26: 0 | AF26: 12 | AG26: 3 | AH26: 26 | AI26: 0 | AJ26: 2
A27: АЛБАНИЯ: Суперлига | B27: 2019.04.14 16:45 | C27: Кукеси | D27: Флямуртари | E27: 0 | F27: 1 | G27: 1 | H27: 1 | I27: Гости | J27: 1 | K27: 2 | L27: 2 | M27: 1 | N27: В | O27: 26 | P27: 4 | Q27: 7 | R27: 15 | S27: 26 | T27: 47 | U27: 19 | V27: 13 | W27: 3 | X27: 7 | Y27: 3 | Z27: 21 | AA27: 20 | AB27: 16 | AC27: 13 | AD27: 1 | AE27: 0 | AF27: 12 | AG27: 5 | AH27: 27 | AI27: 3
A28: АЛБАНИЯ: Суперлига | B28: 2019.04.10 19:30 | C28: Флямуртари | D28: Теута | E28: 1 | F28: 0 | G28: 2 | H28: 1 | I28: Дома | J28: 3 | K28: 1 | L28: 3 | M28: 1 | N28: В | O28: 27 | P28: 5 | Q28: 7 | R28: 15 | S28: 29 | T28: 48 | U28: 22 | V28: 14 | W28: 4 | X28: 7 | Y28: 3 | Z28: 24 | AA28: 21 | AB28: 19 | AC28: 13 | AD28: 1 | AE28: 0 | AF28: 12 | AG28: 5 | AH28: 27 | AI28: 3 | AJ28: 4
A29: АЛБАНИЯ: Суперлига | B29: 2019.04.06 19:45 | C29: Флямуртари | D29: Тирана | E29: 1 | F29: 0 | G29: 0 | H29: 0 | I29: Дома | J29: 1 | K29: 0 | L29: 1 | M29: 0 | N29: В | O29: 28 | P29: 6 | Q29: 7 | R29: 15 | S29: 30 | T29: 48 | U29: 25 | V29: 15 | W29: 5 | X29: 7 | Y29: 3 | Z29: 25 | AA29: 21 | AB29: 22 | AC29: 13 | AD29: 1 | AE29: 0 | AF29: 12 | AG29: 5 | AH29: 27 | AI29: 3 | AJ29: 1
A30: АЛБАНИЯ: Суперлига | B30: 2019.03.30 19:00 | C30: Камза | D30: Флямуртари | E30: 1 | F30: 0 | G30: 0 | H30: 0 | I30: Гости | J30: 1 | K30: 0 | L30: 0 | M30: 1 | N30: П | O30: 29 | P30: 6 | Q30: 7 | R30: 16 | S30: 30 | T30: 49 | U30: 25 | V30: 15 | W30: 5 | X30: 7 | Y30: 3 | Z30: 25 | AA30: 21 | AB30: 22 | AC30: 14 | AD30: 1 | AE30: 0 | AF30: 13 | AG30: 5 | AH30: 28 | AI30: 3
A31: АЛБАНИЯ: Суперлига | B31: 2019.03.17 16:00 | C31: Лячи | D31: Флямуртари | E31: 0 | F31: 0 | G31: 0 | H31: 0 | I31: Гости | J31: 0 | K31: 0 | L31: 0 | M31: 0 | N31: Н | O31: 30 | P31: 6 | Q31: 8 | R31: 16 | S31: 30 | T31: 49 | U31: 26 | V31: 15 | W31: 5 | X31: 7 | Y31: 3 | Z31: 25 | AA31: 21 | AB31: 22 | AC31: 15 | AD31: 1 | AE31: 1 | AF31: 13 | AG31: 5 | AH31: 28 | AI31: 4
A32: АЛБАНИЯ: Суперлига | B32: 2019.03.03 19:00 | C32: Флямуртари | D32: Кастриоти | E32: 1 | F32: 0 | G32: 0 | H32: 1 | I32: Дома | J32: 1 | K32: 1 | L32: 1 | M32: 1 | N32: Н | O32: 31 | P32: 6 | Q32: 9 | R32: 16 | S32: 31 | T32: 50 | U32: 27 | V32: 16 | W32: 5 | X32: 8 | Y32: 3 | Z32: 26 | AA32: 22 | AB32: 23 | AC32: 15 | AD32: 1 | AE32: 1 | AF32: 13 | AG32: 5 | AH32: 28 | AI32: 4 | AJ32: 2
A33: АЛБАНИЯ: Суперлига | B33: 2019.02.23 19:00 | C33: Партизани | D33: Флямуртари | E33: 1 | F33: 1 | G33: 2 | H33: 0 | I33: Гости | J33: 3 | K33: 1 | L33: 1 | M33: 3 | N33: П | O33: 32 | P33: 6 | Q33: 9 | R33: 17 | S33: 32 | T33: 53 | U33: 27 | V33: 16 | W33: 5 | X33: 8 | Y33: 3 | Z33: 26 | AA33: 22 | AB33: 23 | AC33: 16 | AD33: 1 | AE33: 1 | AF33: 14 | AG33: 6 | AH33: 31 | AI33: 4
A34: АЛБАНИЯ: Суперлига | B34: 2019.02.17 19:00 | C34: Флямуртари | D34: Скендербеу | E34: 0 | F34: 0 | G34: 2 | H34: 0 | I34: Дома | J34: 2 | K34: 0 | L34: 2 | M34: 0 | N34: В | O34: 33 | P34: 7 | Q34: 9 | R34: 17 | S34: 34 | T34: 53 | U34: 30 | V34: 17 | W34: 6 | X34: 8 | Y34: 3 | Z34: 28 | AA34: 22 | AB34: 26 | AC34: 16 | AD34: 1 | AE34: 1 | AF34: 14 | AG34: 6 | AH34: 31 | AI34: 4 | AJ34: 2
A35: АЛБАНИЯ: Суперлига | B35: 2019.02.10 16:00 | C35: Люфтетари Гирокастра | D35: Флямуртари | E35: 0 | F35: 0 | G35: 0 | H35: 0 | I35: Гости | J35: 0 | K35: 0 | L35: 0 | M35: 0 | N35: Н | O35: =IF(I35="","",O34+1) -> 34 | P35: 7 | Q35: 10 | R35: 17 | S35: 34 | T35: 53 | U35: 31 | V35: 17 | W35: 6 | X35: 8 | Y35: 3 | Z35: 28 | AA35: 22 | AB35: 26 | AC35: 17 | AD35: 1 | AE35: 2 | AF35: 14 | AG35: 6 | AH35: 31 | AI35: 5
A36: АЛБАНИЯ: Кубок Албании | B36: 2019.02.06 15:30 | C36: Флямуртари | D36: Тирана | E36: 0 | F36: 0 | G36: 1 | H36: 0 | I36: Дома | J36: 1 | K36: 0 | L36: 1 | M36: 0 | N36: В | O36: 35 | P36: 8 | Q36: 10 | R36: 17 | S36: 35 | T36: 53 | U36: 34 | V36: 18 | W36: 7 | X36: 8 | Y36: 3 | Z36: 29 | AA36: 22 | AB36: 29 | AC36: 17 | AD36: 1 | AE36: 2 | AF36: 14 | AG36: 6 | AH36: 31 | AI36: 5 | AJ36: 1
A37: АЛБАНИЯ: Суперлига | B37: 2019.02.02 19:00 | C37: Флямуртари | D37: Кукеси | E37: 1 | F37: 2 | G37: 0 | H37: 0 | I37: Дома | J37: 1 | K37: 2 | L37: 1 | M37: 2 | N37: П | O37: 36 | P37: 8 | Q37: 10 | R37: 18 | S37: 36 | T37: 55 | U37: 34 | V37: 19 | W37: 7 | X37: 8 | Y37: 4 | Z37: 30 | AA37: 24 | AB37: 29 | AC37: 17 | AD37: 1 | AE37: 2 | AF37: 14 | AG37: 6 | AH37: 31 | AI37: 5 | AJ37: 3
A38: АЛБАНИЯ: Суперлига | B38: 2019.01.27 19:00 | C38: Теута | D38: Флямуртари | E38: 1 | F38: 1 | G38: 0 | H38: 0 | I38: Гости | J38: 1 | K38: 1 | L38: 1 | M38: 1 | N38: Н | O38: 37 | P38: 8 | Q38: 11 | R38: 18 | S38: 37 | T38: 56 | U38: 35 | V38: 19 | W38: 7 | X38: 8 | Y38: 4 | Z38: 30 | AA38: 24 | AB38: 29 | AC38: 18 | AD38: 1 | AE38: 3 | AF38: 14 | AG38: 7 | AH38: 32 | AI38: 6
A39: АЛБАНИЯ: Кубок Албании | B39: 2019.01.24 15:00 | C39: Тирана | D39: Флямуртари | E39: 2 | F39: 0 | G39: 0 | H39: 0 | I39: Гости | J39: 2 | K39: 0 | L39: 0 | M39: 2 | N39: П | O39: 38 | P39: 8 | Q39: 11 | R39: 19 | S39: 37 | T39: 58 | U39: 35 | V39: 19 | W39: 7 | X39: 8 | Y39: 4 | Z39: 30 | AA39: 24 | AB39: 29 | AC39: 19 | AD39: 1 | AE39: 3 | AF39: 15 | AG39: 7 | AH39: 34 | AI39: 6
A40: АЛБАНИЯ: Суперлига | B40: 2018.12.21 18:30 | C40: Тирана | D40: Флямуртари | E40: 0 | F40: 0 | G40: 1 | H40: 0 | I40: Гости | J40: 1 | K40: 0 | L40: 0 | M40: 1 | N40: П | O40: 39 | P40: 8 | Q40: 11 | R40: 20 | S40: 37 | T40: 59 | U40: 35 | V40: 19 | W40: 7 | X40: 8 | Y40: 4 | Z40: 30 | AA40: 24 | AB40: 29 | AC40: 20 | AD40: 1 | AE40: 3 | AF40: 16 | AG40: 7 | AH40: 35 | AI40: 6
A41: АЛБАНИЯ: Суперлига | B41: 2018.12.15 19:00 | C41: Флямуртари | D41: Камза | E41: 0 | F41: 0 | G41: 1 | H41: 0 | I41: Дома | J41: 1 | K41: 0 | L41: 1 | M41: 0 | N41: В | O41: 40 | P41: 9 | Q41: 11 | R41: 20 | S41: 38 | T41: 59 | U41: 38 | V41: 20 | W41: 8 | X41: 8 | Y41: 4 | Z41: 31 | AA41: 24 | AB41: 32 | AC41: 20 | AD41: 1 | AE41: 3 | AF41: 16 | AG41: 7 | AH41: 35 | AI41: 6 | AJ41: 1
J67: =IF(I67="","",E67+G67) ->  | K67: =IF(I67="","",F67+H67) ->  | L67: =IF(I67="","",IF(I67="Дома",J67,K67)) ->  | M67: =IF(I67="","",IF(I67="Дома",K67,J67)) ->  | O67: =IF(I67="","",O66+1) ->  | U67: =IF(I67="","",P67*3+Q67) ->  | AJ67: =IF(I67="Дома",L67+M67,"") -> 
P68: =IF(I68="","",IF(N68="В",P67+1,P67)) ->  | Q68: =IF(I68="","",IF(N68="Н",Q67+1,Q67)) ->  | R68: =IF(I68="","",IF(N68="П",R67+1,R67)) ->  | S68: =IF(I68="","",S67+L68) ->  | T68: =IF(I68="","",T67+M68) ->  | V68: =IF(I68="","",IF(I68="Дома",V67+1,V67+0)) ->  | W68: =IF(I68="","",IF(I68="Дома",IF(N68="В",W67+1,W67),W67)) ->  | X68: =IF(I68="","",IF(I68="Дома",IF(N68="Н",X67+1,X67),X67)) ->  | Y68: =IF(I68="","",IF(I68="Дома",IF(N68="П",Y67+1,Y67),Y67)) ->  | Z68: =IF(I68="","",IF(I68="Дома",L68+Z67,Z67)) ->  | AA68: =IF(I68="","",IF(I68="Дома",M68+AA67,AA67)) ->  | AB68: =IF(I68="","",IF(I68="Дома",W68*3+X68,AB67)) ->  | AC68: =IF(I68="","",IF(I68="Гости",AC67+1,AC67+0)) ->  | AD68: =IF(I68="","",IF(I68="Гости",IF(N68="В",AD67+1,AD67),AD67)) ->  | AE68: =IF(I68="","",IF(I68="Гости",IF(N68="Н",AE67+1,AE67),AE67)) ->  | AF68: =IF(I68="","",IF(I68="Гости",IF(N68="П",AF67+1,AF67),AF67)) ->  | AG68: =IF(I68="","",IF(I68="Гости",L68+AG67,AG67)) ->  | AH68: =IF(I68="","",IF(I68="Гости",M68+AH67,AH67)) ->  | AI68: =IF(I68="","",IF(I68="Гости",AD68*3+AE68,AI67)) -> 
N74: =IF(I74="","",IF(I74="Дома",IF(J74>K74,"В",IF(J74=K74,"Н","П")),IF(J74<K74,"В",IF(J74=K74,"Н","П")))) -> 
O99: =IF(I99="","",O98+1) -> 
J131: =IF(I131="","",E131+G131) ->  | K131: =IF(I131="","",F131+H131) ->  | L131: =IF(I131="","",IF(I131="Дома",J131,K131)) ->  | M131: =IF(I131="","",IF(I131="Дома",K131,J131)) ->  | O131: =IF(I131="","",O130+1) ->  | U131: =IF(I131="","",P131*3+Q131) ->  | AJ131: =IF(I131="Дома",L131+M131,"") -> 
P132: =IF(I132="","",IF(N132="В",P131+1,P131)) ->  | Q132: =IF(I132="","",IF(N132="Н",Q131+1,Q131)) ->  | R132: =IF(I132="","",IF(N132="П",R131+1,R131)) ->  | S132: =IF(I132="","",S131+L132) ->  | T132: =IF(I132="","",T131+M132) ->  | V132: =IF(I132="","",IF(I132="Дома",V131+1,V131+0)) ->  | W132: =IF(I132="","",IF(I132="Дома",IF(N132="В",W131+1,W131),W131)) ->  | X132: =IF(I132="","",IF(I132="Дома",IF(N132="Н",X131+1,X131),X131)) ->  | Y132: =IF(I132="","",IF(I132="Дома",IF(N132="П",Y131+1,Y131),Y131)) ->  | Z132: =IF(I132="","",IF(I132="Дома",L132+Z131,Z131)) ->  | AA132: =IF(I132="","",IF(I132="Дома",M132+AA131,AA131)) ->  | AB132: =IF(I132="","",IF(I132="Дома",W132*3+X132,AB131)) ->  | AC132: =IF(I132="","",IF(I132="Гости",AC131+1,AC131+0)) ->  | AD132: =IF(I132="","",IF(I132="Гости",IF(N132="В",AD131+1,AD131),AD131)) ->  | AE132: =IF(I132="","",IF(I132="Гости",IF(N132="Н",AE131+1,AE131),AE131)) ->  | AF132: =IF(I132="","",IF(I132="Гости",IF(N132="П",AF131+1,AF131),AF131)) ->  | AG132: =IF(I132="","",IF(I132="Гости",L132+AG131,AG131)) ->  | AH132: =IF(I132="","",IF(I132="Гости",M132+AH131,AH131)) ->  | AI132: =IF(I132="","",IF(I132="Гости",AD132*3+AE132,AI131)) -> 
N138: =IF(I138="","",IF(I138="Дома",IF(J138>K138,"В",IF(J138=K138,"Н","П")),IF(J138<K138,"В",IF(J138=K138,"Н","П")))) -> 

Sheet Гости (hidden)
A1: Чемпионат | B1: Дата/Время | C1: Дома | D1: Гости | E1: К1 в 1Т | F1: К2 в 1Т | G1: К1 во 2Т | H1: К2 во 2Т | I1: Где играли | J1: К1 Голов | K1: К2 Голов | L1: Забито | M1: Пропущено | N1: Результат | O1: Всего Игр | P1: Всего выиграно | Q1: Всего ничьих | R1: Всего проиграно | S1: Всего забито | T1: Всего пропущено | U1: Всего очков | V1: Дома игр | W1: Дома выиграно | X1: Дома ничьих | Y1: Дома проиграно | Z1: Дома забито | AA1: Дома пропущено | AB1: Дома очков | AC1: Гости игр | AD1: Гости выиграно | AE1: Гости ничьих | AF1: Гости проиграно | AG1: Гости забито | AH1: Гости пропущено | AI1: Гости очков | AJ1: Тотал | AK1: =IF(C2=D2,C2,IF(C2=D3,C2,IF(C2=C3,C2,D2))) -> Теута | AL1: счёт | AO1: В | AP1: Н | AQ1: П | AR1: 2.5 + | AS1: 2.5 - | AT1: GG | AU1: NG | AW1: =IF(J2+K2>2.5,"2.5 +","2.5 -") -> 2.5 - | AX1: =IF((IF(J2>=1,1,0)+IF(K2>=1,1,0))=2,"GG","NG") -> NG | AY1: # | AZ1: В | BA1: Н | BB1: П | BC1: 2.5 + | BD1: 2.5 - | BE1: GG | BF1: NG
A2: АЛБАНИЯ: Суперлига | B2: 2019.12.18 15:00 | C2: Теута | D2: Партизани | E2: 1 | F2: 0 | G2: 0 | H2: 0 | I2: Дома | J2: =IF(I2="","",E2+G2) -> 1 | K2: =IF(I2="","",F2+H2) -> 0 | L2: =IF(I2="","",IF(I2="Дома",J2,K2)) -> 1 | M2: =IF(I2="","",IF(I2="Дома",K2,J2)) -> 0 | N2: =IF(I2="","",IF(I2="Дома",IF(J2>K2,"В",IF(J2=K2,"Н","П")),IF(J2<K2,"В",IF(J2=K2,"Н","П")))) -> В | O2: =IF(I2="","",1) -> 1 | P2: =IF(I2="","",IF(N2="В",1,0)) -> 1 | Q2: =IF(I2="","",IF(N2="Н",1,0)) -> 0 | R2: =IF(I2="","",IF(N2="П",1,0)) -> 0 | S2: =IF(I2="","",L2) -> 1 | T2: =IF(I2="","",M2) -> 0 | U2: =IF(I2="","",P2*3+Q2) -> 3 | V2: =IF(I2="","",IF(I2="Дома",1,0)) -> 1 | W2: =IF(I2="","",IF(I2="Дома",IF(N2="В",1,0),0)) -> 1 | X2: =IF(I2="","",IF(I2="Дома",IF(N2="Н",1,0),0)) -> 0 | Y2: =IF(I2="","",IF(I2="Дома",IF(N2="П",1,0),0)) -> 0 | Z2: =IF(I2="","",IF(I2="Дома",L2,0)) -> 1 | AA2: =IF(I2="","",IF(I2="Дома",M2,0)) -> 0 | AB2: =IF(I2="","",IF(I2="Дома",W2*3+X2,0)) -> 3 | AC2: =IF(I2="","",IF(I2="Гости",1,0)) -> 0 | AD2: =IF(I2="","",IF(I2="Гости",IF(N2="В",1,0),0)) -> 0 | AE2: =IF(I2="","",IF(I2="Гости",IF(N2="Н",1,0),0)) -> 0 | AF2: =IF(I2="","",IF(I2="Гости",IF(N2="П",1,0),0)) -> 0 | AG2: =IF(I2="","",IF(I2="Гости",L2,0)) -> 0 | AH2: =IF(I2="","",IF(I2="Гости",M2,0)) -> 0 | AI2: =IF(I2="","",IF(I2="Гости",AD2*3+AE2,0)) -> 0 | AJ2: =IF(I2="Гости",L2+M2,"") ->  | AL2: =CONCATENATE(J2," - ",K2) -> 1 - 0 | AO2: =COUNTIF($N$2:$N$26,AO1) -> 13 | AP2: =COUNTIF($N$2:$N$26,AP1) -> 7 | AQ2: =COUNTIF($N$2:$N$26,AQ1) -> 5 | AR2: =COUNTIF(AO4:AO18,AR1) -> 3 | AS2: =COUNTIF(AO4:AO18,AS1) -> 12 | AT2: =COUNTIF(AP4:AP18,AT1) -> 3 | AU2: =COUNTIF(AP4:AP18,AU1) -> 12 | AW2: 2.5 + | AX2: NG | AY2: =AZ2+BA2+BB2 -> 10 | AZ2: =COUNTIF($N$2:$N$11,AZ1) -> 3 | BA2: =COUNTIF($N$2:$N$11,BA1) -> 5 | BB2: =COUNTIF($N$2:$N$11,BB1) -> 2 | BC2: =COUNTIF(AW1:AW10,BC1) -> 2 | BD2: =COUNTIF(AW1:AW10,BD1) -> 8 | BE2: =COUNTIF(AX1:AX10,BE1) -> 2 | BF2: =COUNTIF(AX1:AX10,BF1) -> 8 | BG2: =J2 -> 1 | BH2: =LEFT(L2,5) -> 1
A3: АЛБАНИЯ: Суперлига | B3: 2019.12.14 18:00 | C3: Кукеси | D3: Теута | E3: 1 | F3: 0 | G3: 3 | H3: 0 | I3: Гости | J3: =IF(I3="","",E3+G3) -> 4 | K3: =IF(I3="","",F3+H3) -> 0 | L3: =IF(I3="","",IF(I3="Дома",J3,K3)) -> 0 | M3: =IF(I3="","",IF(I3="Дома",K3,J3)) -> 4 | N3: =IF(I3="","",IF(I3="Дома",IF(J3>K3,"В",IF(J3=K3,"Н","П")),IF(J3<K3,"В",IF(J3=K3,"Н","П")))) -> П | O3: =IF(I3="","",O2+1) -> 2 | P3: =IF(I3="","",IF(N3="В",P2+1,P2)) -> 1 | Q3: =IF(I3="","",IF(N3="Н",Q2+1,Q2)) -> 0 | R3: =IF(I3="","",IF(N3="П",R2+1,R2)) -> 1 | S3: =IF(I3="","",S2+L3) -> 1 | T3: =IF(I3="","",T2+M3) -> 4 | U3: =IF(I3="","",P3*3+Q3) -> 3 | V3: =IF(I3="","",IF(I3="Дома",V2+1,V2+0)) -> 1 | W3: =IF(I3="","",IF(I3="Дома",IF(N3="В",W2+1,W2),W2)) -> 1 | X3: =IF(I3="","",IF(I3="Дома",IF(N3="Н",X2+1,X2),X2)) -> 0 | Y3: =IF(I3="","",IF(I3="Дома",IF(N3="П",Y2+1,Y2),Y2)) -> 0 | Z3: =IF(I3="","",IF(I3="Дома",L3+Z2,Z2)) -> 1 | AA3: =IF(I3="","",IF(I3="Дома",M3+AA2,AA2)) -> 0 | AB3: =IF(I3="","",IF(I3="Дома",W3*3+X3,AB2)) -> 3 | AC3: =IF(I3="","",IF(I3="Гости",AC2+1,AC2+0)) -> 1 | AD3: =IF(I3="","",IF(I3="Гости",IF(N3="В",AD2+1,AD2),AD2)) -> 0 | AE3: =IF(I3="","",IF(I3="Гости",IF(N3="Н",AE2+1,AE2),AE2)) -> 0 | AF3: =IF(I3="","",IF(I3="Гости",IF(N3="П",AF2+1,AF2),AF2)) -> 1 | AG3: =IF(I3="","",IF(I3="Гости",L3+AG2,AG2)) -> 0 | AH3: =IF(I3="","",IF(I3="Гости",M3+AH2,AH2)) -> 4 | AI3: =IF(I3="","",IF(I3="Гости",AD3*3+AE3,AI2)) -> 0 | AJ3: =IF(I3="Гости",L3+M3,"") -> 4 | AL3: =CONCATENATE(J3," - ",K3) -> 4 - 0 | AW3: 2.5 - | AX3: NG | AZ3: =AZ2/$AY$2 -> 0.3 | BA3: 0.5 | BB3: 0.2 | BC3: 0.2 | BD3: 0.8 | BE3: 0.2 | BF3: 0.8 | BG3: 4 | BH3: 0
A4: АЛБАНИЯ: Суперлига | B4: 2019.12.08 18:30 | C4: Теута | D4: Скендербеу | E4: 0 | F4: 0 | G4: 1 | H4: 0 | I4: Дома | J4: 1 | K4: 0 | L4: 1 | M4: 0 | N4: В | O4: 3 | P4: =IF(I4="","",IF(N4="В",P3+1,P3)) -> 2 | Q4: =IF(I4="","",IF(N4="Н",Q3+1,Q3)) -> 0 | R4: =IF(I4="","",IF(N4="П",R3+1,R3)) -> 1 | S4: =IF(I4="","",S3+L4) -> 2 | T4: =IF(I4="","",T3+M4) -> 4 | U4: 6 | V4: =IF(I4="","",IF(I4="Дома",V3+1,V3+0)) -> 2 | W4: =IF(I4="","",IF(I4="Дома",IF(N4="В",W3+1,W3),W3)) -> 2 | X4: =IF(I4="","",IF(I4="Дома",IF(N4="Н",X3+1,X3),X3)) -> 0 | Y4: =IF(I4="","",IF(I4="Дома",IF(N4="П",Y3+1,Y3),Y3)) -> 0 | Z4: =IF(I4="","",IF(I4="Дома",L4+Z3,Z3)) -> 2 | AA4: =IF(I4="","",IF(I4="Дома",M4+AA3,AA3)) -> 0 | AB4: =IF(I4="","",IF(I4="Дома",W4*3+X4,AB3)) -> 6 | AC4: =IF(I4="","",IF(I4="Гости",AC3+1,AC3+0)) -> 1 | AD4: =IF(I4="","",IF(I4="Гости",IF(N4="В",AD3+1,AD3),AD3)) -> 0 | AE4: =IF(I4="","",IF(I4="Гости",IF(N4="Н",AE3+1,AE3),AE3)) -> 0 | AF4: =IF(I4="","",IF(I4="Гости",IF(N4="П",AF3+1,AF3),AF3)) -> 1 | AG4: =IF(I4="","",IF(I4="Гости",L4+AG3,AG3)) -> 0 | AH4: =IF(I4="","",IF(I4="Гости",M4+AH3,AH3)) -> 4 | AI4: =IF(I4="","",IF(I4="Гости",AD4*3+AE4,AI3)) -> 0 | AL4: 1 - 0 | AO4: =IF(J2+K2>2.5,"2.5 +","2.5 -") -> 2.5 - | AP4: =IF((IF(J2>=1,1,0)+IF(K2>=1,1,0))=2,"GG","NG") -> NG | AW4: 2.5 - | AX4: NG | BG4: 1 | BH4: 1
A5: АЛБАНИЯ: Суперлига | B5: 2019.11.24 18:30 | C5: Влазния | D5: Теута | E5: 0 | F5: 0 | G5: 0 | H5: 0 | I5: Гости | J5: 0 | K5: 0 | L5: 0 | M5: 0 | N5: Н | O5: 4 | P5: 2 | Q5: 1 | R5: 1 | S5: 2 | T5: 4 | U5: 7 | V5: 2 | W5: 2 | X5: 0 | Y5: 0 | Z5: 2 | AA5: 0 | AB5: 6 | AC5: 2 | AD5: 0 | AE5: 1 | AF5: 1 | AG5: 0 | AH5: 4 | AI5: 1 | AJ5: 0 | AL5: 0 - 0 | AO5: =IF(J3+K3>2.5,"2.5 +","2.5 -") -> 2.5 + | AP5: =IF((IF(J3>=1,1,0)+IF(K3>=1,1,0))=2,"GG","NG") -> NG | AW5: 2.5 - | AX5: NG | BG5: 0 | BH5: 0
A6: АЛБАНИЯ: Суперлига | B6: 2019.11.09 15:30 | C6: Люфтетари Гирокастра | D6: Теута | E6: 0 | F6: 0 | G6: 0 | H6: 0 | I6: Гости | J6: 0 | K6: 0 | L6: 0 | M6: 0 | N6: Н | O6: 5 | P6: 2 | Q6: 2 | R6: 1 | S6: 2 | T6: 4 | U6: 8 | V6: 2 | W6: 2 | X6: 0 | Y6: 0 | Z6: 2 | AA6: 0 | AB6: 6 | AC6: 3 | AD6: 0 | AE6: 2 | AF6: 1 | AG6: 0 | AH6: 4 | AI6: 2 | AJ6: 0 | AL6: 0 - 0 | AO6: 2.5 - | AP6: NG | AW6: 2.5 - | AX6: GG | BG6: 0 | BH6: 0
A7: АЛБАНИЯ: Суперлига | B7: 2019.11.02 19:00 | C7: Теута | D7: Тирана | E7: 0 | F7: 1 | G7: 1 | H7: 0 | I7: Дома | J7: 1 | K7: 1 | L7: 1 | M7: 1 | N7: Н | O7: 6 | P7: 2 | Q7: 3 | R7: 1 | S7: 3 | T7: 5 | U7: 9 | V7: 3 | W7: 2 | X7: 1 | Y7: 0 | Z7: 3 | AA7: 1 | AB7: 7 | AC7: 3 | AD7: 0 | AE7: 2 | AF7: 1 | AG7: 0 | AH7: 4 | AI7: 2 | AL7: 1 - 1 | AO7: 2.5 - | AP7: NG | AW7: 2.5 - | AX7: NG | BG7: 1 | BH7: 1
A8: АЛБАНИЯ: Суперлига | B8: 2019.10.27 15:00 | C8: Билис | D8: Теута | E8: 0 | F8: 0 | G8: 0 | H8: 0 | I8: Гости | J8: 0 | K8: 0 | L8: 0 | M8: 0 | N8: Н | O8: 7 | P8: 2 | Q8: 4 | R8: 1 | S8: 3 | T8: 5 | U8: 10 | V8: 3 | W8: 2 | X8: 1 | Y8: 0 | Z8: 3 | AA8: 1 | AB8: 7 | AC8: 4 | AD8: 0 | AE8: 3 | AF8: 1 | AG8: 0 | AH8: 4 | AI8: 3 | AJ8: 0 | AL8: 0 - 0 | AO8: 2.5 - | AP8: NG | AW8: 2.5 + | AX8: NG
A9: АЛБАНИЯ: Суперлига | B9: 2019.10.23 14:00 | C9: Лячи | D9: Теута | E9: 2 | F9: 0 | G9: 1 | H9: 0 | I9: Гости | J9: 3 | K9: 0 | L9: 0 | M9: 3 | N9: =IF(I9="","",IF(I9="Дома",IF(J9>K9,"В",IF(J9=K9,"Н","П")),IF(J9<K9,"В",IF(J9=K9,"Н","П")))) -> П | O9: 8 | P9: 2 | Q9: 4 | R9: 2 | S9: 3 | T9: 8 | U9: 10 | V9: 3 | W9: 2 | X9: 1 | Y9: 0 | Z9: 3 | AA9: 1 | AB9: 7 | AC9: 5 | AD9: 0 | AE9: 3 | AF9: 2 | AG9: 0 | AH9: 7 | AI9: 3 | AJ9: 3 | AL9: 3 - 0 | AO9: 2.5 - | AP9: GG | AW9: 2.5 - | AX9: NG
A10: АЛБАНИЯ: Суперлига | B10: 2019.10.18 19:00 | C10: Теута | D10: Флямуртари | E10: 0 | F10: 0 | G10: 1 | H10: 0 | I10: Дома | J10: 1 | K10: 0 | L10: 1 | M10: 0 | N10: =IF(I10="","",IF(I10="Дома",IF(J10>K10,"В",IF(J10=K10,"Н","П")),IF(J10<K10,"В",IF(J10=K10,"Н","П")))) -> В | O10: 9 | P10: 3 | Q10: 4 | R10: 2 | S10: 4 | T10: 8 | U10: 13 | V10: 4 | W10: 3 | X10: 1 | Y10: 0 | Z10: 4 | AA10: 1 | AB10: 10 | AC10: 5 | AD10: 0 | AE10: 3 | AF10: 2 | AG10: 0 | AH10: 7 | AI10: 3 | AL10: 1 - 0 | AO10: 2.5 - | AP10: NG | AW10: 2.5 - | AX10: GG
A11: АЛБАНИЯ: Суперлига | B11: 2019.10.05 18:00 | C11: Партизани | D11: Теута | E11: 1 | F11: 1 | G11: 0 | H11: 0 | I11: Гости | J11: 1 | K11: 1 | L11: 1 | M11: 1 | N11: Н | O11: 10 | P11: 3 | Q11: 5 | R11: 2 | S11: 5 | T11: 9 | U11: 14 | V11: 4 | W11: 3 | X11: 1 | Y11: 0 | Z11: 4 | AA11: 1 | AB11: 10 | AC11: 6 | AD11: 0 | AE11: 4 | AF11: 2 | AG11: 1 | AH11: 8 | AI11: 4 | AJ11: 2 | AL11: 1 - 1 | AO11: 2.5 + | AP11: NG
A12: АЛБАНИЯ: Кубок Албании | B12: 2019.10.02 15:00 | C12: Теута | D12: Тербуни | E12: 2 | F12: 1 | G12: 4 | H12: 1 | I12: Дома | J12: 6 | K12: 2 | L12: 6 | M12: 2 | N12: В | O12: 11 | P12: 4 | Q12: 5 | R12: 2 | S12: 11 | T12: 11 | U12: =IF(I12="","",P12*3+Q12) -> 17 | V12: 5 | W12: 4 | X12: 1 | Y12: 0 | Z12: 10 | AA12: 3 | AB12: 13 | AC12: 6 | AD12: 0 | AE12: 4 | AF12: 2 | AG12: 1 | AH12: 8 | AI12: 4 | AL12: 6 - 2 | AO12: 2.5 - | AP12: NG
A13: АЛБАНИЯ: Суперлига | B13: 2019.09.28 17:00 | C13: Теута | D13: Кукеси | E13: 0 | F13: 0 | G13: 1 | H13: 0 | I13: Дома | J13: 1 | K13: 0 | L13: 1 | M13: 0 | N13: В | O13: 12 | P13: 5 | Q13: 5 | R13: 2 | S13: 12 | T13: 11 | U13: 20 | V13: 6 | W13: 5 | X13: 1 | Y13: 0 | Z13: 11 | AA13: 3 | AB13: 16 | AC13: 6 | AD13: 0 | AE13: 4 | AF13: 2 | AG13: 1 | AH13: 8 | AI13: 4 | AL13: 1 - 0 | AO13: 2.5 - | AP13: GG
A14: АЛБАНИЯ: Суперлига | B14: 2019.09.21 17:00 | C14: Скендербеу | D14: Теута | E14: 1 | F14: 0 | G14: 0 | H14: 0 | I14: Гости | J14: 1 | K14: 0 | L14: 0 | M14: 1 | N14: П | O14: 13 | P14: 5 | Q14: 5 | R14: 3 | S14: 12 | T14: 12 | U14: 20 | V14: 6 | W14: 5 | X14: 1 | Y14: 0 | Z14: 11 | AA14: 3 | AB14: 16 | AC14: 7 | AD14: 0 | AE14: 4 | AF14: 3 | AG14: 1 | AH14: 9 | AI14: 4 | AJ14: 1 | AL14: 1 - 0 | AO14: 2.5 + | AP14: GG
A15: АЛБАНИЯ: Кубок Албании | B15: 2019.09.18 17:00 | C15: Тербуни | D15: Теута | E15: 0 | F15: 0 | G15: 0 | H15: 2 | I15: Гости | J15: 0 | K15: 2 | L15: 2 | M15: 0 | N15: В | O15: 14 | P15: 6 | Q15: 5 | R15: 3 | S15: 14 | T15: 12 | U15: 23 | V15: 6 | W15: 5 | X15: 1 | Y15: 0 | Z15: 11 | AA15: 3 | AB15: 16 | AC15: 8 | AD15: 1 | AE15: 4 | AF15: 3 | AG15: 3 | AH15: 9 | AI15: 7 | AJ15: 2 | AL15: 0 - 2 | AO15: 2.5 - | AP15: NG
A16: АЛБАНИЯ: Суперлига | B16: 2019.09.14 17:00 | C16: Теута | D16: Влазния | E16: 0 | F16: 0 | G16: 0 | H16: 0 | I16: Дома | J16: 0 | K16: 0 | L16: 0 | M16: 0 | N16: Н | O16: 15 | P16: 6 | Q16: 6 | R16: 3 | S16: 14 | T16: 12 | U16: 24 | V16: 7 | W16: 5 | X16: 2 | Y16: 0 | Z16: 11 | AA16: 3 | AB16: 17 | AC16: 8 | AD16: 1 | AE16: 4 | AF16: 3 | AG16: 3 | AH16: 9 | AI16: 7 | AL16: 0 - 0 | AO16: 2.5 - | AP16: NG
A17: АЛБАНИЯ: Суперлига | B17: 2019.08.31 20:00 | C17: Теута | D17: Люфтетари Гирокастра | E17: 2 | F17: 0 | G17: 1 | H17: 1 | I17: Дома | J17: 3 | K17: 1 | L17: 3 | M17: 1 | N17: В | O17: 16 | P17: 7 | Q17: 6 | R17: 3 | S17: 17 | T17: 13 | U17: 27 | V17: 8 | W17: 6 | X17: 2 | Y17: 0 | Z17: 14 | AA17: 4 | AB17: 20 | AC17: 8 | AD17: 1 | AE17: 4 | AF17: 3 | AG17: 3 | AH17: 9 | AI17: 7 | AO17: 2.5 - | AP17: NG
A18: АЛБАНИЯ: Суперлига | B18: 2019.08.27 20:00 | C18: Тирана | D18: Теута | E18: 0 | F18: 0 | G18: 0 | H18: 0 | I18: Гости | J18: 0 | K18: 0 | L18: 0 | M18: 0 | N18: Н | O18: 17 | P18: 7 | Q18: 7 | R18: 3 | S18: 17 | T18: 13 | U18: 28 | V18: 8 | W18: 6 | X18: 2 | Y18: 0 | Z18: 14 | AA18: 4 | AB18: 20 | AC18: 9 | AD18: 1 | AE18: 5 | AF18: 3 | AG18: 3 | AH18: 9 | AI18: 8 | AJ18: 0 | AO18: 2.5 - | AP18: NG
A19: АЛБАНИЯ: Суперлига | B19: 2019.08.24 20:00 | C19: Теута | D19: Билис | E19: 1 | F19: 0 | G19: 0 | H19: 0 | I19: Дома | J19: 1 | K19: 0 | L19: 1 | M19: 0 | N19: В | O19: 18 | P19: 8 | Q19: 7 | R19: 3 | S19: 18 | T19: 13 | U19: 31 | V19: 9 | W19: 7 | X19: 2 | Y19: 0 | Z19: 15 | AA19: 4 | AB19: 23 | AC19: 9 | AD19: 1 | AE19: 5 | AF19: 3 | AG19: 3 | AH19: 9 | AI19: 8 | AR19: 2.5 + | AS19: 2.5 - | AT19: GG | AU19: NG
A20: ЕВРОПА: Лига Европы - Квалификация | B20: 2019.07.18 18:00 | C20: Теута | D20: Вентспилс | E20: 0 | F20: 0 | G20: 1 | H20: 0 | I20: Дома | J20: 1 | K20: 0 | L20: 1 | M20: 0 | N20: В | O20: 19 | P20: 9 | Q20: 7 | R20: 3 | S20: 19 | T20: 13 | U20: 34 | V20: 10 | W20: 8 | X20: 2 | Y20: 0 | Z20: 16 | AA20: 4 | AB20: 26 | AC20: 9 | AD20: 1 | AE20: 5 | AF20: 3 | AG20: 3 | AH20: 9 | AI20: 8 | AR20: =COUNTIF(AO4:AO8,AR19) -> 1 | AS20: =COUNTIF(AO4:AO8,AS19) -> 4 | AT20: =COUNTIF(AP4:AP8,AT19) -> 0 | AU20: =COUNTIF(AP4:AP8,AU19) -> 5
A21: ЕВРОПА: Лига Европы - Квалификация | B21: 2019.07.11 17:45 | C21: Вентспилс | D21: Теута | E21: 1 | F21: 0 | G21: 2 | H21: 0 | I21: Гости | J21: 3 | K21: 0 | L21: 0 | M21: 3 | N21: П | O21: 20 | P21: 9 | Q21: 7 | R21: 4 | S21: 19 | T21: 16 | U21: 34 | V21: 10 | W21: 8 | X21: 2 | Y21: 0 | Z21: 16 | AA21: 4 | AB21: 26 | AC21: 10 | AD21: 1 | AE21: 5 | AF21: 4 | AG21: 3 | AH21: 12 | AI21: 8 | AJ21: 3
A22: МИР: Клубные товарищеские матчи | B22: 2019.07.03 18:45 | C22: Септември София | D22: Теута | E22: 0 | F22: 1 | G22: 0 | H22: 1 | I22: Гости | J22: 0 | K22: 2 | L22: 2 | M22: 0 | N22: В | O22: 21 | P22: 10 | Q22: 7 | R22: 4 | S22: 21 | T22: 16 | U22: 37 | V22: 10 | W22: 8 | X22: 2 | Y22: 0 | Z22: 16 | AA22: 4 | AB22: 26 | AC22: 11 | AD22: 2 | AE22: 5 | AF22: 4 | AG22: 5 | AH22: 12 | AI22: 11 | AJ22: 2
A23: АЛБАНИЯ: Суперлига | B23: 2019.05.30 17:00 | C23: Теута | D23: Лячи | E23: 0 | F23: 0 | G23: 2 | H23: 0 | I23: Дома | J23: 2 | K23: 0 | L23: 2 | M23: 0 | N23: В | O23: 22 | P23: 11 | Q23: 7 | R23: 4 | S23: 23 | T23: 16 | U23: 40 | V23: 11 | W23: 9 | X23: 2 | Y23: 0 | Z23: 18 | AA23: 4 | AB23: 29 | AC23: 11 | AD23: 2 | AE23: 5 | AF23: 4 | AG23: 5 | AH23: 12 | AI23: 11
A24: АЛБАНИЯ: Суперлига | B24: 2019.05.26 17:30 | C24: Кастриоти | D24: Теута | E24: 0 | F24: 0 | G24: 2 | H24: 1 | I24: Гости | J24: 2 | K24: 1 | L24: 1 | M24: 2 | N24: П | O24: 23 | P24: 11 | Q24: 7 | R24: 5 | S24: 24 | T24: 18 | U24: 40 | V24: 11 | W24: 9 | X24: 2 | Y24: 0 | Z24: 18 | AA24: 4 | AB24: 29 | AC24: 12 | AD24: 2 | AE24: 5 | AF24: 5 | AG24: 6 | AH24: 14 | AI24: 11 | AJ24: 3
A25: АЛБАНИЯ: Суперлига | B25: 2019.05.18 17:30 | C25: Теута | D25: Партизани | E25: 1 | F25: 0 | G25: 1 | H25: 0 | I25: Дома | J25: 2 | K25: 0 | L25: 2 | M25: 0 | N25: В | O25: 24 | P25: 12 | Q25: 7 | R25: 5 | S25: 26 | T25: 18 | U25: 43 | V25: 12 | W25: 10 | X25: 2 | Y25: 0 | Z25: 20 | AA25: 4 | AB25: 32 | AC25: 12 | AD25: 2 | AE25: 5 | AF25: 5 | AG25: 6 | AH25: 14 | AI25: 11
A26: АЛБАНИЯ: Суперлига | B26: 2019.05.12 17:30 | C26: Скендербеу | D26: Теута | E26: 0 | F26: 1 | G26: 1 | H26: 1 | I26: Гости | J26: 1 | K26: 2 | L26: 2 | M26: 1 | N26: В | O26: 25 | P26: 13 | Q26: 7 | R26: 5 | S26: 28 | T26: 19 | U26: 46 | V26: 12 | W26: 10 | X26: 2 | Y26: 0 | Z26: 20 | AA26: 4 | AB26: 32 | AC26: 13 | AD26: 3 | AE26: 5 | AF26: 5 | AG26: 8 | AH26: 15 | AI26: 14 | AJ26: 3
A27: АЛБАНИЯ: Суперлига | B27: 2019.05.04 16:00 | C27: Теута | D27: Люфтетари Гирокастра | E27: 0 | F27: 0 | G27: 0 | H27: 0 | I27: Дома | J27: 0 | K27: 0 | L27: 0 | M27: 0 | N27: Н | O27: 26 | P27: 13 | Q27: 8 | R27: 5 | S27: 28 | T27: 19 | U27: 47 | V27: 13 | W27: 10 | X27: 3 | Y27: 0 | Z27: 20 | AA27: 4 | AB27: 33 | AC27: 13 | AD27: 3 | AE27: 5 | AF27: 5 | AG27: 8 | AH27: 15 | AI27: 14
A28: АЛБАНИЯ: Суперлига | B28: 2019.04.28 17:00 | C28: Кукеси | D28: Теута | E28: 0 | F28: 0 | G28: 0 | H28: 0 | I28: Гости | J28: 0 | K28: 0 | L28: 0 | M28: 0 | N28: Н | O28: 27 | P28: 13 | Q28: 9 | R28: 5 | S28: 28 | T28: 19 | U28: 48 | V28: 13 | W28: 10 | X28: 3 | Y28: 0 | Z28: 20 | AA28: 4 | AB28: 33 | AC28: 14 | AD28: 3 | AE28: 6 | AF28: 5 | AG28: 8 | AH28: 15 | AI28: 15 | AJ28: 0
A29: АЛБАНИЯ: Суперлига | B29: 2019.04.20 18:00 | C29: Камза | D29: Теута | E29: 0 | F29: 0 | G29: 0 | H29: 0 | I29: Гости | J29: 0 | K29: 0 | L29: 0 | M29: 0 | N29: Н | O29: 28 | P29: 13 | Q29: 10 | R29: 5 | S29: 28 | T29: 19 | U29: 49 | V29: 13 | W29: 10 | X29: 3 | Y29: 0 | Z29: 20 | AA29: 4 | AB29: 33 | AC29: 15 | AD29: 3 | AE29: 7 | AF29: 5 | AG29: 8 | AH29: 15 | AI29: 16 | AJ29: 0
A30: АЛБАНИЯ: Суперлига | B30: 2019.04.14 19:45 | C30: Теута | D30: Тирана | E30: 0 | F30: 1 | G30: 1 | H30: 2 | I30: Дома | J30: 1 | K30: 3 | L30: 1 | M30: 3 | N30: П | O30: 29 | P30: 13 | Q30: 10 | R30: 6 | S30: 29 | T30: 22 | U30: 49 | V30: 14 | W30: 10 | X30: 3 | Y30: 1 | Z30: 21 | AA30: 7 | AB30: 33 | AC30: 15 | AD30: 3 | AE30: 7 | AF30: 5 | AG30: 8 | AH30: 15 | AI30: 16
A31: АЛБАНИЯ: Суперлига | B31: 2019.04.10 19:30 | C31: Флямуртари | D31: Теута | E31: 1 | F31: 0 | G31: 2 | H31: 1 | I31: Гости | J31: 3 | K31: 1 | L31: 1 | M31: 3 | N31: П | O31: 30 | P31: 13 | Q31: 10 | R31: 7 | S31: 30 | T31: 25 | U31: 49 | V31: 14 | W31: 10 | X31: 3 | Y31: 1 | Z31: 21 | AA31: 7 | AB31: 33 | AC31: 16 | AD31: 3 | AE31: 7 | AF31: 6 | AG31: 9 | AH31: 18 | AI31: 16 | AJ31: 4
A32: АЛБАНИЯ: Суперлига | B32: 2019.04.06 16:45 | C32: Лячи | D32: Теута | E32: 2 | F32: 0 | G32: 3 | H32: 0 | I32: Гости | J32: 5 | K32: 0 | L32: 0 | M32: 5 | N32: П | O32: 31 | P32: 13 | Q32: 10 | R32: 8 | S32: 30 | T32: 30 | U32: 49 | V32: 14 | W32: 10 | X32: 3 | Y32: 1 | Z32: 21 | AA32: 7 | AB32: 33 | AC32: 17 | AD32: 3 | AE32: 7 | AF32: 7 | AG32: 9 | AH32: 23 | AI32: 16 | AJ32: 5
A33: АЛБАНИЯ: Кубок Албании | B33: 2019.04.03 18:00 | C33: Кукеси | D33: Теута | E33: 0 | F33: 0 | G33: 1 | H33: 0 | I33: Гости | J33: 1 | K33: 0 | L33: 0 | M33: 1 | N33: П | O33: 32 | P33: 13 | Q33: 10 | R33: 9 | S33: 30 | T33: 31 | U33: 49 | V33: 14 | W33: 10 | X33: 3 | Y33: 1 | Z33: 21 | AA33: 7 | AB33: 33 | AC33: 18 | AD33: 3 | AE33: 7 | AF33: 8 | AG33: 9 | AH33: 24 | AI33: 16 | AJ33: 1
A34: АЛБАНИЯ: Суперлига | B34: 2019.03.30 19:00 | C34: Теута | D34: Кастриоти | E34: 1 | F34: 0 | G34: 0 | H34: 0 | I34: Дома | J34: 1 | K34: 0 | L34: 1 | M34: 0 | N34: В | O34: 33 | P34: 14 | Q34: 10 | R34: 9 | S34: 31 | T34: 31 | U34: 52 | V34: 15 | W34: 11 | X34: 3 | Y34: 1 | Z34: 22 | AA34: 7 | AB34: 36 | AC34: 18 | AD34: 3 | AE34: 7 | AF34: 8 | AG34: 9 | AH34: 24 | AI34: 16
A35: АЛБАНИЯ: Суперлига | B35: 2019.03.17 19:00 | C35: Партизани | D35: Теута | E35: 2 | F35: 0 | G35: 1 | H35: 0 | I35: Гости | J35: 3 | K35: 0 | L35: 0 | M35: 3 | N35: П | O35: 34 | P35: 14 | Q35: 10 | R35: 10 | S35: 31 | T35: 34 | U35: 52 | V35: 15 | W35: 11 | X35: 3 | Y35: 1 | Z35: 22 | AA35: 7 | AB35: 36 | AC35: 19 | AD35: 3 | AE35: 7 | AF35: 9 | AG35: 9 | AH35: 27 | AI35: 16 | AJ35: 3
A36: АЛБАНИЯ: Кубок Албании | B36: 2019.03.12 19:00 | C36: Теута | D36: Кукеси | E36: 0 | F36: 1 | G36: 2 | H36: 1 | I36: Дома | J36: 2 | K36: 2 | L36: 2 | M36: 2 | N36: Н | O36: 35 | P36: 14 | Q36: 11 | R36: 10 | S36: 33 | T36: 36 | U36: 53 | V36: 16 | W36: 11 | X36: 4 | Y36: 1 | Z36: 24 | AA36: 9 | AB36: 37 | AC36: 19 | AD36: 3 | AE36: 7 | AF36: 9 | AG36: 9 | AH36: 27 | AI36: 16
A37: АЛБАНИЯ: Суперлига | B37: 2019.03.02 19:00 | C37: Теута | D37: Скендербеу | E37: 1 | F37: 0 | G37: 1 | H37: 2 | I37: Дома | J37: 2 | K37: 2 | L37: 2 | M37: 2 | N37: Н | O37: 36 | P37: 14 | Q37: 12 | R37: 10 | S37: 35 | T37: 38 | U37: 54 | V37: 17 | W37: 11 | X37: 5 | Y37: 1 | Z37: 26 | AA37: 11 | AB37: 38 | AC37: 19 | AD37: 3 | AE37: 7 | AF37: 9 | AG37: 9 | AH37: 27 | AI37: 16
A38: АЛБАНИЯ: Суперлига | B38: 2019.02.23 16:00 | C38: Люфтетари Гирокастра | D38: Теута | E38: 1 | F38: 0 | G38: 0 | H38: 0 | I38: Гости | J38: 1 | K38: 0 | L38: 0 | M38: 1 | N38: П | O38: 37 | P38: 14 | Q38: 12 | R38: 11 | S38: 35 | T38: 39 | U38: 54 | V38: 17 | W38: 11 | X38: 5 | Y38: 1 | Z38: 26 | AA38: 11 | AB38: 38 | AC38: 20 | AD38: 3 | AE38: 7 | AF38: 10 | AG38: 9 | AH38: 28 | AI38: 16 | AJ38: 1
A39: АЛБАНИЯ: Суперлига | B39: 2019.02.15 20:00 | C39: Теута | D39: Кукеси | E39: 0 | F39: 1 | G39: 2 | H39: 0 | I39: Дома | J39: 2 | K39: 1 | L39: 2 | M39: 1 | N39: В | O39: 38 | P39: 15 | Q39: 12 | R39: 11 | S39: 37 | T39: 40 | U39: 57 | V39: 18 | W39: 12 | X39: 5 | Y39: 1 | Z39: 28 | AA39: 12 | AB39: 41 | AC39: 20 | AD39: 3 | AE39: 7 | AF39: 10 | AG39: 9 | AH39: 28 | AI39: 16
A40: АЛБАНИЯ: Суперлига | B40: 2019.02.10 19:00 | C40: Теута | D40: Камза | E40: 0 | F40: 0 | G40: 0 | H40: 0 | I40: Дома | J40: 0 | K40: 0 | L40: 0 | M40: 0 | N40: Н | O40: 39 | P40: 15 | Q40: 13 | R40: 11 | S40: 37 | T40: 40 | U40: 58 | V40: 19 | W40: 12 | X40: 6 | Y40: 1 | Z40: 28 | AA40: 12 | AB40: 42 | AC40: 20 | AD40: 3 | AE40: 7 | AF40: 10 | AG40: 9 | AH40: 28 | AI40: 16
A41: АЛБАНИЯ: Кубок Албании | B41: 2019.02.06 15:30 | C41: Теута | D41: Люшня | E41: 2 | F41: 0 | G41: 2 | H41: 0 | I41: Дома | J41: 4 | K41: 0 | L41: 4 | M41: 0 | N41: В | O41: 40 | P41: 16 | Q41: 13 | R41: 11 | S41: 41 | T41: 40 | U41: 61 | V41: 20 | W41: 13 | X41: 6 | Y41: 1 | Z41: 32 | AA41: 12 | AB41: 45 | AC41: 20 | AD41: 3 | AE41: 7 | AF41: 10 | AG41: 9 | AH41: 28 | AI41: 16
A42: АЛБАНИЯ: Суперлига | B42: 2019.02.01 20:00 | C42: Тирана | D42: Теута | E42: 1 | F42: 1 | G42: 0 | H42: 0 | I42: Гости | J42: 1 | K42: 1 | L42: 1 | M42: 1 | N42: Н | O42: 41 | P42: 16 | Q42: 14 | R42: 11 | S42: 42 | T42: 41 | U42: 62 | V42: 20 | W42: 13 | X42: 6 | Y42: 1 | Z42: 32 | AA42: 12 | AB42: 45 | AC42: 21 | AD42: 3 | AE42: 8 | AF42: 10 | AG42: 10 | AH42: 29 | AI42: 17 | AJ42: 2
A43: АЛБАНИЯ: Суперлига | B43: 2018.12.15 19:00 | C43: Флямуртари | D43: Камза | E43: 0 | F43: 0 | G43: 1 | H43: 0 | I43: Дома | J43: 1 | K43: 0 | L43: 1 | M43: 0 | N43: В | O43: 42 | P43: 17 | Q43: 14 | R43: 11 | S43: 43 | T43: 41 | U43: 65 | V43: 21 | W43: 14 | X43: 6 | Y43: 1 | Z43: 33 | AA43: 12 | AB43: 48 | AC43: 21 | AD43: 3 | AE43: 8 | AF43: 10 | AG43: 10 | AH43: 29 | AI43: 17
J67: =IF(I67="","",E67+G67) ->  | K67: =IF(I67="","",F67+H67) ->  | L67: =IF(I67="","",IF(I67="Дома",J67,K67)) ->  | M67: =IF(I67="","",IF(I67="Дома",K67,J67)) ->  | O67: =IF(I67="","",O66+1) ->  | U67: =IF(I67="","",P67*3+Q67) ->  | AJ67: =IF(I67="Гости",L67+M67,"") -> 
P68: =IF(I68="","",IF(N68="В",P67+1,P67)) ->  | Q68: =IF(I68="","",IF(N68="Н",Q67+1,Q67)) ->  | R68: =IF(I68="","",IF(N68="П",R67+1,R67)) ->  | S68: =IF(I68="","",S67+L68) ->  | T68: =IF(I68="","",T67+M68) ->  | V68: =IF(I68="","",IF(I68="Дома",V67+1,V67+0)) ->  | W68: =IF(I68="","",IF(I68="Дома",IF(N68="В",W67+1,W67),W67)) ->  | X68: =IF(I68="","",IF(I68="Дома",IF(N68="Н",X67+1,X67),X67)) ->  | Y68: =IF(I68="","",IF(I68="Дома",IF(N68="П",Y67+1,Y67),Y67)) ->  | Z68: =IF(I68="","",IF(I68="Дома",L68+Z67,Z67)) ->  | AA68: =IF(I68="","",IF(I68="Дома",M68+AA67,AA67)) ->  | AB68: =IF(I68="","",IF(I68="Дома",W68*3+X68,AB67)) ->  | AC68: =IF(I68="","",IF(I68="Гости",AC67+1,AC67+0)) ->  | AD68: =IF(I68="","",IF(I68="Гости",IF(N68="В",AD67+1,AD67),AD67)) ->  | AE68: =IF(I68="","",IF(I68="Гости",IF(N68="Н",AE67+1,AE67),AE67)) ->  | AF68: =IF(I68="","",IF(I68="Гости",IF(N68="П",AF67+1,AF67),AF67)) ->  | AG68: =IF(I68="","",IF(I68="Гости",L68+AG67,AG67)) ->  | AH68: =IF(I68="","",IF(I68="Гости",M68+AH67,AH67)) ->  | AI68: =IF(I68="","",IF(I68="Гости",AD68*3+AE68,AI67)) -> 
N74: =IF(I74="","",IF(I74="Дома",IF(J74>K74,"В",IF(J74=K74,"Н","П")),IF(J74<K74,"В",IF(J74=K74,"Н","П")))) -> 
J131: =IF(I131="","",E131+G131) ->  | K131: =IF(I131="","",F131+H131) ->  | L131: =IF(I131="","",IF(I131="Дома",J131,K131)) ->  | M131: =IF(I131="","",IF(I131="Дома",K131,J131)) ->  | O131: =IF(I131="","",O130+1) ->  | U131: =IF(I131="","",P131*3+Q131) ->  | AJ131: =IF(I131="Гости",L131+M131,"") -> 
P132: =IF(I132="","",IF(N132="В",P131+1,P131)) ->  | Q132: =IF(I132="","",IF(N132="Н",Q131+1,Q131)) ->  | R132: =IF(I132="","",IF(N132="П",R131+1,R131)) ->  | S132: =IF(I132="","",S131+L132) ->  | T132: =IF(I132="","",T131+M132) ->  | V132: =IF(I132="","",IF(I132="Дома",V131+1,V131+0)) ->  | W132: =IF(I132="","",IF(I132="Дома",IF(N132="В",W131+1,W131),W131)) ->  | X132: =IF(I132="","",IF(I132="Дома",IF(N132="Н",X131+1,X131),X131)) ->  | Y132: =IF(I132="","",IF(I132="Дома",IF(N132="П",Y131+1,Y131),Y131)) ->  | Z132: =IF(I132="","",IF(I132="Дома",L132+Z131,Z131)) ->  | AA132: =IF(I132="","",IF(I132="Дома",M132+AA131,AA131)) ->  | AB132: =IF(I132="","",IF(I132="Дома",W132*3+X132,AB131)) ->  | AC132: =IF(I132="","",IF(I132="Гости",AC131+1,AC131+0)) ->  | AD132: =IF(I132="","",IF(I132="Гости",IF(N132="В",AD131+1,AD131),AD131)) ->  | AE132: =IF(I132="","",IF(I132="Гости",IF(N132="Н",AE131+1,AE131),AE131)) ->  | AF132: =IF(I132="","",IF(I132="Гости",IF(N132="П",AF131+1,AF131),AF131)) ->  | AG132: =IF(I132="","",IF(I132="Гости",L132+AG131,AG131)) ->  | AH132: =IF(I132="","",IF(I132="Гости",M132+AH131,AH131)) ->  | AI132: =IF(I132="","",IF(I132="Гости",AD132*3+AE132,AI131)) -> 
N138: =IF(I138="","",IF(I138="Дома",IF(J138>K138,"В",IF(J138=K138,"Н","П")),IF(J138<K138,"В",IF(J138=K138,"Н","П")))) -> 

Sheet Mill
B2: Тест №1 Анализ 10 последних игр команд дома и в гостях | H2: =IF(ДомаДома!N2="В",1,0) -> 0 | I2: =IF(C7="Победа",1,0) -> 0 | J2: =IF(ГостиГости!N2="В",1,0) -> 0 | K2: =IF(E7="Победа",1,0) -> 1 | M2: =IF(F20>F21,B20,IF(F20<F21,B21,"Ничья")) -> Команда 2
H3: =IF(ДомаДома!N3="В",1,0) -> 0 | I3: =IF(C8="Победа",1,0) -> 0 | J3: =IF(ГостиГости!N3="В",1,0) -> 0 | K3: =IF(E8="Победа",1,0) -> 0
H4: =IF(ДомаДома!N4="В",1,0) -> 0 | I4: 0 | J4: =IF(ГостиГости!N4="В",1,0) -> 0 | K4: 1
B5: Последние 10 игр команды 1 | D5: Последние 10 игр команды 2 | H5: =IF(ДомаДома!N5="В",1,0) -> 0 | I5: 0 | J5: =IF(ГостиГости!N5="В",1,0) -> 0 | K5: 0
B6: № игры | C6: Исход | D6: № игры | E6: Исход | H6: =IF(ДомаДома!N6="В",1,0) -> 0 | I6: 0 | J6: =IF(ГостиГости!N6="В",1,0) -> 0 | K6: 0
B7: 1 | C7: =IF(Дома!N2="В","Победа",IF(Дома!N2="П","Поражение","Ничья")) -> Поражение | D7: 1 | E7: =IF(Гости!N2="В","Победа",IF(Гости!N2="П","Поражение","Ничья")) -> Победа | H7: =IF(ДомаДома!N7="В",1,0) -> 0 | I7: 0 | J7: =IF(ГостиГости!N7="В",1,0) -> 0 | K7: 0
B8: 2 | C8: =IF(Дома!N3="В","Победа",IF(Дома!N3="П","Поражение","Ничья")) -> Ничья | D8: 2 | E8: =IF(Гости!N3="В","Победа",IF(Гости!N3="П","Поражение","Ничья")) -> Поражение | H8: =IF(ДомаДома!N8="В",1,0) -> 1 | I8: 0 | J8: =IF(ГостиГости!N8="В",1,0) -> 0 | K8: 0
B9: 3 | C9: =IF(Дома!N4="В","Победа",IF(Дома!N4="П","Поражение","Ничья")) -> Поражение | D9: 3 | E9: =IF(Гости!N4="В","Победа",IF(Гости!N4="П","Поражение","Ничья")) -> Победа | H9: =IF(ДомаДома!N9="В",1,0) -> 0 | I9: 0 | J9: =IF(ГостиГости!N9="В",1,0) -> 1 | K9: 0
B10: 4 | C10: =IF(Дома!N5="В","Победа",IF(Дома!N5="П","Поражение","Ничья")) -> Ничья | D10: 4 | E10: =IF(Гости!N5="В","Победа",IF(Гости!N5="П","Поражение","Ничья")) -> Ничья | H10: =IF(ДомаДома!N10="В",1,0) -> 0 | I10: 0 | J10: =IF(ГостиГости!N10="В",1,0) -> 0 | K10: 1
B11: 5 | C11: =IF(Дома!N6="В","Победа",IF(Дома!N6="П","Поражение","Ничья")) -> Ничья | D11: 5 | E11: =IF(Гости!N6="В","Победа",IF(Гости!N6="П","Поражение","Ничья")) -> Ничья | H11: =IF(ДомаДома!N11="В",1,0) -> 1 | I11: 0 | J11: =IF(ГостиГости!N11="В",1,0) -> 0 | K11: 0
B12: 6 | C12: =IF(Дома!N7="В","Победа",IF(Дома!N7="П","Поражение","Ничья")) -> Поражение | D12: 6 | E12: =IF(Гости!N7="В","Победа",IF(Гости!N7="П","Поражение","Ничья")) -> Ничья | H12: =SUM(H2:H11) -> 2 | I12: =SUM(I2:I11) -> 0 | J12: =SUM(J2:J11) -> 1 | K12: =SUM(K2:K11) -> 3 | P12: =IF(C7="Победа",2,IF(C7="Ничья",1,0)) -> 0 | Q12: =IF(C7="Победа",1,0) -> 0 | R12: =IF(E7="Победа",2,IF(E7="Ничья",1,0)) -> 2 | S12: =IF(E7="Победа",1,0) -> 1
B13: 7 | C13: =IF(Дома!N8="В","Победа",IF(Дома!N8="П","Поражение","Ничья")) -> Ничья | D13: 7 | E13: =IF(Гости!N8="В","Победа",IF(Гости!N8="П","Поражение","Ничья")) -> Ничья | P13: =IF(C8="Победа",2,IF(C8="Ничья",1,0)) -> 1 | Q13: =IF(C8="Победа",1,0) -> 0 | R13: =IF(E8="Победа",2,IF(E8="Ничья",1,0)) -> 0 | S13: =IF(E8="Победа",1,0) -> 0
B14: 8 | C14: =IF(Дома!N9="В","Победа",IF(Дома!N9="П","Поражение","Ничья")) -> Поражение | D14: 8 | E14: =IF(Гости!N9="В","Победа",IF(Гости!N9="П","Поражение","Ничья")) -> Поражение | P14: 0 | Q14: 0 | R14: 2 | S14: 1
B15: 9 | C15: =IF(Дома!N10="В","Победа",IF(Дома!N10="П","Поражение","Ничья")) -> Поражение | D15: 9 | E15: =IF(Гости!N10="В","Победа",IF(Гости!N10="П","Поражение","Ничья")) -> Победа | P15: 1 | Q15: 0 | R15: 1 | S15: 0
B16: 10 | C16: =IF(Дома!N11="В","Победа",IF(Дома!N11="П","Поражение","Ничья")) -> Ничья | D16: 10 | E16: =IF(Гости!N11="В","Победа",IF(Гости!N11="П","Поражение","Ничья")) -> Ничья | P16: 1 | Q16: 0 | R16: 1 | S16: 0
P17: 0 | Q17: 0 | R17: 1 | S17: 0
B18: Итог анализа Теста №1 | H18: =SUM(H2:H6) -> 0 | I18: =SUM(I2:I6) -> 0 | J18: =SUM(J2:J6) -> 0 | K18: =SUM(K2:K6) -> 2 | P18: 1 | Q18: 0 | R18: 1 | S18: 0
B19: Команда | C19: Очки | D19: Значение Теста | E19: Число | F19: ИТОГ | P19: 0 | Q19: 0 | R19: 0 | S19: 0
B20: Команда 1 | C20: =P22 -> 5 | D20: =IF(C20>18,4,IF(C20>15,3,IF(C20>10,2,IF(C20>5,1,0)))) -> 0 | E20: =IF(Q22>=9,3,IF(Q22>=6,2,IF(Q22>=4,1,0))) -> 0 | F20: =IF(C20>C21,1,0)+IF(D20>D21,1,0)+E20 -> 0 | P20: 0 | Q20: 0 | R20: 2 | S20: 1
B21: Команда 2 | C21: =R22 -> 11 | D21: =IF(C21>18,4,IF(C21>15,3,IF(C21>10,2,IF(C21>5,1,0)))) -> 2 | E21: =IF(S22>=9,3,IF(S22>=6,2,IF(S22>=4,1,0))) -> 0 | F21: =IF(C21>C20,1,0)+IF(D21>D20,1,0)+E21 -> 2 | P21: =IF(C16="Победа",2,IF(C16="Ничья",1,0)) -> 1 | Q21: 0 | R21: =IF(E16="Победа",2,IF(E16="Ничья",1,0)) -> 1 | S21: =IF(E16="Победа",1,0) -> 0
D22: Последние три игры команд между собой | P22: =SUM(P12:P21) -> 5 | Q22: =SUM(Q12:Q21) -> 0 | R22: =SUM(R12:R21) -> 11 | S22: =SUM(S12:S21) -> 3
C23: КОМАНДА 1 | D23: гости | E23: Очки | H23: хозяева | I23: КОМАНДА 2 | J23: Очки | K23: Уверенная победа команды 1
B24: 1 игра | C24: =ДомаДома!L2 -> 2 | D24: =ДомаДома!M2 -> 2 | E24: =IF(C24>D24,2+(C24-D24),IF(C24=D24,1,0)) -> 1 | G24: 1 игра | H24: =ГостиГости!M2 -> 4 | I24: =ГостиГости!L2 -> 0 | J24: =IF(I24>H24,2+(I24-H24),IF(H24=I24,1,0)) -> 0 | K24: Уверенная победа команды 2 | P24: =Очные!A1 -> Флямуртари | R24: ввод данных | V24: РАСЧЁТ ДАННЫХ | X24: Очки | Y24: Итоговые очки
B25: 2 игра | C25: =ДомаДома!L3 -> 1 | D25: =ДомаДома!M3 -> 1 | E25: =IF(C25>D25,2+(C25-D25),IF(C25=D25,1,0)) -> 1 | G25: 2 игра | H25: =ГостиГости!M3 -> 0 | I25: =ГостиГости!L3 -> 0 | J25: =IF(I25>H25,2+(I25-H25),IF(H25=I25,1,0)) -> 1 | K25: П1 с небольшой разницей в счёте | P25: Место в турнирной таблице | R25: =VLOOKUP(P24,P46:Q78,2,FALSE) -> 10 | S25: из | T25: =MAX(Таблица!A:A) -> 10
B26: 3 игра | C26: =ДомаДома!L4 -> 1 | D26: =ДомаДома!M4 -> 1 | E26: =IF(C26>D26,2+(C26-D26),IF(C26=D26,1,0)) -> 1 | G26: 3 игра | H26: =ГостиГости!M4 -> 0 | I26: =ГостиГости!L4 -> 0 | J26: =IF(I26>H26,2+(I26-H26),IF(H26=I26,1,0)) -> 1 | K26: П2 с небольшой разницей в счёте | V26: Команда1 | X26: =S46+S47+IF(R27>R39,U46,0) -> 8 | Y26: =X26*U47 -> 6
D27: Итого: | E27: =SUM(E24,E25,E26) +1 -> 4 | I27: Итого: | J27: =SUM(J24,J25,J26) -> 2 | K27: Наиболее вероятен исход 1Х | P27: Сколько мячей забито | R27: =VLOOKUP(P24,Таблица!B2:G45,6,FALSE) -> 12
B28: какая команда дома | C28: Счёт | D28: Счёт | E28: Очки | F28: Какая команда победила | G28: Какая команда в гостях | K28: Наиболее вероятен исход Х2 | V28: Команда2 | X28: =T46+T47+IF(R39>R27,U46,0) -> 4 | Y28: =X28*U48 -> 2.5
B29: =IF(Очные!C2=Очные!A1,1,2) -> 2 | C29: =Очные!E2 -> 0 | D29: =Очные!F2 -> 0 | E29: =IF(C29>D29,3+(C29-D29),IF(C29=D29,1,IF(D29>C29,3+(D29-C29),0))) -> 1 | F29: =IF(C29>D29,B29,IF(D29>C29,G29,0)) -> 0 | G29: =IF(B29=2,1,2) -> 1 | J29: =IF(F29=0,1,0) -> 1 | K29: Лучше взять фору 1 (+1) | P29: Сколько мячей забито за последние 3 игры дома | R29: =ДомаДома!S4 -> 4
B30: =IF(Очные!C3=Очные!A1,1,2) -> 2 | C30: =Очные!E3 -> 0 | D30: =Очные!F3 -> 0 | E30: =IF(C30>D30,3+(C30-D30),IF(C30=D30,0,IF(D30>C30,3+(D30-C30),0))) -> 0 | F30: =IF(C30>D30,B30,IF(D30>C30,G30,0)) -> 0 | G30: =IF(B30=2,1,2) -> 1 | J30: =IF(B29=2,1,0) -> 1 | K30: Лучше взять фору 2 (+1)
B31: =IF(Очные!C4=Очные!A1,1,2) -> 2 | C31: =Очные!E4 -> 0 | D31: =Очные!F4 -> 0 | E31: =IF(C31>D31,3+(C31-D31),IF(C31=D31,0,IF(D31>C31,3+(D31-C31),0))) -> 0 | F31: =IF(C31>D31,B31,IF(D31>C31,G31,0)) -> 0 | G31: =IF(B31=2,1,2) -> 1 | J31: =IF(J30=J29,1,0) -> 1 | K31: Х но с прейимуществом 1 команды
B32: ИТОГ | K32: Х но с прейимуществом 2 команды | P32: Игр сыграно за сезон | R32: =VLOOKUP(P24,Таблица!B2:C50,2,FALSE) -> 16
B33: Дополнительная информация, НЕОБЯЗАТЕЛЬНО для заполнения:
B34: Кто выше в турнирной таблице? | D34: =IF(R25<R37,1,2) -> 2 | E34: =IF(C38>D38,1,IF(C38=D38,0,2)) -> 1 | F34: =IF(E34=1,C38-D38,IF(E34=2,D38-C38,0)) -> 2 | G34: =IF(D34=1,1,2)+IF(F34>0,99,0) -> 101 | I34: =IF(G29=1,1,0) -> 1 | J34: =IF(G29=2,1,0) -> 0
C35: 1 | D35: 2 | E35: Для к1 | F35: Для к2 | I35: =IF(G30=1,1,0) -> 1 | J35: =IF(G30=2,1,0) -> 0
B36: Очки | C36: =E27+IF(F29=1,E29,0)+IF(F30=1,E30,0)+IF(F31=1,E31,0) -> 4 | D36: =J27+IF(F29=2,E29,0)+IF(F30=2,E30,0)+IF(F31=2,E31,0) -> 2 | E36: =IF(E34=1,F34,0) -> 2 | F36: =IF(E34=2,F34,0) -> 0 | I36: =IF(G31=1,1,0) -> 1 | J36: =IF(G31=2,1,0) -> 0 | P36: =Очные!B1 -> Теута | R36: ввод данных | V36: Вероятный исход в процентах
B37: Доп. Очки | C37: =IF(J315=1,1,0) -> 0 | E37: =IF(E36>12,K23,IF(E36>7,K25,IF(E36>4,K27,IF(E36>0,K29,0)))) -> Лучше взять фору 1 (+1) | F37: =IF(F36>13,K24,IF(F36>7,K26,IF(F36>4,K28,IF(F36>0,K30,0)))) -> 0 | I37: =SUM(I34:I36) -> 3 | J37: =SUM(J34:J36) -> 0 | P37: Место в турнирной таблице | R37: =VLOOKUP(P36,P46:Q78,2,FALSE) -> 6 | S37: из | T37: =T25 -> 10 | V37: П1 | W37: =(X26/S49)*100 -> 22.85714286 | X37: П2 | Y37: =(X28/S49)*100 -> 11.42857143
B38: Итоговые: | C38: =SUM(C36,C37) -> 4 | D38: =SUM(D36,D37) -> 2
B39: ИТОГО: | C39: =IF(E34=1,E37,IF(G34=1,K31,IF(E34=2,F37,K32))) -> Лучше взять фору 1 (+1) | P39: Сколько мячей забито | R39: =VLOOKUP(P36,Таблица!B2:G45,6,FALSE) -> 10 | W39: Ничья | X39: =100-(W37+Y37) -> 65.71428571
B41: Тест №3 Общая теория | P41: Мячей забито за последние 3 игры в гостях | R41: =ГостиГости!S4 -> 0
V42: ТМ 2,5 | W42: =100-Y42 -> 65.6010929 | X42: ТБ2,5 | Y42: =(S53/T52)*100-10 -> 34.3989071
B43: Расчёт команды 1 | F43: Число | G43: Расчёт команды 2 | K43: Число
B44: Сколько Побед из 5 последних игр дома | F44: =H18 -> 0 | G44: Сколько Побед из 5 последних игр в гостях | K44: =J18 -> 0 | P44: Игр сыграно за сезон | R44: =VLOOKUP(P36,Таблица!B2:C50,2,FALSE) -> 16
B45: Сколько Побед из 5 последних игр вообще | F45: =I18 -> 0 | G45: Сколько Побед из 5 последних игр вообще | K45: =K18 -> 2
B46: Сколько Побед из 3 последних игр между командами | F46: =I37 -> 3 | G46: Сколько Побед из 3 последних игр между командами | K46: 0 | P46: =Таблица!B2 -> Кукеси | Q46: =Таблица!A2 -> 1 | S46: =T25-R25 -> 0 | T46: =T37-R37 -> 4 | U46: =IF(R27>R39,R27-R39,IF(R39>R27,R39-R27,0)) -> 2
F47: =SUM(F44:F46)/13 -> 0.2307692308 | K47: =SUM(K44:K46)/13 -> 0.1538461538 | P47: =Таблица!B3 -> Билис | Q47: =Таблица!A3 -> 2 | S47: =(R29*3)/2 -> 6 | T47: =(R41*3)/2 -> 0 | U47: =R27/R32 -> 0.75
F48: =(1+1-1)/3 -> 0.3333333333 | K48: =(1+1-1)/3 -> 0.3333333333 | P48: =Таблица!B4 -> Тирана | Q48: =Таблица!A4 -> 3 | U48: =R39/R44 -> 0.625
F49: =F47/F48 -> 0.6923076923 | G49: 1 | H49: =F49+G49+K49 -> 2.153846154 | I49: Итог | J49: =IF(F50>K50,"Победа 1",IF(K50>F50,"Победа 2","Ничья")) -> Победа 1 | K49: =K47/K48 -> 0.4615384615 | P49: =Таблица!B5 -> Партизани | Q49: =Таблица!A5 -> 4 | S49: =T25-1+5+((R32+R44)/2)+(((R27+R44)/2)/2)-2 -> 35
F50: =((H49-F49)*F49)/3 -> 0.3372781065 | H50: =(H49-G49)*1/3 -> 0.3846153846 | K50: =((H49-K49)*K49)/3 -> 0.2603550296 | P50: =Таблица!B6 -> Лячи | Q50: =Таблица!A6 -> 5
P51: =Таблица!B7 -> Теута | Q51: =Таблица!A7 -> 6 | S51: =(R27/R32)+R29/3 -> 2.083333333 | T51: =(R32+R44)/2 -> 16
B52: Тест №4 Тоталы | P52: =Таблица!B8 -> Влазния | Q52: =Таблица!A8 -> 7 | S52: =R39/R44+R41/3 -> 0.625 | T52: =((T51/4)*3+(T51/2)+(T51)+(T51/5)*4)/T51 -> 3.05
B53: Второй анализ. | C53: Команда 1 | D53: Команда 2 | E53: =C54*C55 -> 1.2 | F53: =D54+D55 -> 0.8333333333 | G53: Победа 1 | P53: =Таблица!B9 -> Скендербеу | Q53: =Таблица!A9 -> 8 | S53: =(S51+S52)/2 -> 1.354166667
B54: Забьёт в абстрактном матче | C54: =(C24+C25+C26+1+H24+H25+H26)/6 -> 1.5 | D54: =(D24+D25+D26+I24+I25+I26+1)/6 -> 0.8333333333 | E54: =E53/F53 -> 1.44 | F54: =F53/E53 -> 0.6944444444 | G54: Победа 2 | P54: =Таблица!B10 -> Люфтетари Гирокастра | Q54: =Таблица!A10 -> 9
B55: Забьёт/пропустит в конкретном | C55: =(C24+C25+C26)/(D24+D25+D26+1) -> 0.8 | D55: =(I24+I25+I26)/(H24+H25+H26+1) -> 0 | G55: Ничья | H55: Итог | I55: =IF(E56>F56,G53,IF(F56>E56,G54,G55)) -> Победа 1 | P55: =Таблица!B11 -> Флямуртари | Q55: =Таблица!A11 -> 10
B56: Забьёт в этом матче | C56: =E54 -> 1.44 | D56: =F54 -> 0.6944444444 | E56: =C54+C55+C56 -> 3.74 | F56: =D54+D55+D56 -> 1.527777778 | P56: =Таблица!B12 -> 0 | Q56: =Таблица!A12 -> 0
P57: =Таблица!B13 -> 0 | Q57: =Таблица!A13 -> 0
C58: Mill+ Исход | P58: =Таблица!B14 -> 0 | Q58: =Таблица!A14 -> 0
P59: =Таблица!B15 -> 0 | Q59: =Таблица!A15 -> 0
B60: Первая партия | G60: Первая партия | P60: =Таблица!B16 -> 0 | Q60: =Таблица!A16 -> 0
B61: Игра | C61: Команда 1 | D61: Гости | E61: Очки | G61: Игра | H61: Домашняя | I61: Команда 2 | J61: Очки | P61: =Таблица!B17 -> 0 | Q61: =Таблица!A17 -> 0
B62: 1 игра | C62: =ДомаДома!L2 -> 2 | D62: =ДомаДома!M2 -> 2 | E62: =IF(C62>D62,2+(C62-D62),IF(C62=D62,1,0)) -> 1 | G62: 1 игра | H62: =ГостиГости!M2 -> 4 | I62: =ГостиГости!L2 -> 0 | J62: =IF(I62>H62,2+(I62-H62),IF(H62=I62,1,0)) -> 0 | P62: =Таблица!B18 -> 0 | Q62: =Таблица!A18 -> 0
B63: 2 игра | C63: =ДомаДома!L3 -> 1 | D63: =ДомаДома!M3 -> 1 | E63: =IF(C63>D63,2+(C63-D63),IF(C63=D63,1,0)) -> 1 | G63: 2 игра | H63: =ГостиГости!M3 -> 0 | I63: =ГостиГости!L3 -> 0 | J63: =IF(I63>H63,2+(I63-H63),IF(H63=I63,1,0)) -> 1 | P63: =Таблица!B19 -> 0 | Q63: =Таблица!A19 -> 0
D64: Итог: | E64: =E62+E63 -> 2 | I64: Итог: | J64: =J62+J63 -> 1 | P64: =Таблица!B20 -> 0 | Q64: =Таблица!A20 -> 0
B65: Вторая партия | G65: Вторая партия | P65: =Таблица!B21 -> 0 | Q65: =Таблица!A21 -> 0
B66: Игра | C66: Команда 1 | D66: Гости | E66: Очки | G66: Игра | H66: Домашняя | I66: Команда2 | J66: Очки | P66: =Таблица!B22 -> 0 | Q66: =Таблица!A22 -> 0
B67: 5 игра | C67: =ДомаДома!L6 -> 1 | D67: =ДомаДома!M6 -> 3 | E67: 0 | G67: 5 игра | H67: =ГостиГости!M6 -> 3 | I67: =ГостиГости!L6 -> 0 | J67: =IF(I67>H67,2+(I67-H67),IF(H67=I67,1,0)) -> 0 | P67: =Таблица!B23 -> 0 | Q67: =Таблица!A23 -> 0
B68: 6 игра | C68: =ДомаДома!L7 -> 2 | D68: =ДомаДома!M7 -> 2 | E68: 1 | G68: 6 игра | H68: =ГостиГости!M7 -> 1 | I68: =ГостиГости!L7 -> 1 | J68: =IF(I68>H68,2+(I68-H68),IF(H68=I68,1,0)) -> 1 | P68: =Таблица!B24 -> 0 | Q68: =Таблица!A24 -> 0
D69: Итог: | E69: =SUM(E67:E68) -> 1 | I69: Итог: | J69: =J67+J68 -> 1 | P69: =Таблица!B25 -> 0 | Q69: =Таблица!A25 -> 0
B70: Сколько побед за последни 10 игр: | E70: =H12 -> 2 | G70: Сколько побед за последни 10 игр: | J70: =J12 -> 1 | P70: =Таблица!B26 -> 0 | Q70: =Таблица!A26 -> 0
B71: Итоговые очки: | D71: Очки | E71: Динамика | F71: Итоговые очки | H71: 10BUH1 | I71: 10BUH2 | P71: =Таблица!B27 -> 0 | Q71: =Таблица!A27 -> 0
B72: Команда 1 | D72: =E64+E69+IF(F29=1,E29,0)+IF(F30=1,E30,0)+IF(F31=1,E31,0) -> 3 | E72: =IF(E64>E69,2,IF(E64=E69,1,0)) -> 2 | F72: =IF(E72=2,D72+(D72*0.3),IF(E72=1,D72,IF(E72=0,D72-(D72*0.3),0)))+IF(E64>J64,(D72*0.15),0)+H72 -> 3.75 | H72: =IF(E70<=4,-(D72*0.2),IF(E70>=6,D72*0.1,IF(E70>=9,D72*0.2,0))) -> -0.6 | I72: =IF(J70<=4,-(D73*0.2),IF(J70>=6,D73*0.1,IF(J70>=9,D73*0.2,0))) -> -0.4 | P72: =Таблица!B28 -> 0 | Q72: =Таблица!A28 -> 0
B73: Команда 2 | D73: =J64+J69+IF(F29=2,E29,0)+IF(F30=2,E30,0)+IF(F31=2,E31,0) -> 2 | E73: =IF(J64>J69,2,IF(J64=J69,1,0)) -> 1 | F73: =IF(E73=2,D73+(D73*0.3),IF(E73=1,D73,IF(E73=0,D73-(D73*0.3),0)))+IF(J64>E64,(D73*0.15),0)+I72 -> 1.6 | H73: КТО ПОБЕДИЛ | I73: Разница | P73: =Таблица!B29 -> 0 | Q73: =Таблица!A29 -> 0
H74: =IF(F72>F73,1,IF(F72=F73,0,2)) -> 1 | I74: =IF(H74=1,F72-F73,IF(H74=2,F73-F72,0)) -> 2.15 | P74: =Таблица!B30 -> 0 | Q74: =Таблица!A30 -> 0
B75: Mill+(Исход): | C75: =IF(H74=1,I76,I77) -> Наиболее веротяен исход : ФОРА 1(+1) | H75: Победа 1 | I75: ИТОГ | P75: =Таблица!B31 -> 0 | Q75: =Таблица!A31 -> 0
H76: Победа 2 | I76: =IF(I74<6,H79,IF(I74<10,H77,H75)) -> Наиболее веротяен исход : ФОРА 1(+1) | P76: =Таблица!B32 -> 0 | Q76: =Таблица!A32 -> 0
H77: Наиболее веротяен исход : 1Х | I77: =IF(I74<6,H80,IF(I74<10,H78,H76)) -> Наиболее веротяен исход : ФОРА 2(+1) | P77: =Таблица!B33 -> 0 | Q77: =Таблица!A33 -> 0
H78: Наиболее веротяен исход : Х2 | P78: =Таблица!B34 -> 0 | Q78: =Таблица!A34 -> 0
H79: Наиболее веротяен исход : ФОРА 1(+1)
H80: Наиболее веротяен исход : ФОРА 2(+1)
D89: Фут17 | G89: ОЗ | H89: Тотал | I89: 1й забьет | J89: =IF(C97>D97,"1 тайм П1",IF(D97>C97,"1 тайм П2","1 тайм Х")) -> 1 тайм Х | K89: =C97& " - " &D97 -> 0 - 0
C90: =IF(C91-TRUNC(C91)>=0.7,TRUNC(C91)+1,TRUNC(C91)) -> 0 | D90: =IF(D91-TRUNC(D91)>=0.7,TRUNC(D91)+1,TRUNC(D91)) -> 1 | G90: =IF(AND(C90>0,D90>0),"ОЗ-Да","ОЗ-Нет") -> ОЗ-Нет | H90: =IF(C90+D90>2,"2,5 ТБ","2,5 ТМ") -> 2,5 ТМ | I90: =IF(C92>D92,P24,P36) -> Теута | J90: =IF(C90>D90,"Матч П 1",IF(D90>C90,"Матч П 2","Матч X")) -> Матч П 2 | K90: =C90& " - " &D90 -> 0 - 1
C91: =SUM(C93:C95) -> 0.48 | D91: =SUM(D93:D95) -> 0.92 | J91: =J89&" / "&J90 -> 1 тайм Х / Матч П 2
C92: =C91/2 -> 0.24 | D92: =D91/2 -> 0.46
A93: =IF(Очные!D2=Очные!B1,Очные!F2,Очные!E2) -> 0 | B93: =AVERAGE(ДомаДома!L2:L6) -> 1.2 | C93: =B93*0.4 -> 0.48 | D93: =E93*0.4 -> 0.64 | E93: =AVERAGE(ДомаДома!M2:M6) -> 1.6 | F93: =IF(Очные!C2=Очные!A1,Очные!E2,Очные!F2) -> 0
A94: =IF(Очные!D3=Очные!B1,Очные!F3,Очные!E3) -> 0 | B94: =AVERAGE(ГостиГости!L2:L6) -> 0 | C94: =B94*0.2 -> 0 | D94: =E94*0.2 -> 0.28 | E94: =AVERAGE(ГостиГости!M2:M6) -> 1.4 | F94: =IF(Очные!C3=Очные!A1,Очные!E3,Очные!F3) -> 0
A95: =IF(Очные!D4=Очные!B1,Очные!F4,Очные!E4) -> 0 | B95: =AVERAGE(A93:A97) -> 0 | C95: =B95*0.4 -> 0 | D95: =E95*0.4 -> 0 | E95: =AVERAGE(F93:F97) -> 0 | F95: =IF(Очные!C4=Очные!A1,Очные!E4,Очные!F4) -> 0
A96: =IF(Очные!D5=Очные!B1,Очные!F5,Очные!E5) -> 0 | F96: =IF(Очные!C5=Очные!A1,Очные!E5,Очные!F5) -> 0
A97: =IF(Очные!D6=Очные!B1,Очные!F6,Очные!E6) -> 0 | C97: =IF(C92-TRUNC(C92)>=0.7,TRUNC(C92)+1,TRUNC(C92)) -> 0 | D97: =IF(D92-TRUNC(D92)>=0.7,TRUNC(D92)+1,TRUNC(D92)) -> 0 | F97: =IF(Очные!C6=Очные!A1,Очные!E6,Очные!F6) -> 0

Sheet ГостиГости (hidden)
A1: Чемпионат | B1: Дата/Время | C1: Дома | D1: Гости | E1: К1 в 1Т | F1: К2 в 1Т | G1: К1 во 2Т | H1: К2 во 2Т | I1: Где играли | J1: К1 Голов | K1: К2 Голов | L1: Забито | M1: Пропущено | N1: Результат | O1: Всего Игр | P1: Всего выиграно | Q1: Всего ничьих | R1: Всего проиграно | S1: Всего забито | T1: Всего пропущено | U1: Всего очков | V1: Дома игр | W1: Дома выиграно | X1: Дома ничьих | Y1: Дома проиграно | Z1: Дома забито | AA1: Дома пропущено | AB1: Дома очков | AC1: Гости игр | AD1: Гости выиграно | AE1: Гости ничьих | AF1: Гости проиграно | AG1: Гости забито | AH1: Гости пропущено | AI1: Гости очков | AM1: 2.5 + | AN1: 2.5 - | AO1: GG | AP1: NG
A2: АЛБАНИЯ: Суперлига | B2: 2019.12.14 18:00 | C2: Кукеси | D2: Теута | E2: 1 | F2: 0 | G2: 3 | H2: 0 | I2: Гости | J2: =IF(I2="","",E2+G2) -> 4 | K2: =IF(I2="","",F2+H2) -> 0 | L2: =IF(I2="","",IF(I2="Дома",J2,K2)) -> 0 | M2: =IF(I2="","",IF(I2="Дома",K2,J2)) -> 4 | N2: =IF(I2="","",IF(I2="Дома",IF(J2>K2,"В",IF(J2=K2,"Н","П")),IF(J2<K2,"В",IF(J2=K2,"Н","П")))) -> П | O2: =IF(I2="","",1) -> 1 | P2: =IF(I2="","",IF(N2="В",1,0)) -> 0 | Q2: =IF(I2="","",IF(N2="Н",1,0)) -> 0 | R2: =IF(I2="","",IF(N2="П",1,0)) -> 1 | S2: =IF(I2="","",L2) -> 0 | T2: =IF(I2="","",M2) -> 4 | U2: =IF(I2="","",P2*3+Q2) -> 0 | V2: =IF(I2="","",IF(I2="Дома",1,0)) -> 0 | W2: =IF(I2="","",IF(I2="Дома",IF(N2="В",1,0),0)) -> 0 | X2: =IF(I2="","",IF(I2="Дома",IF(N2="Н",1,0),0)) -> 0 | Y2: =IF(I2="","",IF(I2="Дома",IF(N2="П",1,0),0)) -> 0 | Z2: =IF(I2="","",IF(I2="Дома",L2,0)) -> 0 | AA2: =IF(I2="","",IF(I2="Дома",M2,0)) -> 0 | AB2: =IF(I2="","",IF(I2="Дома",W2*3+X2,0)) -> 0 | AC2: =IF(I2="","",IF(I2="Гости",1,0)) -> 1 | AD2: =IF(I2="","",IF(I2="Гости",IF(N2="В",1,0),0)) -> 0 | AE2: =IF(I2="","",IF(I2="Гости",IF(N2="Н",1,0),0)) -> 0 | AF2: =IF(I2="","",IF(I2="Гости",IF(N2="П",1,0),0)) -> 1 | AG2: =IF(I2="","",IF(I2="Гости",L2,0)) -> 0 | AH2: =IF(I2="","",IF(I2="Гости",M2,0)) -> 4 | AI2: =IF(I2="","",IF(I2="Гости",AD2*3+AE2,0)) -> 0 | AM2: =COUNTIF(AM4:AM18,AM1) -> 5 | AN2: =COUNTIF(AM4:AM18,AN1) -> 10 | AO2: =COUNTIF(AN4:AN18,AO1) -> 3 | AP2: =COUNTIF(AN4:AN18,AP1) -> 12
A3: АЛБАНИЯ: Суперлига | B3: 2019.11.24 18:30 | C3: Влазния | D3: Теута | E3: 0 | F3: 0 | G3: 0 | H3: 0 | I3: Гости | J3: =IF(I3="","",E3+G3) -> 0 | K3: =IF(I3="","",F3+H3) -> 0 | L3: =IF(I3="","",IF(I3="Дома",J3,K3)) -> 0 | M3: =IF(I3="","",IF(I3="Дома",K3,J3)) -> 0 | N3: =IF(I3="","",IF(I3="Дома",IF(J3>K3,"В",IF(J3=K3,"Н","П")),IF(J3<K3,"В",IF(J3=K3,"Н","П")))) -> Н | O3: =IF(I3="","",O2+1) -> 2 | P3: =IF(I3="","",IF(N3="В",P2+1,P2)) -> 0 | Q3: =IF(I3="","",IF(N3="Н",Q2+1,Q2)) -> 1 | R3: =IF(I3="","",IF(N3="П",R2+1,R2)) -> 1 | S3: =IF(I3="","",S2+L3) -> 0 | T3: =IF(I3="","",T2+M3) -> 4 | U3: =IF(I3="","",P3*3+Q3) -> 1 | V3: =IF(I3="","",IF(I3="Дома",V2+1,V2+0)) -> 0 | W3: =IF(I3="","",IF(I3="Дома",IF(N3="В",W2+1,W2),W2)) -> 0 | X3: =IF(I3="","",IF(I3="Дома",IF(N3="Н",X2+1,X2),X2)) -> 0 | Y3: =IF(I3="","",IF(I3="Дома",IF(N3="П",Y2+1,Y2),Y2)) -> 0 | Z3: =IF(I3="","",IF(I3="Дома",L3+Z2,Z2)) -> 0 | AA3: =IF(I3="","",IF(I3="Дома",M3+AA2,AA2)) -> 0 | AB3: =IF(I3="","",IF(I3="Дома",W3*3+X3,AB2)) -> 0 | AC3: =IF(I3="","",IF(I3="Гости",AC2+1,AC2+0)) -> 2 | AD3: =IF(I3="","",IF(I3="Гости",IF(N3="В",AD2+1,AD2),AD2)) -> 0 | AE3: =IF(I3="","",IF(I3="Гости",IF(N3="Н",AE2+1,AE2),AE2)) -> 1 | AF3: =IF(I3="","",IF(I3="Гости",IF(N3="П",AF2+1,AF2),AF2)) -> 1 | AG3: =IF(I3="","",IF(I3="Гости",L3+AG2,AG2)) -> 0 | AH3: =IF(I3="","",IF(I3="Гости",M3+AH2,AH2)) -> 4 | AI3: =IF(I3="","",IF(I3="Гости",AD3*3+AE3,AI2)) -> 1
A4: АЛБАНИЯ: Суперлига | B4: 2019.11.09 15:30 | C4: Люфтетари Гирокастра | D4: Теута | E4: 0 | F4: 0 | G4: 0 | H4: 0 | I4: Гости | J4: 0 | K4: 0 | L4: 0 | M4: 0 | N4: Н | O4: 3 | P4: =IF(I4="","",IF(N4="В",P3+1,P3)) -> 0 | Q4: =IF(I4="","",IF(N4="Н",Q3+1,Q3)) -> 2 | R4: =IF(I4="","",IF(N4="П",R3+1,R3)) -> 1 | S4: =IF(I4="","",S3+L4) -> 0 | T4: =IF(I4="","",T3+M4) -> 4 | U4: 2 | V4: =IF(I4="","",IF(I4="Дома",V3+1,V3+0)) -> 0 | W4: =IF(I4="","",IF(I4="Дома",IF(N4="В",W3+1,W3),W3)) -> 0 | X4: =IF(I4="","",IF(I4="Дома",IF(N4="Н",X3+1,X3),X3)) -> 0 | Y4: =IF(I4="","",IF(I4="Дома",IF(N4="П",Y3+1,Y3),Y3)) -> 0 | Z4: =IF(I4="","",IF(I4="Дома",L4+Z3,Z3)) -> 0 | AA4: =IF(I4="","",IF(I4="Дома",M4+AA3,AA3)) -> 0 | AB4: =IF(I4="","",IF(I4="Дома",W4*3+X4,AB3)) -> 0 | AC4: =IF(I4="","",IF(I4="Гости",AC3+1,AC3+0)) -> 3 | AD4: =IF(I4="","",IF(I4="Гости",IF(N4="В",AD3+1,AD3),AD3)) -> 0 | AE4: =IF(I4="","",IF(I4="Гости",IF(N4="Н",AE3+1,AE3),AE3)) -> 2 | AF4: =IF(I4="","",IF(I4="Гости",IF(N4="П",AF3+1,AF3),AF3)) -> 1 | AG4: =IF(I4="","",IF(I4="Гости",L4+AG3,AG3)) -> 0 | AH4: =IF(I4="","",IF(I4="Гости",M4+AH3,AH3)) -> 4 | AI4: =IF(I4="","",IF(I4="Гости",AD4*3+AE4,AI3)) -> 2 | AM4: =IF(J2+K2>2.5,"2.5 +","2.5 -") -> 2.5 + | AN4: =IF((IF(J2>=1,1,0)+IF(K2>=1,1,0))=2,"GG","NG") -> NG
A5: АЛБАНИЯ: Суперлига | B5: 2019.10.27 15:00 | C5: Билис | D5: Теута | E5: 0 | F5: 0 | G5: 0 | H5: 0 | I5: Гости | J5: 0 | K5: 0 | L5: 0 | M5: 0 | N5: Н | O5: 4 | P5: 0 | Q5: 3 | R5: 1 | S5: 0 | T5: 4 | U5: 3 | V5: 0 | W5: 0 | X5: 0 | Y5: 0 | Z5: 0 | AA5: 0 | AB5: 0 | AC5: 4 | AD5: 0 | AE5: 3 | AF5: 1 | AG5: 0 | AH5: 4 | AI5: 3 | AM5: =IF(J3+K3>2.5,"2.5 +","2.5 -") -> 2.5 - | AN5: =IF((IF(J3>=1,1,0)+IF(K3>=1,1,0))=2,"GG","NG") -> NG
A6: АЛБАНИЯ: Суперлига | B6: 2019.10.23 14:00 | C6: Лячи | D6: Теута | E6: 2 | F6: 0 | G6: 1 | H6: 0 | I6: Гости | J6: 3 | K6: 0 | L6: 0 | M6: 3 | N6: П | O6: 5 | P6: 0 | Q6: 3 | R6: 2 | S6: 0 | T6: 7 | U6: 3 | V6: 0 | W6: 0 | X6: 0 | Y6: 0 | Z6: 0 | AA6: 0 | AB6: 0 | AC6: 5 | AD6: 0 | AE6: 3 | AF6: 2 | AG6: 0 | AH6: 7 | AI6: 3 | AM6: 2.5 - | AN6: NG
A7: АЛБАНИЯ: Суперлига | B7: 2019.10.05 18:00 | C7: Партизани | D7: Теута | E7: 1 | F7: 1 | G7: 0 | H7: 0 | I7: Гости | J7: 1 | K7: 1 | L7: 1 | M7: 1 | N7: Н | O7: 6 | P7: 0 | Q7: 4 | R7: 2 | S7: 1 | T7: 8 | U7: 4 | V7: 0 | W7: 0 | X7: 0 | Y7: 0 | Z7: 0 | AA7: 0 | AB7: 0 | AC7: 6 | AD7: 0 | AE7: 4 | AF7: 2 | AG7: 1 | AH7: 8 | AI7: 4 | AM7: 2.5 - | AN7: NG
A8: АЛБАНИЯ: Суперлига | B8: 2019.09.21 17:00 | C8: Скендербеу | D8: Теута | E8: 1 | F8: 0 | G8: 0 | H8: 0 | I8: Гости | J8: 1 | K8: 0 | L8: 0 | M8: 1 | N8: П | O8: 7 | P8: 0 | Q8: 4 | R8: 3 | S8: 1 | T8: 9 | U8: 4 | V8: 0 | W8: 0 | X8: 0 | Y8: 0 | Z8: 0 | AA8: 0 | AB8: 0 | AC8: 7 | AD8: 0 | AE8: 4 | AF8: 3 | AG8: 1 | AH8: 9 | AI8: 4 | AM8: 2.5 + | AN8: NG
A9: АЛБАНИЯ: Кубок Албании | B9: 2019.09.18 17:00 | C9: Тербуни | D9: Теута | E9: 0 | F9: 0 | G9: 0 | H9: 2 | I9: Гости | J9: 0 | K9: 2 | L9: 2 | M9: 0 | N9: =IF(I9="","",IF(I9="Дома",IF(J9>K9,"В",IF(J9=K9,"Н","П")),IF(J9<K9,"В",IF(J9=K9,"Н","П")))) -> В | O9: 8 | P9: 1 | Q9: 4 | R9: 3 | S9: 3 | T9: 9 | U9: 7 | V9: 0 | W9: 0 | X9: 0 | Y9: 0 | Z9: 0 | AA9: 0 | AB9: 0 | AC9: 8 | AD9: 1 | AE9: 4 | AF9: 3 | AG9: 3 | AH9: 9 | AI9: 7 | AM9: 2.5 - | AN9: GG
A10: АЛБАНИЯ: Суперлига | B10: 2019.08.27 20:00 | C10: Тирана | D10: Теута | E10: 0 | F10: 0 | G10: 0 | H10: 0 | I10: Гости | J10: 0 | K10: 0 | L10: 0 | M10: 0 | N10: =IF(I10="","",IF(I10="Дома",IF(J10>K10,"В",IF(J10=K10,"Н","П")),IF(J10<K10,"В",IF(J10=K10,"Н","П")))) -> Н | O10: 9 | P10: 1 | Q10: 5 | R10: 3 | S10: 3 | T10: 9 | U10: 8 | V10: 0 | W10: 0 | X10: 0 | Y10: 0 | Z10: 0 | AA10: 0 | AB10: 0 | AC10: 9 | AD10: 1 | AE10: 5 | AF10: 3 | AG10: 3 | AH10: 9 | AI10: 8 | AM10: 2.5 - | AN10: NG
A11: ЕВРОПА: Лига Европы - Квалификация | B11: 2019.07.11 17:45 | C11: Вентспилс | D11: Теута | E11: 1 | F11: 0 | G11: 2 | H11: 0 | I11: Гости | J11: 3 | K11: 0 | L11: 0 | M11: 3 | N11: П | O11: 10 | P11: 1 | Q11: 5 | R11: 4 | S11: 3 | T11: 12 | U11: 8 | V11: 0 | W11: 0 | X11: 0 | Y11: 0 | Z11: 0 | AA11: 0 | AB11: 0 | AC11: 10 | AD11: 1 | AE11: 5 | AF11: 4 | AG11: 3 | AH11: 12 | AI11: 8 | AM11: 2.5 - | AN11: NG
A12: МИР: Клубные товарищеские матчи | B12: 2019.07.03 18:45 | C12: Септември София | D12: Теута | E12: 0 | F12: 1 | G12: 0 | H12: 1 | I12: Гости | J12: 0 | K12: 2 | L12: 2 | M12: 0 | N12: В | O12: 11 | P12: 2 | Q12: 5 | R12: 4 | S12: 5 | T12: 12 | U12: =IF(I12="","",P12*3+Q12) -> 11 | V12: 0 | W12: 0 | X12: 0 | Y12: 0 | Z12: 0 | AA12: 0 | AB12: 0 | AC12: 11 | AD12: 2 | AE12: 5 | AF12: 4 | AG12: 5 | AH12: 12 | AI12: 11 | AM12: 2.5 - | AN12: NG
A13: АЛБАНИЯ: Суперлига | B13: 2019.05.26 17:30 | C13: Кастриоти | D13: Теута | E13: 0 | F13: 0 | G13: 2 | H13: 1 | I13: Гости | J13: 2 | K13: 1 | L13: 1 | M13: 2 | N13: П | O13: 12 | P13: 2 | Q13: 5 | R13: 5 | S13: 6 | T13: 14 | U13: 11 | V13: 0 | W13: 0 | X13: 0 | Y13: 0 | Z13: 0 | AA13: 0 | AB13: 0 | AC13: 12 | AD13: 2 | AE13: 5 | AF13: 5 | AG13: 6 | AH13: 14 | AI13: 11 | AM13: 2.5 + | AN13: NG
A14: АЛБАНИЯ: Суперлига | B14: 2019.05.12 17:30 | C14: Скендербеу | D14: Теута | E14: 0 | F14: 1 | G14: 1 | H14: 1 | I14: Гости | J14: 1 | K14: 2 | L14: 2 | M14: 1 | N14: В | O14: 13 | P14: 3 | Q14: 5 | R14: 5 | S14: 8 | T14: 15 | U14: 14 | V14: 0 | W14: 0 | X14: 0 | Y14: 0 | Z14: 0 | AA14: 0 | AB14: 0 | AC14: 13 | AD14: 3 | AE14: 5 | AF14: 5 | AG14: 8 | AH14: 15 | AI14: 14 | AM14: 2.5 - | AN14: NG
A15: АЛБАНИЯ: Суперлига | B15: 2019.04.28 17:00 | C15: Кукеси | D15: Теута | E15: 0 | F15: 0 | G15: 0 | H15: 0 | I15: Гости | J15: 0 | K15: 0 | L15: 0 | M15: 0 | N15: Н | O15: 14 | P15: 3 | Q15: 6 | R15: 5 | S15: 8 | T15: 15 | U15: 15 | V15: 0 | W15: 0 | X15: 0 | Y15: 0 | Z15: 0 | AA15: 0 | AB15: 0 | AC15: 14 | AD15: 3 | AE15: 6 | AF15: 5 | AG15: 8 | AH15: 15 | AI15: 15 | AM15: 2.5 + | AN15: GG
A16: АЛБАНИЯ: Суперлига | B16: 2019.04.20 18:00 | C16: Камза | D16: Теута | E16: 0 | F16: 0 | G16: 0 | H16: 0 | I16: Гости | J16: 0 | K16: 0 | L16: 0 | M16: 0 | N16: Н | O16: 15 | P16: 3 | Q16: 7 | R16: 5 | S16: 8 | T16: 15 | U16: 16 | V16: 0 | W16: 0 | X16: 0 | Y16: 0 | Z16: 0 | AA16: 0 | AB16: 0 | AC16: 15 | AD16: 3 | AE16: 7 | AF16: 5 | AG16: 8 | AH16: 15 | AI16: 16 | AM16: 2.5 + | AN16: GG
A17: АЛБАНИЯ: Суперлига | B17: 2019.04.10 19:30 | C17: Флямуртари | D17: Теута | E17: 1 | F17: 0 | G17: 2 | H17: 1 | I17: Гости | J17: 3 | K17: 1 | L17: 1 | M17: 3 | N17: П | O17: 16 | P17: 3 | Q17: 7 | R17: 6 | S17: 9 | T17: 18 | U17: 16 | V17: 0 | W17: 0 | X17: 0 | Y17: 0 | Z17: 0 | AA17: 0 | AB17: 0 | AC17: 16 | AD17: 3 | AE17: 7 | AF17: 6 | AG17: 9 | AH17: 18 | AI17: 16 | AM17: 2.5 - | AN17: NG
A18: АЛБАНИЯ: Суперлига | B18: 2019.04.06 16:45 | C18: Лячи | D18: Теута | E18: 2 | F18: 0 | G18: 3 | H18: 0 | I18: Гости | J18: 5 | K18: 0 | L18: 0 | M18: 5 | N18: П | O18: 17 | P18: 3 | Q18: 7 | R18: 7 | S18: 9 | T18: 23 | U18: 16 | V18: 0 | W18: 0 | X18: 0 | Y18: 0 | Z18: 0 | AA18: 0 | AB18: 0 | AC18: 17 | AD18: 3 | AE18: 7 | AF18: 7 | AG18: 9 | AH18: 23 | AI18: 16 | AM18: 2.5 - | AN18: NG
A19: АЛБАНИЯ: Кубок Албании | B19: 2019.04.03 18:00 | C19: Кукеси | D19: Теута | E19: 0 | F19: 0 | G19: 1 | H19: 0 | I19: Гости | J19: 1 | K19: 0 | L19: 0 | M19: 1 | N19: П | O19: 18 | P19: 3 | Q19: 7 | R19: 8 | S19: 9 | T19: 24 | U19: 16 | V19: 0 | W19: 0 | X19: 0 | Y19: 0 | Z19: 0 | AA19: 0 | AB19: 0 | AC19: 18 | AD19: 3 | AE19: 7 | AF19: 8 | AG19: 9 | AH19: 24 | AI19: 16
A20: АЛБАНИЯ: Суперлига | B20: 2019.03.17 19:00 | C20: Партизани | D20: Теута | E20: 2 | F20: 0 | G20: 1 | H20: 0 | I20: Гости | J20: 3 | K20: 0 | L20: 0 | M20: 3 | N20: П | O20: 19 | P20: 3 | Q20: 7 | R20: 9 | S20: 9 | T20: 27 | U20: 16 | V20: 0 | W20: 0 | X20: 0 | Y20: 0 | Z20: 0 | AA20: 0 | AB20: 0 | AC20: 19 | AD20: 3 | AE20: 7 | AF20: 9 | AG20: 9 | AH20: 27 | AI20: 16
A21: АЛБАНИЯ: Суперлига | B21: 2019.02.23 16:00 | C21: Люфтетари Гирокастра | D21: Теута | E21: 1 | F21: 0 | G21: 0 | H21: 0 | I21: Гости | J21: 1 | K21: 0 | L21: 0 | M21: 1 | N21: П | O21: 20 | P21: 3 | Q21: 7 | R21: 10 | S21: 9 | T21: 28 | U21: 16 | V21: 0 | W21: 0 | X21: 0 | Y21: 0 | Z21: 0 | AA21: 0 | AB21: 0 | AC21: 20 | AD21: 3 | AE21: 7 | AF21: 10 | AG21: 9 | AH21: 28 | AI21: 16
A22: АЛБАНИЯ: Суперлига | B22: 2019.02.01 20:00 | C22: Тирана | D22: Теута | E22: 1 | F22: 1 | G22: 0 | H22: 0 | I22: Гости | J22: 1 | K22: 1 | L22: 1 | M22: 1 | N22: Н | O22: 21 | P22: 3 | Q22: 8 | R22: 10 | S22: 10 | T22: 29 | U22: 17 | V22: 0 | W22: 0 | X22: 0 | Y22: 0 | Z22: 0 | AA22: 0 | AB22: 0 | AC22: 21 | AD22: 3 | AE22: 8 | AF22: 10 | AG22: 10 | AH22: 29 | AI22: 17
J67: =IF(I67="","",E67+G67) ->  | K67: =IF(I67="","",F67+H67) ->  | L67: =IF(I67="","",IF(I67="Дома",J67,K67)) ->  | M67: =IF(I67="","",IF(I67="Дома",K67,J67)) ->  | O67: =IF(I67="","",O66+1) ->  | U67: =IF(I67="","",P67*3+Q67) -> 
P68: =IF(I68="","",IF(N68="В",P67+1,P67)) ->  | Q68: =IF(I68="","",IF(N68="Н",Q67+1,Q67)) ->  | R68: =IF(I68="","",IF(N68="П",R67+1,R67)) ->  | S68: =IF(I68="","",S67+L68) ->  | T68: =IF(I68="","",T67+M68) ->  | V68: =IF(I68="","",IF(I68="Дома",V67+1,V67+0)) ->  | W68: =IF(I68="","",IF(I68="Дома",IF(N68="В",W67+1,W67),W67)) ->  | X68: =IF(I68="","",IF(I68="Дома",IF(N68="Н",X67+1,X67),X67)) ->  | Y68: =IF(I68="","",IF(I68="Дома",IF(N68="П",Y67+1,Y67),Y67)) ->  | Z68: =IF(I68="","",IF(I68="Дома",L68+Z67,Z67)) ->  | AA68: =IF(I68="","",IF(I68="Дома",M68+AA67,AA67)) ->  | AB68: =IF(I68="","",IF(I68="Дома",W68*3+X68,AB67)) ->  | AC68: =IF(I68="","",IF(I68="Гости",AC67+1,AC67+0)) ->  | AD68: =IF(I68="","",IF(I68="Гости",IF(N68="В",AD67+1,AD67),AD67)) ->  | AE68: =IF(I68="","",IF(I68="Гости",IF(N68="Н",AE67+1,AE67),AE67)) ->  | AF68: =IF(I68="","",IF(I68="Гости",IF(N68="П",AF67+1,AF67),AF67)) ->  | AG68: =IF(I68="","",IF(I68="Гости",L68+AG67,AG67)) ->  | AH68: =IF(I68="","",IF(I68="Гости",M68+AH67,AH67)) ->  | AI68: =IF(I68="","",IF(I68="Гости",AD68*3+AE68,AI67)) -> 
N74: =IF(I74="","",IF(I74="Дома",IF(J74>K74,"В",IF(J74=K74,"Н","П")),IF(J74<K74,"В",IF(J74=K74,"Н","П")))) -> 
J131: =IF(I131="","",E131+G131) ->  | K131: =IF(I131="","",F131+H131) ->  | L131: =IF(I131="","",IF(I131="Дома",J131,K131)) ->  | M131: =IF(I131="","",IF(I131="Дома",K131,J131)) ->  | O131: =IF(I131="","",O130+1) ->  | U131: =IF(I131="","",P131*3+Q131) -> 
P132: =IF(I132="","",IF(N132="В",P131+1,P131)) ->  | Q132: =IF(I132="","",IF(N132="Н",Q131+1,Q131)) ->  | R132: =IF(I132="","",IF(N132="П",R131+1,R131)) ->  | S132: =IF(I132="","",S131+L132) ->  | T132: =IF(I132="","",T131+M132) ->  | V132: =IF(I132="","",IF(I132="Дома",V131+1,V131+0)) ->  | W132: =IF(I132="","",IF(I132="Дома",IF(N132="В",W131+1,W131),W131)) ->  | X132: =IF(I132="","",IF(I132="Дома",IF(N132="Н",X131+1,X131),X131)) ->  | Y132: =IF(I132="","",IF(I132="Дома",IF(N132="П",Y131+1,Y131),Y131)) ->  | Z132: =IF(I132="","",IF(I132="Дома",L132+Z131,Z131)) ->  | AA132: =IF(I132="","",IF(I132="Дома",M132+AA131,AA131)) ->  | AB132: =IF(I132="","",IF(I132="Дома",W132*3+X132,AB131)) ->  | AC132: =IF(I132="","",IF(I132="Гости",AC131+1,AC131+0)) ->  | AD132: =IF(I132="","",IF(I132="Гости",IF(N132="В",AD131+1,AD131),AD131)) ->  | AE132: =IF(I132="","",IF(I132="Гости",IF(N132="Н",AE131+1,AE131),AE131)) ->  | AF132: =IF(I132="","",IF(I132="Гости",IF(N132="П",AF131+1,AF131),AF131)) ->  | AG132: =IF(I132="","",IF(I132="Гости",L132+AG131,AG131)) ->  | AH132: =IF(I132="","",IF(I132="Гости",M132+AH131,AH131)) ->  | AI132: =IF(I132="","",IF(I132="Гости",AD132*3+AE132,AI131)) -> 
N138: =IF(I138="","",IF(I138="Дома",IF(J138>K138,"В",IF(J138=K138,"Н","П")),IF(J138<K138,"В",IF(J138=K138,"Н","П")))) -> 

Sheet ДомаДома (hidden)
A1: Чемпионат | B1: Дата/Время | C1: Дома | D1: Гости | E1: К1 в 1Т | F1: К2 в 1Т | G1: К1 во 2Т | H1: К2 во 2Т | I1: Где играли | J1: К1 Голов | K1: К2 Голов | L1: Забито | M1: Пропущено | N1: Результат | O1: Всего Игр | P1: Всего выиграно | Q1: Всего ничьих | R1: Всего проиграно | S1: Всего забито | T1: Всего пропущено | U1: Всего очков | V1: Дома игр | W1: Дома выиграно | X1: Дома ничьих | Y1: Дома проиграно | Z1: Дома забито | AA1: Дома пропущено | AB1: Дома очков | AC1: Гости игр | AD1: Гости выиграно | AE1: Гости ничьих | AF1: Гости проиграно | AG1: Гости забито | AH1: Гости пропущено | AI1: Гости очков
A2: АЛБАНИЯ: Суперлига | B2: 2019.12.14 15:00 | C2: Флямуртари | D2: Билис | E2: 1 | F2: 1 | G2: 1 | H2: 1 | I2: Дома | J2: =IF(I2="","",E2+G2) -> 2 | K2: =IF(I2="","",F2+H2) -> 2 | L2: =IF(I2="","",IF(I2="Дома",J2,K2)) -> 2 | M2: =IF(I2="","",IF(I2="Дома",K2,J2)) -> 2 | N2: =IF(I2="","",IF(I2="Дома",IF(J2>K2,"В",IF(J2=K2,"Н","П")),IF(J2<K2,"В",IF(J2=K2,"Н","П")))) -> Н | O2: =IF(I2="","",1) -> 1 | P2: =IF(I2="","",IF(N2="В",1,0)) -> 0 | Q2: =IF(I2="","",IF(N2="Н",1,0)) -> 1 | R2: =IF(I2="","",IF(N2="П",1,0)) -> 0 | S2: =IF(I2="","",L2) -> 2 | T2: =IF(I2="","",M2) -> 2 | U2: =IF(I2="","",P2*3+Q2) -> 1 | V2: =IF(I2="","",IF(I2="Дома",1,0)) -> 1 | W2: =IF(I2="","",IF(I2="Дома",IF(N2="В",1,0),0)) -> 0 | X2: =IF(I2="","",IF(I2="Дома",IF(N2="Н",1,0),0)) -> 1 | Y2: =IF(I2="","",IF(I2="Дома",IF(N2="П",1,0),0)) -> 0 | Z2: =IF(I2="","",IF(I2="Дома",L2,0)) -> 2 | AA2: =IF(I2="","",IF(I2="Дома",M2,0)) -> 2 | AB2: =IF(I2="","",IF(I2="Дома",W2*3+X2,0)) -> 1 | AC2: =IF(I2="","",IF(I2="Гости",1,0)) -> 0 | AD2: =IF(I2="","",IF(I2="Гости",IF(N2="В",1,0),0)) -> 0 | AE2: =IF(I2="","",IF(I2="Гости",IF(N2="Н",1,0),0)) -> 0 | AF2: =IF(I2="","",IF(I2="Гости",IF(N2="П",1,0),0)) -> 0 | AG2: =IF(I2="","",IF(I2="Гости",L2,0)) -> 0 | AH2: =IF(I2="","",IF(I2="Гости",M2,0)) -> 0 | AI2: =IF(I2="","",IF(I2="Гости",AD2*3+AE2,0)) -> 0 | AM2: 2.5 + | AN2: 2.5 - | AO2: GG | AP2: NG
A3: АЛБАНИЯ: Суперлига | B3: 2019.11.23 15:30 | C3: Флямуртари | D3: Люфтетари Гирокастра | E3: 0 | F3: 0 | G3: 1 | H3: 1 | I3: Дома | J3: =IF(I3="","",E3+G3) -> 1 | K3: =IF(I3="","",F3+H3) -> 1 | L3: =IF(I3="","",IF(I3="Дома",J3,K3)) -> 1 | M3: =IF(I3="","",IF(I3="Дома",K3,J3)) -> 1 | N3: =IF(I3="","",IF(I3="Дома",IF(J3>K3,"В",IF(J3=K3,"Н","П")),IF(J3<K3,"В",IF(J3=K3,"Н","П")))) -> Н | O3: =IF(I3="","",O2+1) -> 2 | P3: =IF(I3="","",IF(N3="В",P2+1,P2)) -> 0 | Q3: =IF(I3="","",IF(N3="Н",Q2+1,Q2)) -> 2 | R3: =IF(I3="","",IF(N3="П",R2+1,R2)) -> 0 | S3: =IF(I3="","",S2+L3) -> 3 | T3: =IF(I3="","",T2+M3) -> 3 | U3: =IF(I3="","",P3*3+Q3) -> 2 | V3: =IF(I3="","",IF(I3="Дома",V2+1,V2+0)) -> 2 | W3: =IF(I3="","",IF(I3="Дома",IF(N3="В",W2+1,W2),W2)) -> 0 | X3: =IF(I3="","",IF(I3="Дома",IF(N3="Н",X2+1,X2),X2)) -> 2 | Y3: =IF(I3="","",IF(I3="Дома",IF(N3="П",Y2+1,Y2),Y2)) -> 0 | Z3: =IF(I3="","",IF(I3="Дома",L3+Z2,Z2)) -> 3 | AA3: =IF(I3="","",IF(I3="Дома",M3+AA2,AA2)) -> 3 | AB3: =IF(I3="","",IF(I3="Дома",W3*3+X3,AB2)) -> 2 | AC3: =IF(I3="","",IF(I3="Гости",AC2+1,AC2+0)) -> 0 | AD3: =IF(I3="","",IF(I3="Гости",IF(N3="В",AD2+1,AD2),AD2)) -> 0 | AE3: =IF(I3="","",IF(I3="Гости",IF(N3="Н",AE2+1,AE2),AE2)) -> 0 | AF3: =IF(I3="","",IF(I3="Гости",IF(N3="П",AF2+1,AF2),AF2)) -> 0 | AG3: =IF(I3="","",IF(I3="Гости",L3+AG2,AG2)) -> 0 | AH3: =IF(I3="","",IF(I3="Гости",M3+AH2,AH2)) -> 0 | AI3: =IF(I3="","",IF(I3="Гости",AD3*3+AE3,AI2)) -> 0 | AM3: =COUNTIF(AM5:AM19,AM2) -> 9 | AN3: =COUNTIF(AM5:AM19,AN2) -> 6 | AO3: =COUNTIF(AN5:AN19,AO2) -> 9 | AP3: =COUNTIF(AN5:AN19,AP2) -> 6
A4: АЛБАНИЯ: Суперлига | B4: 2019.11.10 18:30 | C4: Флямуртари | D4: Партизани | E4: 0 | F4: 0 | G4: 1 | H4: 1 | I4: Дома | J4: 1 | K4: 1 | L4: 1 | M4: 1 | N4: Н | O4: 3 | P4: =IF(I4="","",IF(N4="В",P3+1,P3)) -> 0 | Q4: =IF(I4="","",IF(N4="Н",Q3+1,Q3)) -> 3 | R4: =IF(I4="","",IF(N4="П",R3+1,R3)) -> 0 | S4: =IF(I4="","",S3+L4) -> 4 | T4: =IF(I4="","",T3+M4) -> 4 | U4: 3 | V4: =IF(I4="","",IF(I4="Дома",V3+1,V3+0)) -> 3 | W4: =IF(I4="","",IF(I4="Дома",IF(N4="В",W3+1,W3),W3)) -> 0 | X4: =IF(I4="","",IF(I4="Дома",IF(N4="Н",X3+1,X3),X3)) -> 3 | Y4: =IF(I4="","",IF(I4="Дома",IF(N4="П",Y3+1,Y3),Y3)) -> 0 | Z4: =IF(I4="","",IF(I4="Дома",L4+Z3,Z3)) -> 4 | AA4: =IF(I4="","",IF(I4="Дома",M4+AA3,AA3)) -> 4 | AB4: =IF(I4="","",IF(I4="Дома",W4*3+X4,AB3)) -> 3 | AC4: =IF(I4="","",IF(I4="Гости",AC3+1,AC3+0)) -> 0 | AD4: =IF(I4="","",IF(I4="Гости",IF(N4="В",AD3+1,AD3),AD3)) -> 0 | AE4: =IF(I4="","",IF(I4="Гости",IF(N4="Н",AE3+1,AE3),AE3)) -> 0 | AF4: =IF(I4="","",IF(I4="Гости",IF(N4="П",AF3+1,AF3),AF3)) -> 0 | AG4: =IF(I4="","",IF(I4="Гости",L4+AG3,AG3)) -> 0 | AH4: =IF(I4="","",IF(I4="Гости",M4+AH3,AH3)) -> 0 | AI4: =IF(I4="","",IF(I4="Гости",AD4*3+AE4,AI3)) -> 0
A5: АЛБАНИЯ: Суперлига | B5: 2019.10.28 20:00 | C5: Флямуртари | D5: Скендербеу | E5: 1 | F5: 1 | G5: 0 | H5: 0 | I5: Дома | J5: 1 | K5: 1 | L5: 1 | M5: 1 | N5: Н | O5: 4 | P5: 0 | Q5: =IF(I5="","",IF(N5="Н",Q4+1,Q4)) -> 4 | R5: 0 | S5: 5 | T5: 5 | U5: 4 | V5: 4 | W5: 0 | X5: 4 | Y5: 0 | Z5: 5 | AA5: 5 | AB5: 4 | AC5: 0 | AD5: 0 | AE5: 0 | AF5: 0 | AG5: 0 | AH5: 0 | AI5: 0 | AM5: =IF(J2+K2>2.5,"2.5 +","2.5 -") -> 2.5 + | AN5: =IF((IF(J2>=1,1,0)+IF(K2>=1,1,0))=2,"GG","NG") -> GG
A6: АЛБАНИЯ: Суперлига | B6: 2019.10.23 17:00 | C6: Флямуртари | D6: Влазния | E6: 1 | F6: 1 | G6: 0 | H6: 2 | I6: Дома | J6: 1 | K6: 3 | L6: 1 | M6: 3 | N6: П | O6: 5 | P6: 0 | Q6: 4 | R6: 1 | S6: 6 | T6: 8 | U6: 4 | V6: 5 | W6: 0 | X6: 4 | Y6: 1 | Z6: 6 | AA6: 8 | AB6: 4 | AC6: 0 | AD6: 0 | AE6: 0 | AF6: 0 | AG6: 0 | AH6: 0 | AI6: 0 | AM6: =IF(J3+K3>2.5,"2.5 +","2.5 -") -> 2.5 - | AN6: =IF((IF(J3>=1,1,0)+IF(K3>=1,1,0))=2,"GG","NG") -> GG
A7: АЛБАНИЯ: Суперлига | B7: 2019.10.05 18:00 | C7: Флямуртари | D7: Тирана | E7: 1 | F7: 2 | G7: 1 | H7: 0 | I7: Дома | J7: 2 | K7: 2 | L7: 2 | M7: 2 | N7: Н | O7: 6 | P7: 0 | Q7: 5 | R7: 1 | S7: 8 | T7: 10 | U7: 5 | V7: 6 | W7: 0 | X7: 5 | Y7: 1 | Z7: 8 | AA7: 10 | AB7: 5 | AC7: 0 | AD7: 0 | AE7: 0 | AF7: 0 | AG7: 0 | AH7: 0 | AI7: 0 | AM7: 2.5 - | AN7: GG
A8: АЛБАНИЯ: Кубок Албании | B8: 2019.10.02 15:00 | C8: Флямуртари | D8: Коплик | E8: 0 | F8: 0 | G8: 5 | H8: 0 | I8: Дома | J8: 5 | K8: 0 | L8: 5 | M8: 0 | N8: В | O8: 7 | P8: 1 | Q8: 5 | R8: 1 | S8: 13 | T8: 10 | U8: 8 | V8: 7 | W8: 1 | X8: 5 | Y8: 1 | Z8: 13 | AA8: 10 | AB8: 8 | AC8: 0 | AD8: 0 | AE8: 0 | AF8: 0 | AG8: 0 | AH8: 0 | AI8: 0 | AM8: 2.5 - | AN8: GG
A9: АЛБАНИЯ: Суперлига | B9: 2019.09.22 17:00 | C9: Флямуртари | D9: Лячи | E9: 2 | F9: 1 | G9: 1 | H9: 2 | I9: Дома | J9: 3 | K9: 3 | L9: 3 | M9: 3 | N9: =IF(I9="","",IF(I9="Дома",IF(J9>K9,"В",IF(J9=K9,"Н","П")),IF(J9<K9,"В",IF(J9=K9,"Н","П")))) -> Н | O9: 8 | P9: 1 | Q9: 6 | R9: 1 | S9: 16 | T9: 13 | U9: 9 | V9: 8 | W9: 1 | X9: 6 | Y9: 1 | Z9: 16 | AA9: 13 | AB9: 9 | AC9: 0 | AD9: 0 | AE9: 0 | AF9: 0 | AG9: 0 | AH9: 0 | AI9: 0 | AM9: 2.5 + | AN9: GG
A10: АЛБАНИЯ: Суперлига | B10: 2019.08.28 20:00 | C10: Флямуртари | D10: Кукеси | E10: 0 | F10: 1 | G10: 0 | H10: 2 | I10: Дома | J10: 0 | K10: 3 | L10: 0 | M10: 3 | N10: =IF(I10="","",IF(I10="Дома",IF(J10>K10,"В",IF(J10=K10,"Н","П")),IF(J10<K10,"В",IF(J10=K10,"Н","П")))) -> П | O10: 9 | P10: 1 | Q10: 6 | R10: 2 | S10: 16 | T10: 16 | U10: 9 | V10: 9 | W10: 1 | X10: 6 | Y10: 2 | Z10: 16 | AA10: 16 | AB10: 9 | AC10: 0 | AD10: 0 | AE10: 0 | AF10: 0 | AG10: 0 | AH10: 0 | AI10: 0 | AM10: 2.5 + | AN10: GG
A11: АЛБАНИЯ: Суперлига | B11: 2019.05.25 18:00 | C11: Флямуртари | D11: Камза | E11: 0 | F11: 0 | G11: 3 | H11: 0 | I11: Дома | J11: 3 | K11: 0 | L11: 3 | M11: 0 | N11: В | O11: 10 | P11: 2 | Q11: 6 | R11: 2 | S11: 19 | T11: 16 | U11: 12 | V11: 10 | W11: 2 | X11: 6 | Y11: 2 | Z11: 19 | AA11: 16 | AB11: 12 | AC11: 0 | AD11: 0 | AE11: 0 | AF11: 0 | AG11: 0 | AH11: 0 | AI11: 0 | AM11: 2.5 + | AN11: NG
A12: АЛБАНИЯ: Суперлига | B12: 2019.05.18 17:30 | C12: Флямуртари | D12: Лячи | E12: 1 | F12: 0 | G12: 0 | H12: 0 | I12: Дома | J12: 1 | K12: 0 | L12: 1 | M12: 0 | N12: В | O12: 11 | P12: 3 | Q12: 6 | R12: 2 | S12: 20 | T12: 16 | U12: =IF(I12="","",P12*3+Q12) -> 15 | V12: 11 | W12: 3 | X12: 6 | Y12: 2 | Z12: 20 | AA12: 16 | AB12: 15 | AC12: 0 | AD12: 0 | AE12: 0 | AF12: 0 | AG12: 0 | AH12: 0 | AI12: 0 | AM12: 2.5 + | AN12: GG
A13: АЛБАНИЯ: Суперлига | B13: 2019.05.04 16:00 | C13: Флямуртари | D13: Партизани | E13: 0 | F13: 1 | G13: 0 | H13: 2 | I13: Дома | J13: 0 | K13: 3 | L13: 0 | M13: 3 | N13: П | O13: 12 | P13: 3 | Q13: 6 | R13: 3 | S13: 20 | T13: 19 | U13: 15 | V13: 12 | W13: 3 | X13: 6 | Y13: 3 | Z13: 20 | AA13: 19 | AB13: 15 | AC13: 0 | AD13: 0 | AE13: 0 | AF13: 0 | AG13: 0 | AH13: 0 | AI13: 0 | AM13: 2.5 + | AN13: NG
A14: АЛБАНИЯ: Суперлига | B14: 2019.04.20 20:00 | C14: Флямуртари | D14: Люфтетари Гирокастра | E14: 0 | F14: 0 | G14: 1 | H14: 1 | I14: Дома | J14: 1 | K14: 1 | L14: 1 | M14: 1 | N14: Н | O14: 13 | P14: 3 | Q14: 7 | R14: 3 | S14: 21 | T14: 20 | U14: 16 | V14: 13 | W14: 3 | X14: 7 | Y14: 3 | Z14: 21 | AA14: 20 | AB14: 16 | AC14: 0 | AD14: 0 | AE14: 0 | AF14: 0 | AG14: 0 | AH14: 0 | AI14: 0 | AM14: 2.5 + | AN14: NG
A15: АЛБАНИЯ: Суперлига | B15: 2019.04.10 19:30 | C15: Флямуртари | D15: Теута | E15: 1 | F15: 0 | G15: 2 | H15: 1 | I15: Дома | J15: 3 | K15: 1 | L15: 3 | M15: 1 | N15: В | O15: 14 | P15: 4 | Q15: 7 | R15: 3 | S15: 24 | T15: 21 | U15: 19 | V15: 14 | W15: 4 | X15: 7 | Y15: 3 | Z15: 24 | AA15: 21 | AB15: 19 | AC15: 0 | AD15: 0 | AE15: 0 | AF15: 0 | AG15: 0 | AH15: 0 | AI15: 0 | AM15: 2.5 - | AN15: NG
A16: АЛБАНИЯ: Суперлига | B16: 2019.04.06 19:45 | C16: Флямуртари | D16: Тирана | E16: 1 | F16: 0 | G16: 0 | H16: 0 | I16: Дома | J16: 1 | K16: 0 | L16: 1 | M16: 0 | N16: В | O16: 15 | P16: 5 | Q16: 7 | R16: 3 | S16: 25 | T16: 21 | U16: 22 | V16: 15 | W16: 5 | X16: 7 | Y16: 3 | Z16: 25 | AA16: 21 | AB16: 22 | AC16: 0 | AD16: 0 | AE16: 0 | AF16: 0 | AG16: 0 | AH16: 0 | AI16: 0 | AM16: 2.5 + | AN16: NG
A17: АЛБАНИЯ: Суперлига | B17: 2019.03.03 19:00 | C17: Флямуртари | D17: Кастриоти | E17: 1 | F17: 0 | G17: 0 | H17: 1 | I17: Дома | J17: 1 | K17: 1 | L17: 1 | M17: 1 | N17: Н | O17: 16 | P17: 5 | Q17: 8 | R17: 3 | S17: 26 | T17: 22 | U17: 23 | V17: 16 | W17: 5 | X17: 8 | Y17: 3 | Z17: 26 | AA17: 22 | AB17: 23 | AC17: 0 | AD17: 0 | AE17: 0 | AF17: 0 | AG17: 0 | AH17: 0 | AI17: 0 | AM17: 2.5 - | AN17: GG
A18: АЛБАНИЯ: Суперлига | B18: 2019.02.17 19:00 | C18: Флямуртари | D18: Скендербеу | E18: 0 | F18: 0 | G18: 2 | H18: 0 | I18: Дома | J18: 2 | K18: 0 | L18: 2 | M18: 0 | N18: В | O18: 17 | P18: 6 | Q18: 8 | R18: 3 | S18: 28 | T18: 22 | U18: 26 | V18: 17 | W18: 6 | X18: 8 | Y18: 3 | Z18: 28 | AA18: 22 | AB18: 26 | AC18: 0 | AD18: 0 | AE18: 0 | AF18: 0 | AG18: 0 | AH18: 0 | AI18: 0 | AM18: 2.5 + | AN18: GG
A19: АЛБАНИЯ: Кубок Албании | B19: 2019.02.06 15:30 | C19: Флямуртари | D19: Тирана | E19: 0 | F19: 0 | G19: 1 | H19: 0 | I19: Дома | J19: 1 | K19: 0 | L19: 1 | M19: 0 | N19: В | O19: 18 | P19: 7 | Q19: 8 | R19: 3 | S19: 29 | T19: 22 | U19: 29 | V19: 18 | W19: 7 | X19: 8 | Y19: 3 | Z19: 29 | AA19: 22 | AB19: 29 | AC19: 0 | AD19: 0 | AE19: 0 | AF19: 0 | AG19: 0 | AH19: 0 | AI19: 0 | AM19: 2.5 - | AN19: NG
A20: АЛБАНИЯ: Суперлига | B20: 2019.02.02 19:00 | C20: Флямуртари | D20: Кукеси | E20: 1 | F20: 2 | G20: 0 | H20: 0 | I20: Дома | J20: 1 | K20: 2 | L20: 1 | M20: 2 | N20: П | O20: 19 | P20: 7 | Q20: 8 | R20: 4 | S20: 30 | T20: 24 | U20: 29 | V20: 19 | W20: 7 | X20: 8 | Y20: 4 | Z20: 30 | AA20: 24 | AB20: 29 | AC20: 0 | AD20: 0 | AE20: 0 | AF20: 0 | AG20: 0 | AH20: 0 | AI20: 0
A21: АЛБАНИЯ: Суперлига | B21: 2018.12.15 19:00 | C21: Флямуртари | D21: Камза | E21: 0 | F21: 0 | G21: 1 | H21: 0 | I21: Дома | J21: 1 | K21: 0 | L21: 1 | M21: 0 | N21: В | O21: 20 | P21: 8 | Q21: 8 | R21: 4 | S21: 31 | T21: 24 | U21: 32 | V21: 20 | W21: 8 | X21: 8 | Y21: 4 | Z21: 31 | AA21: 24 | AB21: 32 | AC21: 0 | AD21: 0 | AE21: 0 | AF21: 0 | AG21: 0 | AH21: 0 | AI21: 0
J67: =IF(I67="","",E67+G67) ->  | K67: =IF(I67="","",F67+H67) ->  | L67: =IF(I67="","",IF(I67="Дома",J67,K67)) ->  | M67: =IF(I67="","",IF(I67="Дома",K67,J67)) ->  | O67: =IF(I67="","",O66+1) ->  | U67: =IF(I67="","",P67*3+Q67) -> 
P68: =IF(I68="","",IF(N68="В",P67+1,P67)) ->  | Q68: =IF(I68="","",IF(N68="Н",Q67+1,Q67)) ->  | R68: =IF(I68="","",IF(N68="П",R67+1,R67)) ->  | S68: =IF(I68="","",S67+L68) ->  | T68: =IF(I68="","",T67+M68) ->  | V68: =IF(I68="","",IF(I68="Дома",V67+1,V67+0)) ->  | W68: =IF(I68="","",IF(I68="Дома",IF(N68="В",W67+1,W67),W67)) ->  | X68: =IF(I68="","",IF(I68="Дома",IF(N68="Н",X67+1,X67),X67)) ->  | Y68: =IF(I68="","",IF(I68="Дома",IF(N68="П",Y67+1,Y67),Y67)) ->  | Z68: =IF(I68="","",IF(I68="Дома",L68+Z67,Z67)) ->  | AA68: =IF(I68="","",IF(I68="Дома",M68+AA67,AA67)) ->  | AB68: =IF(I68="","",IF(I68="Дома",W68*3+X68,AB67)) ->  | AC68: =IF(I68="","",IF(I68="Гости",AC67+1,AC67+0)) ->  | AD68: =IF(I68="","",IF(I68="Гости",IF(N68="В",AD67+1,AD67),AD67)) ->  | AE68: =IF(I68="","",IF(I68="Гости",IF(N68="Н",AE67+1,AE67),AE67)) ->  | AF68: =IF(I68="","",IF(I68="Гости",IF(N68="П",AF67+1,AF67),AF67)) ->  | AG68: =IF(I68="","",IF(I68="Гости",L68+AG67,AG67)) ->  | AH68: =IF(I68="","",IF(I68="Гости",M68+AH67,AH67)) ->  | AI68: =IF(I68="","",IF(I68="Гости",AD68*3+AE68,AI67)) -> 
N74: =IF(I74="","",IF(I74="Дома",IF(J74>K74,"В",IF(J74=K74,"Н","П")),IF(J74<K74,"В",IF(J74=K74,"Н","П")))) -> 
J131: =IF(I131="","",E131+G131) ->  | K131: =IF(I131="","",F131+H131) ->  | L131: =IF(I131="","",IF(I131="Дома",J131,K131)) ->  | M131: =IF(I131="","",IF(I131="Дома",K131,J131)) ->  | O131: =IF(I131="","",O130+1) ->  | U131: =IF(I131="","",P131*3+Q131) -> 
P132: =IF(I132="","",IF(N132="В",P131+1,P131)) ->  | Q132: =IF(I132="","",IF(N132="Н",Q131+1,Q131)) ->  | R132: =IF(I132="","",IF(N132="П",R131+1,R131)) ->  | S132: =IF(I132="","",S131+L132) ->  | T132: =IF(I132="","",T131+M132) ->  | V132: =IF(I132="","",IF(I132="Дома",V131+1,V131+0)) ->  | W132: =IF(I132="","",IF(I132="Дома",IF(N132="В",W131+1,W131),W131)) ->  | X132: =IF(I132="","",IF(I132="Дома",IF(N132="Н",X131+1,X131),X131)) ->  | Y132: =IF(I132="","",IF(I132="Дома",IF(N132="П",Y131+1,Y131),Y131)) ->  | Z132: =IF(I132="","",IF(I132="Дома",L132+Z131,Z131)) ->  | AA132: =IF(I132="","",IF(I132="Дома",M132+AA131,AA131)) ->  | AB132: =IF(I132="","",IF(I132="Дома",W132*3+X132,AB131)) ->  | AC132: =IF(I132="","",IF(I132="Гости",AC131+1,AC131+0)) ->  | AD132: =IF(I132="","",IF(I132="Гости",IF(N132="В",AD131+1,AD131),AD131)) ->  | AE132: =IF(I132="","",IF(I132="Гости",IF(N132="Н",AE131+1,AE131),AE131)) ->  | AF132: =IF(I132="","",IF(I132="Гости",IF(N132="П",AF131+1,AF131),AF131)) ->  | AG132: =IF(I132="","",IF(I132="Гости",L132+AG131,AG131)) ->  | AH132: =IF(I132="","",IF(I132="Гости",M132+AH131,AH131)) ->  | AI132: =IF(I132="","",IF(I132="Гости",AD132*3+AE132,AI131)) -> 
N138: =IF(I138="","",IF(I138="Дома",IF(J138>K138,"В",IF(J138=K138,"Н","П")),IF(J138<K138,"В",IF(J138=K138,"Н","П")))) -> 

Sheet Итог (hidden)
A2: =INDEX(Список!A1:D1000,SUMPRODUCT(ROW(Список!A1:D1000)*(Список!A1:D1000=T2)),SUMPRODUCT(COLUMN(Список!A1:D1000)*(Список!A1:D1000=T2))-3) ->  | H2: =INDEX(Список!A1:D1000,SUMPRODUCT(ROW(Список!A1:D1000)*(Список!A1:D1000=T2)),SUMPRODUCT(COLUMN(Список!A1:D1000)*(Список!A1:D1000=T2))-2) ->  | O2: =#REF! ->  | T2: =#REF! -> 
A3: MY BET MY SCORE | G3: METODO PICCHETTI | O3: пуассон | R3: max bet 3
A5: ТС "Програмный" | C5: ТС по Миллеру | E5: ТС на ТМ (2А,ЗА) | G5: ТБ 1.5 | I5: ТМ 3.5 | K5: ТБ/ТМ | M5: ИСХОД | O5: ИД | P5: % | Q5: КФ | R5: FT | S5: Матч | T5: ТБ/ТМ | U5: Матчь | V5: Дома Заб | W5: Гости Заб | X5: ОЗ | Y5: ТБ 2.5 | Z5: СЧЁТ
O6: 1 | P6: =#REF! ->  | Q6: =#REF! -> 
G7: =#REF! ->  | I7: =#REF! ->  | K7: =CONCATENATE(#REF!," / ",#REF!) ->  | M7: =#REF! ->  | O7: Х | P7: =#REF! ->  | Q7: =#REF! ->  | S7: =#REF! ->  | T7: =#REF! ->  | U7: =#REF! ->  | V7: =#REF! ->  | W7: =#REF! ->  | X7: =#REF! ->  | Y7: =#REF! ->  | Z7: =#REF! ->  | AA7: =#REF! -> 
O8: 2 | P8: =#REF! ->  | Q8: =#REF! -> 
A9: =CONCATENATE(#REF!," - ",#REF!) ->  | B9: =CONCATENATE(#REF!," - ",#REF!) ->  | C9: =CONCATENATE(#REF!," - ",#REF!) ->  | D9: =CONCATENATE(#REF!," - ",#REF!) ->  | E9: =CONCATENATE(#REF!," - ",#REF!) ->  | F9: =CONCATENATE(#REF!," - ",#REF!) ->  | G9: П1 | H9: Х | I9: П2 | J9: ТБ/ТМ - MG | L9: П1 | M9: Х | N9: П2 | O9: ТБ 1.5 | P9: =#REF! ->  | Q9: =#REF! -> 
O10: ТМ 1.5 | P10: =#REF! ->  | Q10: =#REF! -> 
A11: Исход матча | B11: Вероятный счет | D11: ТБ 1,5 | E11: ТБ 2,5 | F11: ТБ 3,5 | G11: =#REF! ->  | H11: =#REF! ->  | I11: =#REF! ->  | J11: =CONCATENATE(#REF!," / ",#REF!) ->  | L11: =#REF! ->  | M11: =#REF! ->  | N11: =#REF! ->  | O11: ТБ 2.5 | P11: =#REF! ->  | Q11: =#REF! ->  | R11: 7 в 1 больше 1.5
A12: =#REF! ->  | B12: =#REF! ->  | C12: =#REF! ->  | D12: =#REF!/100 ->  | E12: =#REF!/100 ->  | F12: =#REF!/100 ->  | O12: ТМ 2.5 | P12: =#REF! ->  | Q12: =#REF! -> 
D13: =#REF! ->  | E13: =#REF! ->  | F13: =#REF! ->  | O13: ТБ 3.5 | P13: =#REF! ->  | Q13: =#REF! ->  | R13: GG + OV 1,5 | S13: Collevola 1.5 | T13: Collevola 2.5 | U13: Kalos Gheros | V13: Montebianco | W13: Palella | X13: Sirjo | Y13: Spettro | Z13: Superliuk | AA13: Superliuk 2.5
A14: Теория "Синдиката" | D14: ALONE V2 | O14: ТМ 3.5 | P14: =#REF! ->  | Q14: =#REF! -> 
O15: К1 Заб | P15: =#REF! ->  | Q15: =#REF! -> 
A16: Тест № 1 | B16: =#REF! ->  | D16: П1 | E16: Х | F16: П2 | G16: ТМ 2.5 | I16: ТБ 2.5 | K16: ОЗ Да | M16: ОЗ Нет | O16: К1 НЗ | P16: =#REF! ->  | Q16: =#REF! -> 
A17: Тест № 2 | B17: =#REF! ->  | O17: К2 Заб | P17: =#REF! ->  | Q17: =#REF! ->  | R17: =#REF! ->  | S17: =#REF! ->  | T17: =#REF! ->  | U17: =#REF! ->  | V17: =#REF! ->  | W17: =#REF! ->  | X17: =#REF! ->  | Y17: =#REF! ->  | Z17: =#REF! ->  | AA17: =#REF! -> 
A18: Тест № 3 | B18: =#REF! ->  | O18: К2 НЗ | P18: =#REF! ->  | Q18: =#REF! -> 
A19: Тест № 4 | B19: =#REF! ->  | D19: =#REF! ->  | E19: =#REF! ->  | F19: =#REF! ->  | G19: =#REF! ->  | I19: =#REF! ->  | K19: =#REF! ->  | M19: =#REF! ->  | O19: ОЗ | P19: =#REF! ->  | Q19: =#REF! ->  | R19: SENATORE V8.5
A20: Тотал | B20: =#REF! ->  | O20: ОЗ нет | P20: =#REF! ->  | Q20: =#REF! -> 
A21: Счет матча | O21: ТБ 0.5 | P21: =#REF! ->  | Q21: =#REF! ->  | R21: 1Х/Х2/12 | T21: П1 | U21: ИСХОД | V21: ТБ 1.5 | W21: ТОТАЛ | X21: К1 ЗАБ | Y21: К2 ЗАБ | Z21: ТБ 1.5 1 К | AA21: 1X2
D22: =#REF! ->  | E22: =#REF! ->  | F22: =#REF! ->  | G22: =#REF! ->  | I22: =#REF! ->  | K22: =#REF! ->  | M22: =#REF! ->  | O22: ТМ 0.5 | P22: =#REF! ->  | Q22: =#REF! -> 
A23: =CONCATENATE(#REF!," - ",#REF!) ->  | O23: =#REF! ->  | P23: - | Q23: =#REF! ->  | R23: =#REF! ->  | T23: =#REF! ->  | U23: =#REF! ->  | V23: =#REF! ->  | W23: =#REF! ->  | X23: =#REF! ->  | Y23: =#REF! ->  | Z23: =#REF! ->  | AA23: =#REF! -> 

Sheet Очные (hidden)
A1: Флямуртари | B1: Теута | G1: Результат К1 | H1: Забито К1 | I1: Пропущено К1 | J1: Выиграно К1 | K1: Ничьих К1 | L1: Проиграно К1 | M1: РезультатК2 | N1: Забито К2 | O1: Пропущено К2 | P1: Выиграно К2 | Q1: Ничьих К2 | R1: Пропущено К2
G2: =IF(A2="","",IF(A1=C2,IF(E2>F2,"В",IF(E2=F2,"Н","П")),IF(E2<F2,"В",IF(E2=F2,"Н","П")))) ->  | H2: =IF(A2="","",IF(A1=C2,E2,F2)) ->  | I2: =IF(A2="","",IF(A1=C2,F2,E2)) ->  | J2: =IF(A2="","",IF(G2="В",1,0)) ->  | K2: =IF(A2="","",IF(G2="Н",1,0)) ->  | L2: =IF(A2="","",IF(G2="П",1,0)) ->  | M2: =IF(A2="","",IF(B1=D2,IF(F2>E2,"В",IF(F2=E2,"Н","П")),IF(F2<E2,"В",IF(F2=E2,"Н","П")))) ->  | N2: =IF(A2="","",IF(B1=D2,F2,E2)) ->  | O2: =IF(A2="","",IF(B1=D2,E2,F2)) ->  | P2: =IF(A2="","",IF(M2="В",1,0)) ->  | Q2: =IF(A2="","",IF(M2="Н",1,0)) ->  | R2: =IF(A2="","",IF(M2="П",1,0)) -> 
G3: =IF(A3="","",IF($A$1=C3,IF(E3>F3,"В",IF(E3=F3,"Н","П")),IF(E3<F3,"В",IF(E3=F3,"Н","П")))) ->  | H3: =IF(A3="","",IF($A$1=C3,E3+H2,F3+H2)) ->  | I3: =IF(A3="","",IF($A$1=C3,F3+I2,E3+I2)) ->  | J3: =IF(A3="","",IF(G3="В",1+J2,0+J2)) ->  | K3: =IF(A3="","",IF(G3="Н",1+K2,0+K2)) ->  | L3: =IF(A3="","",IF(G3="П",1+L2,0+L2)) ->  | M3: =IF(A3="","",IF($B$1=D3,IF(F3>E3,"В",IF(F3=E3,"Н","П")),IF(F3<E3,"В",IF(F3=E3,"Н","П")))) ->  | N3: =IF(A3="","",IF($B$1=D3,F3+N2,E3+N2)) ->  | O3: =IF(A3="","",IF($B$1=D3,E3+O2,F3+O2)) ->  | P3: =IF(A3="","",IF(M3="В",1+P2,0+P2)) ->  | Q3: =IF(A3="","",IF(M3="Н",1+Q2,0+Q2)) ->  | R3: =IF(A3="","",IF(M3="П",1+R2,0+R2)) -> 
J4: =IF(A4="","",IF(G4="В",1+J3,0+J3)) ->  | K4: =IF(A4="","",IF(G4="Н",1+K3,0+K3)) ->  | L4: =IF(A4="","",IF(G4="П",1+L3,0+L3)) ->  | M4: =IF(A4="","",IF($B$1=D4,IF(F4>E4,"В",IF(F4=E4,"Н","П")),IF(F4<E4,"В",IF(F4=E4,"Н","П")))) ->  | N4: =IF(A4="","",IF($B$1=D4,F4+N3,E4+N3)) ->  | O4: =IF(A4="","",IF($B$1=D4,E4+O3,F4+O3)) ->  | P4: =IF(A4="","",IF(M4="В",1+P3,0+P3)) ->  | Q4: =IF(A4="","",IF(M4="Н",1+Q3,0+Q3)) ->  | R4: =IF(A4="","",IF(M4="П",1+R3,0+R3)) -> 
G35: =IF(A35="","",IF($A$1=C35,IF(E35>F35,"В",IF(E35=F35,"Н","П")),IF(E35<F35,"В",IF(E35=F35,"Н","П")))) ->  | H35: =IF(A35="","",IF($A$1=C35,E35+H34,F35+H34)) ->  | I35: =IF(A35="","",IF($A$1=C35,F35+I34,E35+I34)) -> 
G67: =IF(A67="","",IF($A$1=C67,IF(E67>F67,"В",IF(E67=F67,"Н","П")),IF(E67<F67,"В",IF(E67=F67,"Н","П")))) ->  | H67: =IF(A67="","",IF($A$1=C67,E67+H66,F67+H66)) ->  | I67: =IF(A67="","",IF($A$1=C67,F67+I66,E67+I66)) -> 
J68: =IF(A68="","",IF(G68="В",1+J67,0+J67)) ->  | K68: =IF(A68="","",IF(G68="Н",1+K67,0+K67)) ->  | L68: =IF(A68="","",IF(G68="П",1+L67,0+L67)) ->  | M68: =IF(A68="","",IF($B$1=D68,IF(F68>E68,"В",IF(F68=E68,"Н","П")),IF(F68<E68,"В",IF(F68=E68,"Н","П")))) ->  | N68: =IF(A68="","",IF($B$1=D68,F68+N67,E68+N67)) ->  | O68: =IF(A68="","",IF($B$1=D68,E68+O67,F68+O67)) ->  | P68: =IF(A68="","",IF(M68="В",1+P67,0+P67)) ->  | Q68: =IF(A68="","",IF(M68="Н",1+Q67,0+Q67)) ->  | R68: =IF(A68="","",IF(M68="П",1+R67,0+R67)) -> 
G99: =IF(A99="","",IF($A$1=C99,IF(E99>F99,"В",IF(E99=F99,"Н","П")),IF(E99<F99,"В",IF(E99=F99,"Н","П")))) ->  | H99: =IF(A99="","",IF($A$1=C99,E99+H98,F99+H98)) ->  | I99: =IF(A99="","",IF($A$1=C99,F99+I98,E99+I98)) -> 
G131: =IF(A131="","",IF($A$1=C131,IF(E131>F131,"В",IF(E131=F131,"Н","П")),IF(E131<F131,"В",IF(E131=F131,"Н","П")))) ->  | H131: =IF(A131="","",IF($A$1=C131,E131+H130,F131+H130)) ->  | I131: =IF(A131="","",IF($A$1=C131,F131+I130,E131+I130)) -> 
J132: =IF(A132="","",IF(G132="В",1+J131,0+J131)) ->  | K132: =IF(A132="","",IF(G132="Н",1+K131,0+K131)) ->  | L132: =IF(A132="","",IF(G132="П",1+L131,0+L131)) ->  | M132: =IF(A132="","",IF($B$1=D132,IF(F132>E132,"В",IF(F132=E132,"Н","П")),IF(F132<E132,"В",IF(F132=E132,"Н","П")))) ->  | N132: =IF(A132="","",IF($B$1=D132,F132+N131,E132+N131)) ->  | O132: =IF(A132="","",IF($B$1=D132,E132+O131,F132+O131)) ->  | P132: =IF(A132="","",IF(M132="В",1+P131,0+P131)) ->  | Q132: =IF(A132="","",IF(M132="Н",1+Q131,0+Q131)) ->  | R132: =IF(A132="","",IF(M132="П",1+R131,0+R131)) -> 

Sheet ДомаГости (hidden)
A1: Чемпионат | B1: Дата/Время | C1: Дома | D1: Гости | E1: К1 в 1Т | F1: К2 в 1Т | G1: К1 во 2Т | H1: К2 во 2Т | I1: Где играли | J1: К1 Голов | K1: К2 Голов | L1: Забито | M1: Пропущено | N1: Результат | O1: Всего Игр | P1: Всего выиграно | Q1: Всего ничьих | R1: Всего проиграно | S1: Всего забито | T1: Всего пропущено | U1: Всего очков | V1: Дома игр | W1: Дома выиграно | X1: Дома ничьих | Y1: Дома проиграно | Z1: Дома забито | AA1: Дома пропущено | AB1: Дома очков | AC1: Гости игр | AD1: Гости выиграно | AE1: Гости ничьих | AF1: Гости проиграно | AG1: Гости забито | AH1: Гости пропущено | AI1: Гости очков
A2: АЛБАНИЯ: Суперлига | B2: 2019.12.18 18:00 | C2: Тирана | D2: Флямуртари | E2: 0 | F2: 0 | G2: 2 | H2: 0 | I2: Гости | J2: =IF(I2="","",E2+G2) -> 2 | K2: =IF(I2="","",F2+H2) -> 0 | L2: =IF(I2="","",IF(I2="Дома",J2,K2)) -> 0 | M2: =IF(I2="","",IF(I2="Дома",K2,J2)) -> 2 | N2: =IF(I2="","",IF(I2="Дома",IF(J2>K2,"В",IF(J2=K2,"Н","П")),IF(J2<K2,"В",IF(J2=K2,"Н","П")))) -> П | O2: =IF(I2="","",1) -> 1 | P2: =IF(I2="","",IF(N2="В",1,0)) -> 0 | Q2: =IF(I2="","",IF(N2="Н",1,0)) -> 0 | R2: =IF(I2="","",IF(N2="П",1,0)) -> 1 | S2: =IF(I2="","",L2) -> 0 | T2: =IF(I2="","",M2) -> 2 | U2: =IF(I2="","",P2*3+Q2) -> 0 | V2: =IF(I2="","",IF(I2="Дома",1,0)) -> 0 | W2: =IF(I2="","",IF(I2="Дома",IF(N2="В",1,0),0)) -> 0 | X2: =IF(I2="","",IF(I2="Дома",IF(N2="Н",1,0),0)) -> 0 | Y2: =IF(I2="","",IF(I2="Дома",IF(N2="П",1,0),0)) -> 0 | Z2: =IF(I2="","",IF(I2="Дома",L2,0)) -> 0 | AA2: =IF(I2="","",IF(I2="Дома",M2,0)) -> 0 | AB2: =IF(I2="","",IF(I2="Дома",W2*3+X2,0)) -> 0 | AC2: =IF(I2="","",IF(I2="Гости",1,0)) -> 1 | AD2: =IF(I2="","",IF(I2="Гости",IF(N2="В",1,0),0)) -> 0 | AE2: =IF(I2="","",IF(I2="Гости",IF(N2="Н",1,0),0)) -> 0 | AF2: =IF(I2="","",IF(I2="Гости",IF(N2="П",1,0),0)) -> 1 | AG2: =IF(I2="","",IF(I2="Гости",L2,0)) -> 0 | AH2: =IF(I2="","",IF(I2="Гости",M2,0)) -> 2 | AI2: =IF(I2="","",IF(I2="Гости",AD2*3+AE2,0)) -> 0
A3: АЛБАНИЯ: Суперлига | B3: 2019.12.08 15:30 | C3: Лячи | D3: Флямуртари | E3: 0 | F3: 0 | G3: 3 | H3: 0 | I3: Гости | J3: =IF(I3="","",E3+G3) -> 3 | K3: =IF(I3="","",F3+H3) -> 0 | L3: =IF(I3="","",IF(I3="Дома",J3,K3)) -> 0 | M3: =IF(I3="","",IF(I3="Дома",K3,J3)) -> 3 | N3: =IF(I3="","",IF(I3="Дома",IF(J3>K3,"В",IF(J3=K3,"Н","П")),IF(J3<K3,"В",IF(J3=K3,"Н","П")))) -> П | O3: =IF(I3="","",O2+1) -> 2 | P3: =IF(I3="","",IF(N3="В",P2+1,P2)) -> 0 | Q3: =IF(I3="","",IF(N3="Н",Q2+1,Q2)) -> 0 | R3: =IF(I3="","",IF(N3="П",R2+1,R2)) -> 2 | S3: =IF(I3="","",S2+L3) -> 0 | T3: =IF(I3="","",T2+M3) -> 5 | U3: =IF(I3="","",P3*3+Q3) -> 0 | V3: =IF(I3="","",IF(I3="Дома",V2+1,V2+0)) -> 0 | W3: =IF(I3="","",IF(I3="Дома",IF(N3="В",W2+1,W2),W2)) -> 0 | X3: =IF(I3="","",IF(I3="Дома",IF(N3="Н",X2+1,X2),X2)) -> 0 | Y3: =IF(I3="","",IF(I3="Дома",IF(N3="П",Y2+1,Y2),Y2)) -> 0 | Z3: =IF(I3="","",IF(I3="Дома",L3+Z2,Z2)) -> 0 | AA3: =IF(I3="","",IF(I3="Дома",M3+AA2,AA2)) -> 0 | AB3: =IF(I3="","",IF(I3="Дома",W3*3+X3,AB2)) -> 0 | AC3: =IF(I3="","",IF(I3="Гости",AC2+1,AC2+0)) -> 2 | AD3: =IF(I3="","",IF(I3="Гости",IF(N3="В",AD2+1,AD2),AD2)) -> 0 | AE3: =IF(I3="","",IF(I3="Гости",IF(N3="Н",AE2+1,AE2),AE2)) -> 0 | AF3: =IF(I3="","",IF(I3="Гости",IF(N3="П",AF2+1,AF2),AF2)) -> 2 | AG3: =IF(I3="","",IF(I3="Гости",L3+AG2,AG2)) -> 0 | AH3: =IF(I3="","",IF(I3="Гости",M3+AH2,AH2)) -> 5 | AI3: =IF(I3="","",IF(I3="Гости",AD3*3+AE3,AI2)) -> 0
A4: АЛБАНИЯ: Суперлига | B4: 2019.11.03 16:00 | C4: Кукеси | D4: Флямуртари | E4: 0 | F4: 0 | G4: 1 | H4: 0 | I4: Гости | J4: 1 | K4: 0 | L4: 0 | M4: 1 | N4: П | O4: 3 | P4: =IF(I4="","",IF(N4="В",P3+1,P3)) -> 0 | Q4: =IF(I4="","",IF(N4="Н",Q3+1,Q3)) -> 0 | R4: =IF(I4="","",IF(N4="П",R3+1,R3)) -> 3 | S4: =IF(I4="","",S3+L4) -> 0 | T4: =IF(I4="","",T3+M4) -> 6 | U4: 0 | V4: =IF(I4="","",IF(I4="Дома",V3+1,V3+0)) -> 0 | W4: =IF(I4="","",IF(I4="Дома",IF(N4="В",W3+1,W3),W3)) -> 0 | X4: =IF(I4="","",IF(I4="Дома",IF(N4="Н",X3+1,X3),X3)) -> 0 | Y4: =IF(I4="","",IF(I4="Дома",IF(N4="П",Y3+1,Y3),Y3)) -> 0 | Z4: =IF(I4="","",IF(I4="Дома",L4+Z3,Z3)) -> 0 | AA4: =IF(I4="","",IF(I4="Дома",M4+AA3,AA3)) -> 0 | AB4: =IF(I4="","",IF(I4="Дома",W4*3+X4,AB3)) -> 0 | AC4: =IF(I4="","",IF(I4="Гости",AC3+1,AC3+0)) -> 3 | AD4: =IF(I4="","",IF(I4="Гости",IF(N4="В",AD3+1,AD3),AD3)) -> 0 | AE4: =IF(I4="","",IF(I4="Гости",IF(N4="Н",AE3+1,AE3),AE3)) -> 0 | AF4: =IF(I4="","",IF(I4="Гости",IF(N4="П",AF3+1,AF3),AF3)) -> 3 | AG4: =IF(I4="","",IF(I4="Гости",L4+AG3,AG3)) -> 0 | AH4: =IF(I4="","",IF(I4="Гости",M4+AH3,AH3)) -> 6 | AI4: =IF(I4="","",IF(I4="Гости",AD4*3+AE4,AI3)) -> 0
A5: АЛБАНИЯ: Суперлига | B5: 2019.10.18 19:00 | C5: Теута | D5: Флямуртари | E5: 0 | F5: 0 | G5: 1 | H5: 0 | I5: Гости | J5: 1 | K5: 0 | L5: 0 | M5: 1 | N5: П | O5: 4 | P5: 0 | Q5: 0 | R5: 4 | S5: 0 | T5: 7 | U5: 0 | V5: 0 | W5: 0 | X5: 0 | Y5: 0 | Z5: 0 | AA5: 0 | AB5: 0 | AC5: 4 | AD5: 0 | AE5: 0 | AF5: 4 | AG5: 0 | AH5: 7 | AI5: 0
A6: АЛБАНИЯ: Суперлига | B6: 2019.09.28 17:00 | C6: Билис | D6: Флямуртари | E6: 3 | F6: 0 | G6: 2 | H6: 0 | I6: Гости | J6: 5 | K6: 0 | L6: 0 | M6: 5 | N6: П | O6: 5 | P6: 0 | Q6: 0 | R6: 5 | S6: 0 | T6: 12 | U6: 0 | V6: 0 | W6: 0 | X6: 0 | Y6: 0 | Z6: 0 | AA6: 0 | AB6: 0 | AC6: 5 | AD6: 0 | AE6: 0 | AF6: 5 | AG6: 0 | AH6: 12 | AI6: 0
A7: АЛБАНИЯ: Кубок Албании | B7: 2019.09.18 17:00 | C7: Коплик | D7: Флямуртари | E7: 1 | F7: 2 | G7: 2 | H7: 0 | I7: Гости | J7: 3 | K7: 2 | L7: 2 | M7: 3 | N7: П | O7: 6 | P7: 0 | Q7: 0 | R7: 6 | S7: 2 | T7: 15 | U7: 0 | V7: 0 | W7: 0 | X7: 0 | Y7: 0 | Z7: 0 | AA7: 0 | AB7: 0 | AC7: 6 | AD7: 0 | AE7: 0 | AF7: 6 | AG7: 2 | AH7: 15 | AI7: 0
A8: АЛБАНИЯ: Суперлига | B8: 2019.09.14 17:00 | C8: Люфтетари Гирокастра | D8: Флямуртари | E8: 0 | F8: 0 | G8: 2 | H8: 1 | I8: Гости | J8: 2 | K8: 1 | L8: 1 | M8: 2 | N8: П | O8: 7 | P8: 0 | Q8: 0 | R8: 7 | S8: 3 | T8: 17 | U8: 0 | V8: 0 | W8: 0 | X8: 0 | Y8: 0 | Z8: 0 | AA8: 0 | AB8: 0 | AC8: 7 | AD8: 0 | AE8: 0 | AF8: 7 | AG8: 3 | AH8: 17 | AI8: 0
A9: АЛБАНИЯ: Суперлига | B9: 2019.09.01 20:00 | C9: Партизани | D9: Флямуртари | E9: 1 | F9: 0 | G9: 0 | H9: 0 | I9: Гости | J9: 1 | K9: 0 | L9: 0 | M9: 1 | N9: =IF(I9="","",IF(I9="Дома",IF(J9>K9,"В",IF(J9=K9,"Н","П")),IF(J9<K9,"В",IF(J9=K9,"Н","П")))) -> П | O9: 8 | P9: 0 | Q9: 0 | R9: 8 | S9: 3 | T9: 18 | U9: 0 | V9: 0 | W9: 0 | X9: 0 | Y9: 0 | Z9: 0 | AA9: 0 | AB9: 0 | AC9: 8 | AD9: 0 | AE9: 0 | AF9: 8 | AG9: 3 | AH9: 18 | AI9: 0
A10: АЛБАНИЯ: Суперлига | B10: 2019.08.24 20:00 | C10: Скендербеу | D10: Флямуртари | E10: 0 | F10: 0 | G10: 1 | H10: 0 | I10: Гости | J10: 1 | K10: 0 | L10: 0 | M10: 1 | N10: =IF(I10="","",IF(I10="Дома",IF(J10>K10,"В",IF(J10=K10,"Н","П")),IF(J10<K10,"В",IF(J10=K10,"Н","П")))) -> П | O10: 9 | P10: 0 | Q10: 0 | R10: 9 | S10: 3 | T10: 19 | U10: 0 | V10: 0 | W10: 0 | X10: 0 | Y10: 0 | Z10: 0 | AA10: 0 | AB10: 0 | AC10: 9 | AD10: 0 | AE10: 0 | AF10: 9 | AG10: 3 | AH10: 19 | AI10: 0
A11: АЛБАНИЯ: Суперлига | B11: 2019.05.30 17:00 | C11: Тирана | D11: Флямуртари | E11: 0 | F11: 0 | G11: 3 | H11: 0 | I11: Гости | J11: 3 | K11: 0 | L11: 0 | M11: 3 | N11: П | O11: 10 | P11: 0 | Q11: 0 | R11: 10 | S11: 3 | T11: 22 | U11: 0 | V11: 0 | W11: 0 | X11: 0 | Y11: 0 | Z11: 0 | AA11: 0 | AB11: 0 | AC11: 10 | AD11: 0 | AE11: 0 | AF11: 10 | AG11: 3 | AH11: 22 | AI11: 0
A12: АЛБАНИЯ: Суперлига | B12: 2019.05.12 17:30 | C12: Кастриоти | D12: Флямуртари | E12: 1 | F12: 0 | G12: 1 | H12: 0 | I12: Гости | J12: 2 | K12: 0 | L12: 0 | M12: 2 | N12: П | O12: 11 | P12: 0 | Q12: 0 | R12: 11 | S12: 3 | T12: 24 | U12: =IF(I12="","",P12*3+Q12) -> 0 | V12: 0 | W12: 0 | X12: 0 | Y12: 0 | Z12: 0 | AA12: 0 | AB12: 0 | AC12: 11 | AD12: 0 | AE12: 0 | AF12: 11 | AG12: 3 | AH12: 24 | AI12: 0
A13: АЛБАНИЯ: Суперлига | B13: 2019.04.28 20:00 | C13: Скендербеу | D13: Флямуртари | E13: 1 | F13: 0 | G13: 1 | H13: 0 | I13: Гости | J13: 2 | K13: 0 | L13: 0 | M13: 2 | N13: П | O13: 12 | P13: 0 | Q13: 0 | R13: 12 | S13: 3 | T13: 26 | U13: 0 | V13: 0 | W13: 0 | X13: 0 | Y13: 0 | Z13: 0 | AA13: 0 | AB13: 0 | AC13: 12 | AD13: 0 | AE13: 0 | AF13: 12 | AG13: 3 | AH13: 26 | AI13: 0
A14: АЛБАНИЯ: Суперлига | B14: 2019.04.14 16:45 | C14: Кукеси | D14: Флямуртари | E14: 0 | F14: 1 | G14: 1 | H14: 1 | I14: Гости | J14: 1 | K14: 2 | L14: 2 | M14: 1 | N14: В | O14: 13 | P14: 1 | Q14: 0 | R14: 12 | S14: 5 | T14: 27 | U14: 3 | V14: 0 | W14: 0 | X14: 0 | Y14: 0 | Z14: 0 | AA14: 0 | AB14: 0 | AC14: 13 | AD14: 1 | AE14: 0 | AF14: 12 | AG14: 5 | AH14: 27 | AI14: 3
A15: АЛБАНИЯ: Суперлига | B15: 2019.03.30 19:00 | C15: Камза | D15: Флямуртари | E15: 1 | F15: 0 | G15: 0 | H15: 0 | I15: Гости | J15: 1 | K15: 0 | L15: 0 | M15: 1 | N15: П | O15: 14 | P15: 1 | Q15: 0 | R15: 13 | S15: 5 | T15: 28 | U15: 3 | V15: 0 | W15: 0 | X15: 0 | Y15: 0 | Z15: 0 | AA15: 0 | AB15: 0 | AC15: 14 | AD15: 1 | AE15: 0 | AF15: 13 | AG15: 5 | AH15: 28 | AI15: 3
A16: АЛБАНИЯ: Суперлига | B16: 2019.03.17 16:00 | C16: Лячи | D16: Флямуртари | E16: 0 | F16: 0 | G16: 0 | H16: 0 | I16: Гости | J16: 0 | K16: 0 | L16: 0 | M16: 0 | N16: Н | O16: 15 | P16: 1 | Q16: 1 | R16: 13 | S16: 5 | T16: 28 | U16: 4 | V16: 0 | W16: 0 | X16: 0 | Y16: 0 | Z16: 0 | AA16: 0 | AB16: 0 | AC16: 15 | AD16: 1 | AE16: 1 | AF16: 13 | AG16: 5 | AH16: 28 | AI16: 4
A17: АЛБАНИЯ: Суперлига | B17: 2019.02.23 19:00 | C17: Партизани | D17: Флямуртари | E17: 1 | F17: 1 | G17: 2 | H17: 0 | I17: Гости | J17: 3 | K17: 1 | L17: 1 | M17: 3 | N17: П | O17: 16 | P17: 1 | Q17: 1 | R17: 14 | S17: 6 | T17: 31 | U17: 4 | V17: 0 | W17: 0 | X17: 0 | Y17: 0 | Z17: 0 | AA17: 0 | AB17: 0 | AC17: 16 | AD17: 1 | AE17: 1 | AF17: 14 | AG17: 6 | AH17: 31 | AI17: 4
A18: АЛБАНИЯ: Суперлига | B18: 2019.02.10 16:00 | C18: Люфтетари Гирокастра | D18: Флямуртари | E18: 0 | F18: 0 | G18: 0 | H18: 0 | I18: Гости | J18: 0 | K18: 0 | L18: 0 | M18: 0 | N18: Н | O18: 17 | P18: 1 | Q18: 2 | R18: 14 | S18: 6 | T18: 31 | U18: 5 | V18: 0 | W18: 0 | X18: 0 | Y18: 0 | Z18: 0 | AA18: 0 | AB18: 0 | AC18: 17 | AD18: 1 | AE18: 2 | AF18: 14 | AG18: 6 | AH18: 31 | AI18: 5
A19: АЛБАНИЯ: Суперлига | B19: 2019.01.27 19:00 | C19: Теута | D19: Флямуртари | E19: 1 | F19: 1 | G19: 0 | H19: 0 | I19: Гости | J19: 1 | K19: 1 | L19: 1 | M19: 1 | N19: Н | O19: 18 | P19: 1 | Q19: 3 | R19: 14 | S19: 7 | T19: 32 | U19: 6 | V19: 0 | W19: 0 | X19: 0 | Y19: 0 | Z19: 0 | AA19: 0 | AB19: 0 | AC19: 18 | AD19: 1 | AE19: 3 | AF19: 14 | AG19: 7 | AH19: 32 | AI19: 6
A20: АЛБАНИЯ: Кубок Албании | B20: 2019.01.24 15:00 | C20: Тирана | D20: Флямуртари | E20: 2 | F20: 0 | G20: 0 | H20: 0 | I20: Гости | J20: 2 | K20: 0 | L20: 0 | M20: 2 | N20: П | O20: 19 | P20: 1 | Q20: 3 | R20: 15 | S20: 7 | T20: 34 | U20: 6 | V20: 0 | W20: 0 | X20: 0 | Y20: 0 | Z20: 0 | AA20: 0 | AB20: 0 | AC20: 19 | AD20: 1 | AE20: 3 | AF20: 15 | AG20: 7 | AH20: 34 | AI20: 6
A21: АЛБАНИЯ: Суперлига | B21: 2018.12.21 18:30 | C21: Тирана | D21: Флямуртари | E21: 0 | F21: 0 | G21: 1 | H21: 0 | I21: Гости | J21: 1 | K21: 0 | L21: 0 | M21: 1 | N21: П | O21: 20 | P21: 1 | Q21: 3 | R21: 16 | S21: 7 | T21: 35 | U21: 6 | V21: 0 | W21: 0 | X21: 0 | Y21: 0 | Z21: 0 | AA21: 0 | AB21: 0 | AC21: 20 | AD21: 1 | AE21: 3 | AF21: 16 | AG21: 7 | AH21: 35 | AI21: 6
J67: =IF(I67="","",E67+G67) ->  | K67: =IF(I67="","",F67+H67) ->  | L67: =IF(I67="","",IF(I67="Дома",J67,K67)) ->  | M67: =IF(I67="","",IF(I67="Дома",K67,J67)) ->  | O67: =IF(I67="","",O66+1) ->  | U67: =IF(I67="","",P67*3+Q67) -> 
P68: =IF(I68="","",IF(N68="В",P67+1,P67)) ->  | Q68: =IF(I68="","",IF(N68="Н",Q67+1,Q67)) ->  | R68: =IF(I68="","",IF(N68="П",R67+1,R67)) ->  | S68: =IF(I68="","",S67+L68) ->  | T68: =IF(I68="","",T67+M68) ->  | V68: =IF(I68="","",IF(I68="Дома",V67+1,V67+0)) ->  | W68: =IF(I68="","",IF(I68="Дома",IF(N68="В",W67+1,W67),W67)) ->  | X68: =IF(I68="","",IF(I68="Дома",IF(N68="Н",X67+1,X67),X67)) ->  | Y68: =IF(I68="","",IF(I68="Дома",IF(N68="П",Y67+1,Y67),Y67)) ->  | Z68: =IF(I68="","",IF(I68="Дома",L68+Z67,Z67)) ->  | AA68: =IF(I68="","",IF(I68="Дома",M68+AA67,AA67)) ->  | AB68: =IF(I68="","",IF(I68="Дома",W68*3+X68,AB67)) ->  | AC68: =IF(I68="","",IF(I68="Гости",AC67+1,AC67+0)) ->  | AD68: =IF(I68="","",IF(I68="Гости",IF(N68="В",AD67+1,AD67),AD67)) ->  | AE68: =IF(I68="","",IF(I68="Гости",IF(N68="Н",AE67+1,AE67),AE67)) ->  | AF68: =IF(I68="","",IF(I68="Гости",IF(N68="П",AF67+1,AF67),AF67)) ->  | AG68: =IF(I68="","",IF(I68="Гости",L68+AG67,AG67)) ->  | AH68: =IF(I68="","",IF(I68="Гости",M68+AH67,AH67)) ->  | AI68: =IF(I68="","",IF(I68="Гости",AD68*3+AE68,AI67)) -> 
N74: =IF(I74="","",IF(I74="Дома",IF(J74>K74,"В",IF(J74=K74,"Н","П")),IF(J74<K74,"В",IF(J74=K74,"Н","П")))) -> 
J131: =IF(I131="","",E131+G131) ->  | K131: =IF(I131="","",F131+H131) ->  | L131: =IF(I131="","",IF(I131="Дома",J131,K131)) ->  | M131: =IF(I131="","",IF(I131="Дома",K131,J131)) ->  | O131: =IF(I131="","",O130+1) ->  | U131: =IF(I131="","",P131*3+Q131) -> 
P132: =IF(I132="","",IF(N132="В",P131+1,P131)) ->  | Q132: =IF(I132="","",IF(N132="Н",Q131+1,Q131)) ->  | R132: =IF(I132="","",IF(N132="П",R131+1,R131)) ->  | S132: =IF(I132="","",S131+L132) ->  | T132: =IF(I132="","",T131+M132) ->  | V132: =IF(I132="","",IF(I132="Дома",V131+1,V131+0)) ->  | W132: =IF(I132="","",IF(I132="Дома",IF(N132="В",W131+1,W131),W131)) ->  | X132: =IF(I132="","",IF(I132="Дома",IF(N132="Н",X131+1,X131),X131)) ->  | Y132: =IF(I132="","",IF(I132="Дома",IF(N132="П",Y131+1,Y131),Y131)) ->  | Z132: =IF(I132="","",IF(I132="Дома",L132+Z131,Z131)) ->  | AA132: =IF(I132="","",IF(I132="Дома",M132+AA131,AA131)) ->  | AB132: =IF(I132="","",IF(I132="Дома",W132*3+X132,AB131)) ->  | AC132: =IF(I132="","",IF(I132="Гости",AC131+1,AC131+0)) ->  | AD132: =IF(I132="","",IF(I132="Гости",IF(N132="В",AD131+1,AD131),AD131)) ->  | AE132: =IF(I132="","",IF(I132="Гости",IF(N132="Н",AE131+1,AE131),AE131)) ->  | AF132: =IF(I132="","",IF(I132="Гости",IF(N132="П",AF131+1,AF131),AF131)) ->  | AG132: =IF(I132="","",IF(I132="Гости",L132+AG131,AG131)) ->  | AH132: =IF(I132="","",IF(I132="Гости",M132+AH131,AH131)) ->  | AI132: =IF(I132="","",IF(I132="Гости",AD132*3+AE132,AI131)) -> 
N138: =IF(I138="","",IF(I138="Дома",IF(J138>K138,"В",IF(J138=K138,"Н","П")),IF(J138<K138,"В",IF(J138=K138,"Н","П")))) -> 

Sheet ГостиДома (hidden)
A1: Чемпионат | B1: Дата/Время | C1: Дома | D1: Гости | E1: К1 в 1Т | F1: К2 в 1Т | G1: К1 во 2Т | H1: К2 во 2Т | I1: Где играли | J1: К1 Голов | K1: К2 Голов | L1: Забито | M1: Пропущено | N1: Результат | O1: Всего Игр | P1: Всего выиграно | Q1: Всего ничьих | R1: Всего проиграно | S1: Всего забито | T1: Всего пропущено | U1: Всего очков | V1: Дома игр | W1: Дома выиграно | X1: Дома ничьих | Y1: Дома проиграно | Z1: Дома забито | AA1: Дома пропущено | AB1: Дома очков | AC1: Гости игр | AD1: Гости выиграно | AE1: Гости ничьих | AF1: Гости проиграно | AG1: Гости забито | AH1: Гости пропущено | AI1: Гости очков
A2: АЛБАНИЯ: Суперлига | B2: 2019.12.18 15:00 | C2: Теута | D2: Партизани | E2: 1 | F2: 0 | G2: 0 | H2: 0 | I2: Дома | J2: =IF(I2="","",E2+G2) -> 1 | K2: =IF(I2="","",F2+H2) -> 0 | L2: =IF(I2="","",IF(I2="Дома",J2,K2)) -> 1 | M2: =IF(I2="","",IF(I2="Дома",K2,J2)) -> 0 | N2: =IF(I2="","",IF(I2="Дома",IF(J2>K2,"В",IF(J2=K2,"Н","П")),IF(J2<K2,"В",IF(J2=K2,"Н","П")))) -> В | O2: =IF(I2="","",1) -> 1 | P2: =IF(I2="","",IF(N2="В",1,0)) -> 1 | Q2: =IF(I2="","",IF(N2="Н",1,0)) -> 0 | R2: =IF(I2="","",IF(N2="П",1,0)) -> 0 | S2: =IF(I2="","",L2) -> 1 | T2: =IF(I2="","",M2) -> 0 | U2: =IF(I2="","",P2*3+Q2) -> 3 | V2: =IF(I2="","",IF(I2="Дома",1,0)) -> 1 | W2: =IF(I2="","",IF(I2="Дома",IF(N2="В",1,0),0)) -> 1 | X2: =IF(I2="","",IF(I2="Дома",IF(N2="Н",1,0),0)) -> 0 | Y2: =IF(I2="","",IF(I2="Дома",IF(N2="П",1,0),0)) -> 0 | Z2: =IF(I2="","",IF(I2="Дома",L2,0)) -> 1 | AA2: =IF(I2="","",IF(I2="Дома",M2,0)) -> 0 | AB2: =IF(I2="","",IF(I2="Дома",W2*3+X2,0)) -> 3 | AC2: =IF(I2="","",IF(I2="Гости",1,0)) -> 0 | AD2: =IF(I2="","",IF(I2="Гости",IF(N2="В",1,0),0)) -> 0 | AE2: =IF(I2="","",IF(I2="Гости",IF(N2="Н",1,0),0)) -> 0 | AF2: =IF(I2="","",IF(I2="Гости",IF(N2="П",1,0),0)) -> 0 | AG2: =IF(I2="","",IF(I2="Гости",L2,0)) -> 0 | AH2: =IF(I2="","",IF(I2="Гости",M2,0)) -> 0 | AI2: =IF(I2="","",IF(I2="Гости",AD2*3+AE2,0)) -> 0
A3: АЛБАНИЯ: Суперлига | B3: 2019.12.08 18:30 | C3: Теута | D3: Скендербеу | E3: 0 | F3: 0 | G3: 1 | H3: 0 | I3: Дома | J3: =IF(I3="","",E3+G3) -> 1 | K3: =IF(I3="","",F3+H3) -> 0 | L3: =IF(I3="","",IF(I3="Дома",J3,K3)) -> 1 | M3: =IF(I3="","",IF(I3="Дома",K3,J3)) -> 0 | N3: =IF(I3="","",IF(I3="Дома",IF(J3>K3,"В",IF(J3=K3,"Н","П")),IF(J3<K3,"В",IF(J3=K3,"Н","П")))) -> В | O3: =IF(I3="","",O2+1) -> 2 | P3: =IF(I3="","",IF(N3="В",P2+1,P2)) -> 2 | Q3: =IF(I3="","",IF(N3="Н",Q2+1,Q2)) -> 0 | R3: =IF(I3="","",IF(N3="П",R2+1,R2)) -> 0 | S3: =IF(I3="","",S2+L3) -> 2 | T3: =IF(I3="","",T2+M3) -> 0 | U3: =IF(I3="","",P3*3+Q3) -> 6 | V3: =IF(I3="","",IF(I3="Дома",V2+1,V2+0)) -> 2 | W3: =IF(I3="","",IF(I3="Дома",IF(N3="В",W2+1,W2),W2)) -> 2 | X3: =IF(I3="","",IF(I3="Дома",IF(N3="Н",X2+1,X2),X2)) -> 0 | Y3: =IF(I3="","",IF(I3="Дома",IF(N3="П",Y2+1,Y2),Y2)) -> 0 | Z3: =IF(I3="","",IF(I3="Дома",L3+Z2,Z2)) -> 2 | AA3: =IF(I3="","",IF(I3="Дома",M3+AA2,AA2)) -> 0 | AB3: =IF(I3="","",IF(I3="Дома",W3*3+X3,AB2)) -> 6 | AC3: =IF(I3="","",IF(I3="Гости",AC2+1,AC2+0)) -> 0 | AD3: =IF(I3="","",IF(I3="Гости",IF(N3="В",AD2+1,AD2),AD2)) -> 0 | AE3: =IF(I3="","",IF(I3="Гости",IF(N3="Н",AE2+1,AE2),AE2)) -> 0 | AF3: =IF(I3="","",IF(I3="Гости",IF(N3="П",AF2+1,AF2),AF2)) -> 0 | AG3: =IF(I3="","",IF(I3="Гости",L3+AG2,AG2)) -> 0 | AH3: =IF(I3="","",IF(I3="Гости",M3+AH2,AH2)) -> 0 | AI3: =IF(I3="","",IF(I3="Гости",AD3*3+AE3,AI2)) -> 0
A4: АЛБАНИЯ: Суперлига | B4: 2019.11.02 19:00 | C4: Теута | D4: Тирана | E4: 0 | F4: 1 | G4: 1 | H4: 0 | I4: Дома | J4: 1 | K4: 1 | L4: 1 | M4: 1 | N4: Н | O4: 3 | P4: =IF(I4="","",IF(N4="В",P3+1,P3)) -> 2 | Q4: =IF(I4="","",IF(N4="Н",Q3+1,Q3)) -> 1 | R4: =IF(I4="","",IF(N4="П",R3+1,R3)) -> 0 | S4: =IF(I4="","",S3+L4) -> 3 | T4: =IF(I4="","",T3+M4) -> 1 | U4: 7 | V4: =IF(I4="","",IF(I4="Дома",V3+1,V3+0)) -> 3 | W4: =IF(I4="","",IF(I4="Дома",IF(N4="В",W3+1,W3),W3)) -> 2 | X4: =IF(I4="","",IF(I4="Дома",IF(N4="Н",X3+1,X3),X3)) -> 1 | Y4: =IF(I4="","",IF(I4="Дома",IF(N4="П",Y3+1,Y3),Y3)) -> 0 | Z4: =IF(I4="","",IF(I4="Дома",L4+Z3,Z3)) -> 3 | AA4: =IF(I4="","",IF(I4="Дома",M4+AA3,AA3)) -> 1 | AB4: =IF(I4="","",IF(I4="Дома",W4*3+X4,AB3)) -> 7 | AC4: =IF(I4="","",IF(I4="Гости",AC3+1,AC3+0)) -> 0 | AD4: =IF(I4="","",IF(I4="Гости",IF(N4="В",AD3+1,AD3),AD3)) -> 0 | AE4: =IF(I4="","",IF(I4="Гости",IF(N4="Н",AE3+1,AE3),AE3)) -> 0 | AF4: =IF(I4="","",IF(I4="Гости",IF(N4="П",AF3+1,AF3),AF3)) -> 0 | AG4: =IF(I4="","",IF(I4="Гости",L4+AG3,AG3)) -> 0 | AH4: =IF(I4="","",IF(I4="Гости",M4+AH3,AH3)) -> 0 | AI4: =IF(I4="","",IF(I4="Гости",AD4*3+AE4,AI3)) -> 0
A5: АЛБАНИЯ: Суперлига | B5: 2019.10.18 19:00 | C5: Теута | D5: Флямуртари | E5: 0 | F5: 0 | G5: 1 | H5: 0 | I5: Дома | J5: 1 | K5: 0 | L5: 1 | M5: 0 | N5: В | O5: 4 | P5: 3 | Q5: 1 | R5: 0 | S5: 4 | T5: 1 | U5: 10 | V5: 4 | W5: 3 | X5: 1 | Y5: 0 | Z5: 4 | AA5: 1 | AB5: 10 | AC5: 0 | AD5: 0 | AE5: 0 | AF5: 0 | AG5: 0 | AH5: 0 | AI5: 0
A6: АЛБАНИЯ: Кубок Албании | B6: 2019.10.02 15:00 | C6: Теута | D6: Тербуни | E6: 2 | F6: 1 | G6: 4 | H6: 1 | I6: Дома | J6: 6 | K6: 2 | L6: 6 | M6: 2 | N6: В | O6: 5 | P6: 4 | Q6: 1 | R6: 0 | S6: 10 | T6: 3 | U6: 13 | V6: 5 | W6: 4 | X6: 1 | Y6: 0 | Z6: 10 | AA6: 3 | AB6: 13 | AC6: 0 | AD6: 0 | AE6: 0 | AF6: 0 | AG6: 0 | AH6: 0 | AI6: 0
A7: АЛБАНИЯ: Суперлига | B7: 2019.09.28 17:00 | C7: Теута | D7: Кукеси | E7: 0 | F7: 0 | G7: 1 | H7: 0 | I7: Дома | J7: 1 | K7: 0 | L7: 1 | M7: 0 | N7: В | O7: 6 | P7: 5 | Q7: 1 | R7: 0 | S7: 11 | T7: 3 | U7: 16 | V7: 6 | W7: 5 | X7: 1 | Y7: 0 | Z7: 11 | AA7: 3 | AB7: 16 | AC7: 0 | AD7: 0 | AE7: 0 | AF7: 0 | AG7: 0 | AH7: 0 | AI7: 0
A8: АЛБАНИЯ: Суперлига | B8: 2019.09.14 17:00 | C8: Теута | D8: Влазния | E8: 0 | F8: 0 | G8: 0 | H8: 0 | I8: Дома | J8: 0 | K8: 0 | L8: 0 | M8: 0 | N8: Н | O8: 7 | P8: 5 | Q8: 2 | R8: 0 | S8: 11 | T8: 3 | U8: 17 | V8: 7 | W8: 5 | X8: 2 | Y8: 0 | Z8: 11 | AA8: 3 | AB8: 17 | AC8: 0 | AD8: 0 | AE8: 0 | AF8: 0 | AG8: 0 | AH8: 0 | AI8: 0
A9: АЛБАНИЯ: Суперлига | B9: 2019.08.31 20:00 | C9: Теута | D9: Люфтетари Гирокастра | E9: 2 | F9: 0 | G9: 1 | H9: 1 | I9: Дома | J9: 3 | K9: 1 | L9: 3 | M9: 1 | N9: =IF(I9="","",IF(I9="Дома",IF(J9>K9,"В",IF(J9=K9,"Н","П")),IF(J9<K9,"В",IF(J9=K9,"Н","П")))) -> В | O9: 8 | P9: 6 | Q9: 2 | R9: 0 | S9: 14 | T9: 4 | U9: 20 | V9: 8 | W9: 6 | X9: 2 | Y9: 0 | Z9: 14 | AA9: 4 | AB9: 20 | AC9: 0 | AD9: 0 | AE9: 0 | AF9: 0 | AG9: 0 | AH9: 0 | AI9: 0
A10: АЛБАНИЯ: Суперлига | B10: 2019.08.24 20:00 | C10: Теута | D10: Билис | E10: 1 | F10: 0 | G10: 0 | H10: 0 | I10: Дома | J10: 1 | K10: 0 | L10: 1 | M10: 0 | N10: =IF(I10="","",IF(I10="Дома",IF(J10>K10,"В",IF(J10=K10,"Н","П")),IF(J10<K10,"В",IF(J10=K10,"Н","П")))) -> В | O10: 9 | P10: 7 | Q10: 2 | R10: 0 | S10: 15 | T10: 4 | U10: 23 | V10: 9 | W10: 7 | X10: 2 | Y10: 0 | Z10: 15 | AA10: 4 | AB10: 23 | AC10: 0 | AD10: 0 | AE10: 0 | AF10: 0 | AG10: 0 | AH10: 0 | AI10: 0
A11: ЕВРОПА: Лига Европы - Квалификация | B11: 2019.07.18 18:00 | C11: Теута | D11: Вентспилс | E11: 0 | F11: 0 | G11: 1 | H11: 0 | I11: Дома | J11: 1 | K11: 0 | L11: 1 | M11: 0 | N11: В | O11: 10 | P11: 8 | Q11: 2 | R11: 0 | S11: 16 | T11: 4 | U11: 26 | V11: 10 | W11: 8 | X11: 2 | Y11: 0 | Z11: 16 | AA11: 4 | AB11: 26 | AC11: 0 | AD11: 0 | AE11: 0 | AF11: 0 | AG11: 0 | AH11: 0 | AI11: 0
A12: АЛБАНИЯ: Суперлига | B12: 2019.05.30 17:00 | C12: Теута | D12: Лячи | E12: 0 | F12: 0 | G12: 2 | H12: 0 | I12: Дома | J12: 2 | K12: 0 | L12: 2 | M12: 0 | N12: В | O12: 11 | P12: 9 | Q12: 2 | R12: 0 | S12: 18 | T12: 4 | U12: =IF(I12="","",P12*3+Q12) -> 29 | V12: 11 | W12: 9 | X12: 2 | Y12: 0 | Z12: 18 | AA12: 4 | AB12: 29 | AC12: 0 | AD12: 0 | AE12: 0 | AF12: 0 | AG12: 0 | AH12: 0 | AI12: 0
A13: АЛБАНИЯ: Суперлига | B13: 2019.05.18 17:30 | C13: Теута | D13: Партизани | E13: 1 | F13: 0 | G13: 1 | H13: 0 | I13: Дома | J13: 2 | K13: 0 | L13: 2 | M13: 0 | N13: В | O13: 12 | P13: 10 | Q13: 2 | R13: 0 | S13: 20 | T13: 4 | U13: 32 | V13: 12 | W13: 10 | X13: 2 | Y13: 0 | Z13: 20 | AA13: 4 | AB13: 32 | AC13: 0 | AD13: 0 | AE13: 0 | AF13: 0 | AG13: 0 | AH13: 0 | AI13: 0
A14: АЛБАНИЯ: Суперлига | B14: 2019.05.04 16:00 | C14: Теута | D14: Люфтетари Гирокастра | E14: 0 | F14: 0 | G14: 0 | H14: 0 | I14: Дома | J14: 0 | K14: 0 | L14: 0 | M14: 0 | N14: Н | O14: 13 | P14: 10 | Q14: 3 | R14: 0 | S14: 20 | T14: 4 | U14: 33 | V14: 13 | W14: 10 | X14: 3 | Y14: 0 | Z14: 20 | AA14: 4 | AB14: 33 | AC14: 0 | AD14: 0 | AE14: 0 | AF14: 0 | AG14: 0 | AH14: 0 | AI14: 0
A15: АЛБАНИЯ: Суперлига | B15: 2019.04.14 19:45 | C15: Теута | D15: Тирана | E15: 0 | F15: 1 | G15: 1 | H15: 2 | I15: Дома | J15: 1 | K15: 3 | L15: 1 | M15: 3 | N15: П | O15: 14 | P15: 10 | Q15: 3 | R15: 1 | S15: 21 | T15: 7 | U15: 33 | V15: 14 | W15: 10 | X15: 3 | Y15: 1 | Z15: 21 | AA15: 7 | AB15: 33 | AC15: 0 | AD15: 0 | AE15: 0 | AF15: 0 | AG15: 0 | AH15: 0 | AI15: 0
A16: АЛБАНИЯ: Суперлига | B16: 2019.03.30 19:00 | C16: Теута | D16: Кастриоти | E16: 1 | F16: 0 | G16: 0 | H16: 0 | I16: Дома | J16: 1 | K16: 0 | L16: 1 | M16: 0 | N16: В | O16: 15 | P16: 11 | Q16: 3 | R16: 1 | S16: 22 | T16: 7 | U16: 36 | V16: 15 | W16: 11 | X16: 3 | Y16: 1 | Z16: 22 | AA16: 7 | AB16: 36 | AC16: 0 | AD16: 0 | AE16: 0 | AF16: 0 | AG16: 0 | AH16: 0 | AI16: 0
A17: АЛБАНИЯ: Кубок Албании | B17: 2019.03.12 19:00 | C17: Теута | D17: Кукеси | E17: 0 | F17: 1 | G17: 2 | H17: 1 | I17: Дома | J17: 2 | K17: 2 | L17: 2 | M17: 2 | N17: Н | O17: 16 | P17: 11 | Q17: 4 | R17: 1 | S17: 24 | T17: 9 | U17: 37 | V17: 16 | W17: 11 | X17: 4 | Y17: 1 | Z17: 24 | AA17: 9 | AB17: 37 | AC17: 0 | AD17: 0 | AE17: 0 | AF17: 0 | AG17: 0 | AH17: 0 | AI17: 0
A18: АЛБАНИЯ: Суперлига | B18: 2019.03.02 19:00 | C18: Теута | D18: Скендербеу | E18: 1 | F18: 0 | G18: 1 | H18: 2 | I18: Дома | J18: 2 | K18: 2 | L18: 2 | M18: 2 | N18: Н | O18: 17 | P18: 11 | Q18: 5 | R18: 1 | S18: 26 | T18: 11 | U18: 38 | V18: 17 | W18: 11 | X18: 5 | Y18: 1 | Z18: 26 | AA18: 11 | AB18: 38 | AC18: 0 | AD18: 0 | AE18: 0 | AF18: 0 | AG18: 0 | AH18: 0 | AI18: 0
A19: АЛБАНИЯ: Суперлига | B19: 2019.02.15 20:00 | C19: Теута | D19: Кукеси | E19: 0 | F19: 1 | G19: 2 | H19: 0 | I19: Дома | J19: 2 | K19: 1 | L19: 2 | M19: 1 | N19: В | O19: 18 | P19: 12 | Q19: 5 | R19: 1 | S19: 28 | T19: 12 | U19: 41 | V19: 18 | W19: 12 | X19: 5 | Y19: 1 | Z19: 28 | AA19: 12 | AB19: 41 | AC19: 0 | AD19: 0 | AE19: 0 | AF19: 0 | AG19: 0 | AH19: 0 | AI19: 0
A20: АЛБАНИЯ: Суперлига | B20: 2019.02.10 19:00 | C20: Теута | D20: Камза | E20: 0 | F20: 0 | G20: 0 | H20: 0 | I20: Дома | J20: 0 | K20: 0 | L20: 0 | M20: 0 | N20: Н | O20: 19 | P20: 12 | Q20: 6 | R20: 1 | S20: 28 | T20: 12 | U20: 42 | V20: 19 | W20: 12 | X20: 6 | Y20: 1 | Z20: 28 | AA20: 12 | AB20: 42 | AC20: 0 | AD20: 0 | AE20: 0 | AF20: 0 | AG20: 0 | AH20: 0 | AI20: 0
A21: АЛБАНИЯ: Кубок Албании | B21: 2019.02.06 15:30 | C21: Теута | D21: Люшня | E21: 2 | F21: 0 | G21: 2 | H21: 0 | I21: Дома | J21: 4 | K21: 0 | L21: 4 | M21: 0 | N21: В | O21: 20 | P21: 13 | Q21: 6 | R21: 1 | S21: 32 | T21: 12 | U21: 45 | V21: 20 | W21: 13 | X21: 6 | Y21: 1 | Z21: 32 | AA21: 12 | AB21: 45 | AC21: 0 | AD21: 0 | AE21: 0 | AF21: 0 | AG21: 0 | AH21: 0 | AI21: 0
A22: АЛБАНИЯ: Суперлига | B22: 2018.12.15 19:00 | C22: Флямуртари | D22: Камза | E22: 0 | F22: 0 | G22: 1 | H22: 0 | I22: Дома | J22: 1 | K22: 0 | L22: 1 | M22: 0 | N22: В | O22: 21 | P22: 14 | Q22: 6 | R22: 1 | S22: 33 | T22: 12 | U22: 48 | V22: 21 | W22: 14 | X22: 6 | Y22: 1 | Z22: 33 | AA22: 12 | AB22: 48 | AC22: 0 | AD22: 0 | AE22: 0 | AF22: 0 | AG22: 0 | AH22: 0 | AI22: 0
J67: =IF(I67="","",E67+G67) ->  | K67: =IF(I67="","",F67+H67) ->  | L67: =IF(I67="","",IF(I67="Дома",J67,K67)) ->  | M67: =IF(I67="","",IF(I67="Дома",K67,J67)) ->  | O67: =IF(I67="","",O66+1) ->  | U67: =IF(I67="","",P67*3+Q67) -> 
P68: =IF(I68="","",IF(N68="В",P67+1,P67)) ->  | Q68: =IF(I68="","",IF(N68="Н",Q67+1,Q67)) ->  | R68: =IF(I68="","",IF(N68="П",R67+1,R67)) ->  | S68: =IF(I68="","",S67+L68) ->  | T68: =IF(I68="","",T67+M68) ->  | V68: =IF(I68="","",IF(I68="Дома",V67+1,V67+0)) ->  | W68: =IF(I68="","",IF(I68="Дома",IF(N68="В",W67+1,W67),W67)) ->  | X68: =IF(I68="","",IF(I68="Дома",IF(N68="Н",X67+1,X67),X67)) ->  | Y68: =IF(I68="","",IF(I68="Дома",IF(N68="П",Y67+1,Y67),Y67)) ->  | Z68: =IF(I68="","",IF(I68="Дома",L68+Z67,Z67)) ->  | AA68: =IF(I68="","",IF(I68="Дома",M68+AA67,AA67)) ->  | AB68: =IF(I68="","",IF(I68="Дома",W68*3+X68,AB67)) ->  | AC68: =IF(I68="","",IF(I68="Гости",AC67+1,AC67+0)) ->  | AD68: =IF(I68="","",IF(I68="Гости",IF(N68="В",AD67+1,AD67),AD67)) ->  | AE68: =IF(I68="","",IF(I68="Гости",IF(N68="Н",AE67+1,AE67),AE67)) ->  | AF68: =IF(I68="","",IF(I68="Гости",IF(N68="П",AF67+1,AF67),AF67)) ->  | AG68: =IF(I68="","",IF(I68="Гости",L68+AG67,AG67)) ->  | AH68: =IF(I68="","",IF(I68="Гости",M68+AH67,AH67)) ->  | AI68: =IF(I68="","",IF(I68="Гости",AD68*3+AE68,AI67)) -> 
N74: =IF(I74="","",IF(I74="Дома",IF(J74>K74,"В",IF(J74=K74,"Н","П")),IF(J74<K74,"В",IF(J74=K74,"Н","П")))) -> 
J131: =IF(I131="","",E131+G131) ->  | K131: =IF(I131="","",F131+H131) ->  | L131: =IF(I131="","",IF(I131="Дома",J131,K131)) ->  | M131: =IF(I131="","",IF(I131="Дома",K131,J131)) ->  | O131: =IF(I131="","",O130+1) ->  | U131: =IF(I131="","",P131*3+Q131) -> 
P132: =IF(I132="","",IF(N132="В",P131+1,P131)) ->  | Q132: =IF(I132="","",IF(N132="Н",Q131+1,Q131)) ->  | R132: =IF(I132="","",IF(N132="П",R131+1,R131)) ->  | S132: =IF(I132="","",S131+L132) ->  | T132: =IF(I132="","",T131+M132) ->  | V132: =IF(I132="","",IF(I132="Дома",V131+1,V131+0)) ->  | W132: =IF(I132="","",IF(I132="Дома",IF(N132="В",W131+1,W131),W131)) ->  | X132: =IF(I132="","",IF(I132="Дома",IF(N132="Н",X131+1,X131),X131)) ->  | Y132: =IF(I132="","",IF(I132="Дома",IF(N132="П",Y131+1,Y131),Y131)) ->  | Z132: =IF(I132="","",IF(I132="Дома",L132+Z131,Z131)) ->  | AA132: =IF(I132="","",IF(I132="Дома",M132+AA131,AA131)) ->  | AB132: =IF(I132="","",IF(I132="Дома",W132*3+X132,AB131)) ->  | AC132: =IF(I132="","",IF(I132="Гости",AC131+1,AC131+0)) ->  | AD132: =IF(I132="","",IF(I132="Гости",IF(N132="В",AD131+1,AD131),AD131)) ->  | AE132: =IF(I132="","",IF(I132="Гости",IF(N132="Н",AE131+1,AE131),AE131)) ->  | AF132: =IF(I132="","",IF(I132="Гости",IF(N132="П",AF131+1,AF131),AF131)) ->  | AG132: =IF(I132="","",IF(I132="Гости",L132+AG131,AG131)) ->  | AH132: =IF(I132="","",IF(I132="Гости",M132+AH131,AH131)) ->  | AI132: =IF(I132="","",IF(I132="Гости",AD132*3+AE132,AI131)) -> 
N138: =IF(I138="","",IF(I138="Дома",IF(J138>K138,"В",IF(J138=K138,"Н","П")),IF(J138<K138,"В",IF(J138=K138,"Н","П")))) -> 

Sheet ОчныеДГ (hidden)
A1: Флямуртари | B1: Теута | G1: Результат К1 | H1: Забито К1 | I1: Пропущено К1 | J1: Выиграно К1 | K1: Ничьих К1 | L1: Проиграно К1 | M1: РезультатК2 | N1: Забито К2 | O1: Пропущено К2 | P1: Выиграно К2 | Q1: Ничьих К2 | R1: Пропущено К2
G2: =IF(A2="","",IF($A$1=C2,IF(E2>F2,"В",IF(E2=F2,"Н","П")),IF(E2<F2,"В",IF(E2=F2,"Н","П")))) ->  | H2: =IF(A2="","",IF($A$1=C2,E2,F2)) ->  | I2: =IF(A2="","",IF($A$1=C2,F2,E2)) ->  | J2: =IF(A2="","",IF(G2="В",1,0)) ->  | K2: =IF(A2="","",IF(G2="Н",1,0)) ->  | L2: =IF(A2="","",IF(G2="П",1,0)) ->  | M2: =IF(A2="","",IF(B1=D2,IF(F2>E2,"В",IF(F2=E2,"Н","П")),IF(F2<E2,"В",IF(F2=E2,"Н","П")))) ->  | N2: =IF(A2="","",IF(B1=D2,F2,E2)) ->  | O2: =IF(A2="","",IF(B1=D2,E2,F2)) ->  | P2: =IF(A2="","",IF(M2="В",1,0)) ->  | Q2: =IF(A2="","",IF(M2="Н",1,0)) ->  | R2: =IF(A2="","",IF(M2="П",1,0)) -> 
H3: =IF(A3="","",IF($A$1=C3,E3+H2,F3+H2)) ->  | I3: =IF(A3="","",IF($A$1=C3,F3+I2,E3+I2)) ->  | J3: =IF(A3="","",IF(G3="В",1+J2,0+J2)) ->  | K3: =IF(A3="","",IF(G3="Н",1+K2,0+K2)) ->  | L3: =IF(A3="","",IF(G3="П",1+L2,0+L2)) ->  | M3: =IF(A3="","",IF($B$1=D3,IF(F3>E3,"В",IF(F3=E3,"Н","П")),IF(F3<E3,"В",IF(F3=E3,"Н","П")))) ->  | N3: =IF(A3="","",IF($B$1=D3,F3+N2,E3+N2)) ->  | O3: =IF(A3="","",IF($B$1=D3,E3+O2,F3+O2)) ->  | P3: =IF(A3="","",IF(M3="В",1+P2,0+P2)) ->  | Q3: =IF(A3="","",IF(M3="Н",1+Q2,0+Q2)) ->  | R3: =IF(A3="","",IF(M3="П",1+R2,0+R2)) -> 
H4: =IF(A4="","",IF($A$1=C4,E4+H3,F4+H3)) ->  | I4: =IF(A4="","",IF($A$1=C4,F4+I3,E4+I3)) ->  | J4: =IF(A4="","",IF(G4="В",1+J3,0+J3)) ->  | K4: =IF(A4="","",IF(G4="Н",1+K3,0+K3)) ->  | L4: =IF(A4="","",IF(G4="П",1+L3,0+L3)) ->  | M4: =IF(A4="","",IF($B$1=D4,IF(F4>E4,"В",IF(F4=E4,"Н","П")),IF(F4<E4,"В",IF(F4=E4,"Н","П")))) ->  | N4: =IF(A4="","",IF($B$1=D4,F4+N3,E4+N3)) ->  | O4: =IF(A4="","",IF($B$1=D4,E4+O3,F4+O3)) ->  | P4: =IF(A4="","",IF(M4="В",1+P3,0+P3)) ->  | Q4: =IF(A4="","",IF(M4="Н",1+Q3,0+Q3)) ->  | R4: =IF(A4="","",IF(M4="П",1+R3,0+R3)) -> 
J7: =IF(A7="","",IF(G7="В",1+J6,0+J6)) ->  | K7: =IF(A7="","",IF(G7="Н",1+K6,0+K6)) ->  | L7: =IF(A7="","",IF(G7="П",1+L6,0+L6)) ->  | M7: =IF(A7="","",IF($B$1=D7,IF(F7>E7,"В",IF(F7=E7,"Н","П")),IF(F7<E7,"В",IF(F7=E7,"Н","П")))) ->  | N7: =IF(A7="","",IF($B$1=D7,F7+N6,E7+N6)) ->  | O7: =IF(A7="","",IF($B$1=D7,E7+O6,F7+O6)) ->  | P7: =IF(A7="","",IF(M7="В",1+P6,0+P6)) ->  | Q7: =IF(A7="","",IF(M7="Н",1+Q6,0+Q6)) ->  | R7: =IF(A7="","",IF(M7="П",1+R6,0+R6)) -> 
G34: =IF(A34="","",IF($A$1=C34,IF(E34>F34,"В",IF(E34=F34,"Н","П")),IF(E34<F34,"В",IF(E34=F34,"Н","П")))) -> 
G66: =IF(A66="","",IF($A$1=C66,IF(E66>F66,"В",IF(E66=F66,"Н","П")),IF(E66<F66,"В",IF(E66=F66,"Н","П")))) -> 
H68: =IF(A68="","",IF($A$1=C68,E68+H67,F68+H67)) ->  | I68: =IF(A68="","",IF($A$1=C68,F68+I67,E68+I67)) -> 
J71: =IF(A71="","",IF(G71="В",1+J70,0+J70)) ->  | K71: =IF(A71="","",IF(G71="Н",1+K70,0+K70)) ->  | L71: =IF(A71="","",IF(G71="П",1+L70,0+L70)) ->  | M71: =IF(A71="","",IF($B$1=D71,IF(F71>E71,"В",IF(F71=E71,"Н","П")),IF(F71<E71,"В",IF(F71=E71,"Н","П")))) ->  | N71: =IF(A71="","",IF($B$1=D71,F71+N70,E71+N70)) ->  | O71: =IF(A71="","",IF($B$1=D71,E71+O70,F71+O70)) ->  | P71: =IF(A71="","",IF(M71="В",1+P70,0+P70)) ->  | Q71: =IF(A71="","",IF(M71="Н",1+Q70,0+Q70)) ->  | R71: =IF(A71="","",IF(M71="П",1+R70,0+R70)) -> 
G98: =IF(A98="","",IF($A$1=C98,IF(E98>F98,"В",IF(E98=F98,"Н","П")),IF(E98<F98,"В",IF(E98=F98,"Н","П")))) -> 
G130: =IF(A130="","",IF($A$1=C130,IF(E130>F130,"В",IF(E130=F130,"Н","П")),IF(E130<F130,"В",IF(E130=F130,"Н","П")))) -> 
H132: =IF(A132="","",IF($A$1=C132,E132+H131,F132+H131)) ->  | I132: =IF(A132="","",IF($A$1=C132,F132+I131,E132+I131)) -> 
J135: =IF(A135="","",IF(G135="В",1+J134,0+J134)) ->  | K135: =IF(A135="","",IF(G135="Н",1+K134,0+K134)) ->  | L135: =IF(A135="","",IF(G135="П",1+L134,0+L134)) ->  | M135: =IF(A135="","",IF($B$1=D135,IF(F135>E135,"В",IF(F135=E135,"Н","П")),IF(F135<E135,"В",IF(F135=E135,"Н","П")))) ->  | N135: =IF(A135="","",IF($B$1=D135,F135+N134,E135+N134)) ->  | O135: =IF(A135="","",IF($B$1=D135,E135+O134,F135+O134)) ->  | P135: =IF(A135="","",IF(M135="В",1+P134,0+P134)) ->  | Q135: =IF(A135="","",IF(M135="Н",1+Q134,0+Q134)) ->  | R135: =IF(A135="","",IF(M135="П",1+R134,0+R134)) -> 

Sheet Таблица (hidden)
A1: Место | B1: Команда | C1: Игр | D1: Выиграно | E1: Ничьих | F1: Проиграно | G1: Забито | H1: Пропущено | I1: Очков | K1: Место | L1: Команда | M1: Игр | N1: Выиграно | O1: Ничьих | P1: Проиграно | Q1: Забито | R1: Пропущено | S1: Очков | U1: Место | V1: Команда | W1: Игр | X1: Выиграно | Y1: Ничьих | Z1: Проиграно | AA1: Забито | AB1: Пропущено | AC1: Очков
A2: 1 | B2: Кукеси | C2: 17 | D2: 9 | E2: 4 | F2: 4 | G2: 26 | H2: 13 | I2: 31 | K2: 1 | L2: Кукеси | M2: 9 | N2: 6 | O2: 2 | P2: 1 | Q2: 17 | R2: 7 | S2: 20
A3: 2 | B3: Билис | C3: 17 | D3: 8 | E3: 6 | F3: 3 | G3: 25 | H3: 13 | I3: 30 | K3: 2 | L3: Билис | M3: 9 | N3: 6 | O3: 2 | P3: 1 | Q3: 16 | R3: 6 | S3: 20
A4: 3 | B4: Тирана | C4: 17 | D4: 8 | E4: 4 | F4: 5 | G4: 27 | H4: 19 | I4: 28 | K4: 3 | L4: Теута | M4: 8 | N4: 6 | O4: 2 | P4: 0 | Q4: 9 | R4: 2 | S4: 20
A5: 4 | B5: Партизани | C5: 17 | D5: 8 | E5: 4 | F5: 5 | G5: 19 | H5: 13 | I5: 28 | K5: 4 | L5: Лячи | M5: 9 | N5: 6 | O5: 1 | P5: 2 | Q5: 17 | R5: 4 | S5: 19
A6: 5 | B6: Лячи | C6: 17 | D6: 7 | E6: 4 | F6: 6 | G6: 27 | H6: 15 | I6: 25 | K6: 5 | L6: Партизани | M6: 9 | N6: 5 | O6: 3 | P6: 1 | Q6: 11 | R6: 5 | S6: 18
A7: 6 | B7: Теута | C7: 16 | D7: 6 | E7: 7 | F7: 3 | G7: 10 | H7: 11 | I7: 25 | K7: 6 | L7: Тирана | M7: 8 | N7: 4 | O7: 2 | P7: 2 | Q7: 12 | R7: 7 | S7: 14
A8: 7 | B8: Влазния | C8: 17 | D8: 6 | E8: 5 | F8: 6 | G8: 15 | H8: 14 | I8: 23 | K8: 7 | L8: Скендербеу | M8: 8 | N8: 4 | O8: 1 | P8: 3 | Q8: 7 | R8: 9 | S8: 13
A9: 8 | B9: Скендербеу | C9: 17 | D9: 6 | E9: 3 | F9: 8 | G9: 16 | H9: 27 | I9: 21 | K9: 8 | L9: Люфтетари Гирокастра | M9: 8 | N9: 2 | O9: 3 | P9: 3 | Q9: 6 | R9: 9 | S9: 9
A10: 9 | B10: Люфтетари Гирокастра | C10: 17 | D10: 2 | E10: 5 | F10: 10 | G10: 9 | H10: 29 | I10: 11 | K10: 9 | L10: Влазния | M10: 8 | N10: 2 | O10: 2 | P10: 4 | Q10: 7 | R10: 8 | S10: 8
A11: 10 | B11: Флямуртари | C11: 16 | D11: 0 | E11: 6 | F11: 10 | G11: 12 | H11: 32 | I11: 6 | K11: 10 | L11: Флямуртари | M11: 8 | N11: 0 | O11: 6 | P11: 2 | Q11: 11 | R11: 16 | S11: 6

Sheet Коэффициенты (hidden)
A1: Идентификатор | B1: Стартовый | C1: Текущий

Sheet АРХИВ
A1: ЧЕМПИОНАТ | B1: ДАТА/ВРЕМЯ | C1: ДОМА | D1: ГОСТИ | E1: Total Mill | G1: Mill Исход | H1: Синдикат | L1: СТАВКА | M1: ИТОГ | N1: WIN/LOS
E2: ТМ2,5 | F2: ТБ2,5 | G2: ТБ/ТМ | H2: Тест 1 | I2: Тест 2 | J2: Тест 3 | K2: Тест 4
A3: ГВАТЕМАЛА: Национальная лига - Апертура | B3: 2017.08.13 23:00 | C3: Кобан Империаль | D3: Депортиво Малакатеко | E3: -0.1036383235 | F3: 3.678794412 | G3: Under 3.5 | I3: 0.511343802 | J3: 0.4181280999
A4: ИНДОНЕЗИЯ: Лига 2 | B4: 2019.10.17 11:30 | C4: ПСМС Медан | D4: Персираджа Ацех | E4: 20.14832162 | F4: 79.85167838 | G4: Победа 1 | H4: Команда 2 | I4: Лучше взять фору 1 (+1) | J4: Победа 1 | K4: Победа 1
A5: ИНДОНЕЗИЯ: Лига 1 | B5: 2019.10.18 11:30 | C5: Персела Ламонган | D5: ПСИС Семаранг | E5: 15.54254489 | F5: 84.45745511 | G5: Наиболее веротяен исход : 1Х | H5: Команда 1 | I5: П1 с небольшой разницей в счёте | J5: Победа 1 | K5: Победа 1
A6: ИНДОНЕЗИЯ: Лига 1 | B6: 2019.10.18 11:30 | C6: ПСС Слеман | D6: Kalteng Putra | E6: 20.51025477 | F6: 79.48974523 | G6: Наиболее веротяен исход : ФОРА 1(+1) | H6: Команда 1 | I6: Наиболее вероятен исход 1Х | J6: Победа 1 | K6: Победа 1
